Workbook

Sheet シート2-2-2
A1: ○算定シート2-2-2（廃棄又は滅失した木材（個票）） | V1: 個票判別タグ
V2: kguqlhorcpgjaluw
A4: ※（１）、（２）ア）、（２）イ）のいずれかの表に記入すること。
A6: （１）過年度に炭素蓄積の量を報告している場合
A8: 名称
A9: 減少した国産材使用量(㎥) | B9: 建築物その他の工作物
B10: 家具その他の物品
A11: 減少した国産材使用量(kg) | B11: 建築物その他の工作物
B12: 家具その他の物品
A13: 減少した炭素蓄積の量の小計(t-C)
A16: （２）過年度に炭素蓄積の量を報告していない場合であって、新築等した建築物その他の工作物の算定にあたり、
A17: その土地に従前から自ら所有する建築物その他の工作物の解体等により減少した炭素蓄積の量を報告する場合
A18: ア）国産材使用量が不明な場合
A20: 名称
A21: 所在地
A22: 建築年度
A23: 住宅/非住宅の別
A24: 構造の区分
A25: 延床面積(㎡)
A26: 単位床面積当たりの減少した炭素蓄積の量(t-C) | C26: =IFERROR(_xlfn.XLOOKUP('シート2-2-2'!C22&'シート2-2-2'!C23&'シート2-2-2'!C24,プルダウンデータリスト!AI2:AI5211&プルダウンデータリスト!AJ2:AJ5211&プルダウンデータリスト!AK2:AK5211,プルダウンデータリスト!AL2:AL5211),"-") -> -
A27: 減少した炭素蓄積の量の小計(t-C) | C27: =IFERROR(-1*ABS(C26*C25),"-") -> -
A30: イ）国産材使用量が既知の場合
A32: 名称
A33: 所在地
A34: 減少した炭素蓄積の量の小計(t-C) | C34: =-1*ABS(SUM(L41:L240)) -> 0
A36: （備考）
A37: ※下表について、各行、材積又は重量のいずれかの欄に入力すること。
A39: 通し番号 | B39: 部品、製品名等 | C39: 数量 | D39: 区分(製材・合板・木質ボード) | E39: 国産材使用量(数量1当たり) | I39: 国産材使用量小計(㎥) | J39: 国産材使用量小計(kg) | K39: 木材の炭素含有率 | L39: 炭素蓄積の量(t-C) | M39: 備考
E40: 材積(㎥) | F40: 樹種 | G40: 木材の密度(t/㎥) | H40: 重量(kg)
A41: 1 | G41: =IF($D41="","-",IF($E41="","-",IF($D41="製材（製材・集成材・ＣＬＴ等）",IF($F41="","-",_xlfn.XLOOKUP('シート2-2-2'!$F41,プルダウンデータリスト!$AC$2:$AC$65,プルダウンデータリスト!$AD$2:$AD$65)),_xlfn.XLOOKUP('シート2-2-2'!$D41,プルダウンデータリスト!$V$3:$V$9,プルダウンデータリスト!$W$3:$W$9,)))) -> - | I41: =IF(E41="","-",E41*C41) -> - | J41: =IF(H41="","-",H41*C41) -> - | K41: =IF(D41="","-",_xlfn.XLOOKUP(D41,プルダウンデータリスト!$V$2:$V$9,プルダウンデータリスト!$X$2:$X$9,"-")) -> - | L41: =IFERROR(IF(LEN(E41)>0,I41*G41*K41,IF(LEN(H41)>0,J41*K41/1000,"-")),"-") -> -
A42: 2 | G42: =IF($D42="","-",IF($E42="","-",IF($D42="製材（製材・集成材・ＣＬＴ等）",IF($F42="","-",_xlfn.XLOOKUP('シート2-2-2'!$F42,プルダウンデータリスト!$AC$2:$AC$65,プルダウンデータリスト!$AD$2:$AD$65)),_xlfn.XLOOKUP('シート2-2-2'!$D42,プルダウンデータリスト!$V$3:$V$9,プルダウンデータリスト!$W$3:$W$9,)))) -> - | I42: - | J42: - | K42: =IF(D42="","-",_xlfn.XLOOKUP(D42,プルダウンデータリスト!$V$2:$V$9,プルダウンデータリスト!$X$2:$X$9,"-")) -> - | L42: =IFERROR(IF(LEN(E42)>0,I42*G42*K42,IF(LEN(H42)>0,J42*K42/1000,"-")),"-") -> -
A43: 3 | G43: =IF($D43="","-",IF($E43="","-",IF($D43="製材（製材・集成材・ＣＬＴ等）",IF($F43="","-",_xlfn.XLOOKUP('シート2-2-2'!$F43,プルダウンデータリスト!$AC$2:$AC$65,プルダウンデータリスト!$AD$2:$AD$65)),_xlfn.XLOOKUP('シート2-2-2'!$D43,プルダウンデータリスト!$V$3:$V$9,プルダウンデータリスト!$W$3:$W$9,)))) -> - | I43: - | J43: - | K43: =IF(D43="","-",_xlfn.XLOOKUP(D43,プルダウンデータリスト!$V$2:$V$9,プルダウンデータリスト!$X$2:$X$9,"-")) -> - | L43: -
A44: 4 | G44: =IF($D44="","-",IF($E44="","-",IF($D44="製材（製材・集成材・ＣＬＴ等）",IF($F44="","-",_xlfn.XLOOKUP('シート2-2-2'!$F44,プルダウンデータリスト!$AC$2:$AC$65,プルダウンデータリスト!$AD$2:$AD$65)),_xlfn.XLOOKUP('シート2-2-2'!$D44,プルダウンデータリスト!$V$3:$V$9,プルダウンデータリスト!$W$3:$W$9,)))) -> - | I44: - | J44: - | K44: =IF(D44="","-",_xlfn.XLOOKUP(D44,プルダウンデータリスト!$V$2:$V$9,プルダウンデータリスト!$X$2:$X$9,"-")) -> - | L44: -
A45: 5 | G45: =IF($D45="","-",IF($E45="","-",IF($D45="製材（製材・集成材・ＣＬＴ等）",IF($F45="","-",_xlfn.XLOOKUP('シート2-2-2'!$F45,プルダウンデータリスト!$AC$2:$AC$65,プルダウンデータリスト!$AD$2:$AD$65)),_xlfn.XLOOKUP('シート2-2-2'!$D45,プルダウンデータリスト!$V$3:$V$9,プルダウンデータリスト!$W$3:$W$9,)))) -> - | I45: - | J45: - | K45: =IF(D45="","-",_xlfn.XLOOKUP(D45,プルダウンデータリスト!$V$2:$V$9,プルダウンデータリスト!$X$2:$X$9,"-")) -> - | L45: -
A46: 6 | G46: =IF($D46="","-",IF($E46="","-",IF($D46="製材（製材・集成材・ＣＬＴ等）",IF($F46="","-",_xlfn.XLOOKUP('シート2-2-2'!$F46,プルダウンデータリスト!$AC$2:$AC$65,プルダウンデータリスト!$AD$2:$AD$65)),_xlfn.XLOOKUP('シート2-2-2'!$D46,プルダウンデータリスト!$V$3:$V$9,プルダウンデータリスト!$W$3:$W$9,)))) -> - | I46: - | J46: - | K46: =IF(D46="","-",_xlfn.XLOOKUP(D46,プルダウンデータリスト!$V$2:$V$9,プルダウンデータリスト!$X$2:$X$9,"-")) -> - | L46: -
A47: 7 | G47: =IF($D47="","-",IF($E47="","-",IF($D47="製材（製材・集成材・ＣＬＴ等）",IF($F47="","-",_xlfn.XLOOKUP('シート2-2-2'!$F47,プルダウンデータリスト!$AC$2:$AC$65,プルダウンデータリスト!$AD$2:$AD$65)),_xlfn.XLOOKUP('シート2-2-2'!$D47,プルダウンデータリスト!$V$3:$V$9,プルダウンデータリスト!$W$3:$W$9,)))) -> - | I47: - | J47: - | K47: =IF(D47="","-",_xlfn.XLOOKUP(D47,プルダウンデータリスト!$V$2:$V$9,プルダウンデータリスト!$X$2:$X$9,"-")) -> - | L47: -
A48: 8 | G48: =IF($D48="","-",IF($E48="","-",IF($D48="製材（製材・集成材・ＣＬＴ等）",IF($F48="","-",_xlfn.XLOOKUP('シート2-2-2'!$F48,プルダウンデータリスト!$AC$2:$AC$65,プルダウンデータリスト!$AD$2:$AD$65)),_xlfn.XLOOKUP('シート2-2-2'!$D48,プルダウンデータリスト!$V$3:$V$9,プルダウンデータリスト!$W$3:$W$9,)))) -> - | I48: - | J48: - | K48: =IF(D48="","-",_xlfn.XLOOKUP(D48,プルダウンデータリスト!$V$2:$V$9,プルダウンデータリスト!$X$2:$X$9,"-")) -> - | L48: -
A49: 9 | G49: =IF($D49="","-",IF($E49="","-",IF($D49="製材（製材・集成材・ＣＬＴ等）",IF($F49="","-",_xlfn.XLOOKUP('シート2-2-2'!$F49,プルダウンデータリスト!$AC$2:$AC$65,プルダウンデータリスト!$AD$2:$AD$65)),_xlfn.XLOOKUP('シート2-2-2'!$D49,プルダウンデータリスト!$V$3:$V$9,プルダウンデータリスト!$W$3:$W$9,)))) -> - | I49: - | J49: - | K49: =IF(D49="","-",_xlfn.XLOOKUP(D49,プルダウンデータリスト!$V$2:$V$9,プルダウンデータリスト!$X$2:$X$9,"-")) -> - | L49: -
A50: 10 | G50: =IF($D50="","-",IF($E50="","-",IF($D50="製材（製材・集成材・ＣＬＴ等）",IF($F50="","-",_xlfn.XLOOKUP('シート2-2-2'!$F50,プルダウンデータリスト!$AC$2:$AC$65,プルダウンデータリスト!$AD$2:$AD$65)),_xlfn.XLOOKUP('シート2-2-2'!$D50,プルダウンデータリスト!$V$3:$V$9,プルダウンデータリスト!$W$3:$W$9,)))) -> - | I50: - | J50: - | K50: =IF(D50="","-",_xlfn.XLOOKUP(D50,プルダウンデータリスト!$V$2:$V$9,プルダウンデータリスト!$X$2:$X$9,"-")) -> - | L50: -
A51: 11 | G51: =IF($D51="","-",IF($E51="","-",IF($D51="製材（製材・集成材・ＣＬＴ等）",IF($F51="","-",_xlfn.XLOOKUP('シート2-2-2'!$F51,プルダウンデータリスト!$AC$2:$AC$65,プルダウンデータリスト!$AD$2:$AD$65)),_xlfn.XLOOKUP('シート2-2-2'!$D51,プルダウンデータリスト!$V$3:$V$9,プルダウンデータリスト!$W$3:$W$9,)))) -> - | I51: - | J51: - | K51: =IF(D51="","-",_xlfn.XLOOKUP(D51,プルダウンデータリスト!$V$2:$V$9,プルダウンデータリスト!$X$2:$X$9,"-")) -> - | L51: -
A52: 12 | G52: =IF($D52="","-",IF($E52="","-",IF($D52="製材（製材・集成材・ＣＬＴ等）",IF($F52="","-",_xlfn.XLOOKUP('シート2-2-2'!$F52,プルダウンデータリスト!$AC$2:$AC$65,プルダウンデータリスト!$AD$2:$AD$65)),_xlfn.XLOOKUP('シート2-2-2'!$D52,プルダウンデータリスト!$V$3:$V$9,プルダウンデータリスト!$W$3:$W$9,)))) -> - | I52: - | J52: - | K52: =IF(D52="","-",_xlfn.XLOOKUP(D52,プルダウンデータリスト!$V$2:$V$9,プルダウンデータリスト!$X$2:$X$9,"-")) -> - | L52: -
A53: 13 | G53: =IF($D53="","-",IF($E53="","-",IF($D53="製材（製材・集成材・ＣＬＴ等）",IF($F53="","-",_xlfn.XLOOKUP('シート2-2-2'!$F53,プルダウンデータリスト!$AC$2:$AC$65,プルダウンデータリスト!$AD$2:$AD$65)),_xlfn.XLOOKUP('シート2-2-2'!$D53,プルダウンデータリスト!$V$3:$V$9,プルダウンデータリスト!$W$3:$W$9,)))) -> - | I53: - | J53: - | K53: =IF(D53="","-",_xlfn.XLOOKUP(D53,プルダウンデータリスト!$V$2:$V$9,プルダウンデータリスト!$X$2:$X$9,"-")) -> - | L53: -
A54: 14 | G54: =IF($D54="","-",IF($E54="","-",IF($D54="製材（製材・集成材・ＣＬＴ等）",IF($F54="","-",_xlfn.XLOOKUP('シート2-2-2'!$F54,プルダウンデータリスト!$AC$2:$AC$65,プルダウンデータリスト!$AD$2:$AD$65)),_xlfn.XLOOKUP('シート2-2-2'!$D54,プルダウンデータリスト!$V$3:$V$9,プルダウンデータリスト!$W$3:$W$9,)))) -> - | I54: - | J54: - | K54: =IF(D54="","-",_xlfn.XLOOKUP(D54,プルダウンデータリスト!$V$2:$V$9,プルダウンデータリスト!$X$2:$X$9,"-")) -> - | L54: -
A55: 15 | G55: =IF($D55="","-",IF($E55="","-",IF($D55="製材（製材・集成材・ＣＬＴ等）",IF($F55="","-",_xlfn.XLOOKUP('シート2-2-2'!$F55,プルダウンデータリスト!$AC$2:$AC$65,プルダウンデータリスト!$AD$2:$AD$65)),_xlfn.XLOOKUP('シート2-2-2'!$D55,プルダウンデータリスト!$V$3:$V$9,プルダウンデータリスト!$W$3:$W$9,)))) -> - | I55: - | J55: - | K55: =IF(D55="","-",_xlfn.XLOOKUP(D55,プルダウンデータリスト!$V$2:$V$9,プルダウンデータリスト!$X$2:$X$9,"-")) -> - | L55: -
A56: 16 | G56: =IF($D56="","-",IF($E56="","-",IF($D56="製材（製材・集成材・ＣＬＴ等）",IF($F56="","-",_xlfn.XLOOKUP('シート2-2-2'!$F56,プルダウンデータリスト!$AC$2:$AC$65,プルダウンデータリスト!$AD$2:$AD$65)),_xlfn.XLOOKUP('シート2-2-2'!$D56,プルダウンデータリスト!$V$3:$V$9,プルダウンデータリスト!$W$3:$W$9,)))) -> - | I56: - | J56: - | K56: =IF(D56="","-",_xlfn.XLOOKUP(D56,プルダウンデータリスト!$V$2:$V$9,プルダウンデータリスト!$X$2:$X$9,"-")) -> - | L56: -
A57: 17 | G57: =IF($D57="","-",IF($E57="","-",IF($D57="製材（製材・集成材・ＣＬＴ等）",IF($F57="","-",_xlfn.XLOOKUP('シート2-2-2'!$F57,プルダウンデータリスト!$AC$2:$AC$65,プルダウンデータリスト!$AD$2:$AD$65)),_xlfn.XLOOKUP('シート2-2-2'!$D57,プルダウンデータリスト!$V$3:$V$9,プルダウンデータリスト!$W$3:$W$9,)))) -> - | I57: - | J57: - | K57: =IF(D57="","-",_xlfn.XLOOKUP(D57,プルダウンデータリスト!$V$2:$V$9,プルダウンデータリスト!$X$2:$X$9,"-")) -> - | L57: -
A58: 18 | G58: =IF($D58="","-",IF($E58="","-",IF($D58="製材（製材・集成材・ＣＬＴ等）",IF($F58="","-",_xlfn.XLOOKUP('シート2-2-2'!$F58,プルダウンデータリスト!$AC$2:$AC$65,プルダウンデータリスト!$AD$2:$AD$65)),_xlfn.XLOOKUP('シート2-2-2'!$D58,プルダウンデータリスト!$V$3:$V$9,プルダウンデータリスト!$W$3:$W$9,)))) -> - | I58: - | J58: - | K58: =IF(D58="","-",_xlfn.XLOOKUP(D58,プルダウンデータリスト!$V$2:$V$9,プルダウンデータリスト!$X$2:$X$9,"-")) -> - | L58: -
A59: 19 | G59: =IF($D59="","-",IF($E59="","-",IF($D59="製材（製材・集成材・ＣＬＴ等）",IF($F59="","-",_xlfn.XLOOKUP('シート2-2-2'!$F59,プルダウンデータリスト!$AC$2:$AC$65,プルダウンデータリスト!$AD$2:$AD$65)),_xlfn.XLOOKUP('シート2-2-2'!$D59,プルダウンデータリスト!$V$3:$V$9,プルダウンデータリスト!$W$3:$W$9,)))) -> - | I59: - | J59: - | K59: =IF(D59="","-",_xlfn.XLOOKUP(D59,プルダウンデータリスト!$V$2:$V$9,プルダウンデータリスト!$X$2:$X$9,"-")) -> - | L59: -
A60: 20 | G60: =IF($D60="","-",IF($E60="","-",IF($D60="製材（製材・集成材・ＣＬＴ等）",IF($F60="","-",_xlfn.XLOOKUP('シート2-2-2'!$F60,プルダウンデータリスト!$AC$2:$AC$65,プルダウンデータリスト!$AD$2:$AD$65)),_xlfn.XLOOKUP('シート2-2-2'!$D60,プルダウンデータリスト!$V$3:$V$9,プルダウンデータリスト!$W$3:$W$9,)))) -> - | I60: - | J60: - | K60: =IF(D60="","-",_xlfn.XLOOKUP(D60,プルダウンデータリスト!$V$2:$V$9,プルダウンデータリスト!$X$2:$X$9,"-")) -> - | L60: -
A61: 21 | G61: =IF($D61="","-",IF($E61="","-",IF($D61="製材（製材・集成材・ＣＬＴ等）",IF($F61="","-",_xlfn.XLOOKUP('シート2-2-2'!$F61,プルダウンデータリスト!$AC$2:$AC$65,プルダウンデータリスト!$AD$2:$AD$65)),_xlfn.XLOOKUP('シート2-2-2'!$D61,プルダウンデータリスト!$V$3:$V$9,プルダウンデータリスト!$W$3:$W$9,)))) -> - | I61: - | J61: - | K61: =IF(D61="","-",_xlfn.XLOOKUP(D61,プルダウンデータリスト!$V$2:$V$9,プルダウンデータリスト!$X$2:$X$9,"-")) -> - | L61: -
A62: 22 | G62: =IF($D62="","-",IF($E62="","-",IF($D62="製材（製材・集成材・ＣＬＴ等）",IF($F62="","-",_xlfn.XLOOKUP('シート2-2-2'!$F62,プルダウンデータリスト!$AC$2:$AC$65,プルダウンデータリスト!$AD$2:$AD$65)),_xlfn.XLOOKUP('シート2-2-2'!$D62,プルダウンデータリスト!$V$3:$V$9,プルダウンデータリスト!$W$3:$W$9,)))) -> - | I62: - | J62: - | K62: =IF(D62="","-",_xlfn.XLOOKUP(D62,プルダウンデータリスト!$V$2:$V$9,プルダウンデータリスト!$X$2:$X$9,"-")) -> - | L62: -
A63: 23 | G63: =IF($D63="","-",IF($E63="","-",IF($D63="製材（製材・集成材・ＣＬＴ等）",IF($F63="","-",_xlfn.XLOOKUP('シート2-2-2'!$F63,プルダウンデータリスト!$AC$2:$AC$65,プルダウンデータリスト!$AD$2:$AD$65)),_xlfn.XLOOKUP('シート2-2-2'!$D63,プルダウンデータリスト!$V$3:$V$9,プルダウンデータリスト!$W$3:$W$9,)))) -> - | I63: - | J63: - | K63: =IF(D63="","-",_xlfn.XLOOKUP(D63,プルダウンデータリスト!$V$2:$V$9,プルダウンデータリスト!$X$2:$X$9,"-")) -> - | L63: -
A64: 24 | G64: =IF($D64="","-",IF($E64="","-",IF($D64="製材（製材・集成材・ＣＬＴ等）",IF($F64="","-",_xlfn.XLOOKUP('シート2-2-2'!$F64,プルダウンデータリスト!$AC$2:$AC$65,プルダウンデータリスト!$AD$2:$AD$65)),_xlfn.XLOOKUP('シート2-2-2'!$D64,プルダウンデータリスト!$V$3:$V$9,プルダウンデータリスト!$W$3:$W$9,)))) -> - | I64: - | J64: - | K64: =IF(D64="","-",_xlfn.XLOOKUP(D64,プルダウンデータリスト!$V$2:$V$9,プルダウンデータリスト!$X$2:$X$9,"-")) -> - | L64: -
A65: 25 | G65: =IF($D65="","-",IF($E65="","-",IF($D65="製材（製材・集成材・ＣＬＴ等）",IF($F65="","-",_xlfn.XLOOKUP('シート2-2-2'!$F65,プルダウンデータリスト!$AC$2:$AC$65,プルダウンデータリスト!$AD$2:$AD$65)),_xlfn.XLOOKUP('シート2-2-2'!$D65,プルダウンデータリスト!$V$3:$V$9,プルダウンデータリスト!$W$3:$W$9,)))) -> - | I65: - | J65: - | K65: =IF(D65="","-",_xlfn.XLOOKUP(D65,プルダウンデータリスト!$V$2:$V$9,プルダウンデータリスト!$X$2:$X$9,"-")) -> - | L65: -
A66: 26 | G66: =IF($D66="","-",IF($E66="","-",IF($D66="製材（製材・集成材・ＣＬＴ等）",IF($F66="","-",_xlfn.XLOOKUP('シート2-2-2'!$F66,プルダウンデータリスト!$AC$2:$AC$65,プルダウンデータリスト!$AD$2:$AD$65)),_xlfn.XLOOKUP('シート2-2-2'!$D66,プルダウンデータリスト!$V$3:$V$9,プルダウンデータリスト!$W$3:$W$9,)))) -> - | I66: - | J66: - | K66: =IF(D66="","-",_xlfn.XLOOKUP(D66,プルダウンデータリスト!$V$2:$V$9,プルダウンデータリスト!$X$2:$X$9,"-")) -> - | L66: -
A67: 27 | G67: =IF($D67="","-",IF($E67="","-",IF($D67="製材（製材・集成材・ＣＬＴ等）",IF($F67="","-",_xlfn.XLOOKUP('シート2-2-2'!$F67,プルダウンデータリスト!$AC$2:$AC$65,プルダウンデータリスト!$AD$2:$AD$65)),_xlfn.XLOOKUP('シート2-2-2'!$D67,プルダウンデータリスト!$V$3:$V$9,プルダウンデータリスト!$W$3:$W$9,)))) -> - | I67: - | J67: - | K67: =IF(D67="","-",_xlfn.XLOOKUP(D67,プルダウンデータリスト!$V$2:$V$9,プルダウンデータリスト!$X$2:$X$9,"-")) -> - | L67: -
A68: 28 | G68: =IF($D68="","-",IF($E68="","-",IF($D68="製材（製材・集成材・ＣＬＴ等）",IF($F68="","-",_xlfn.XLOOKUP('シート2-2-2'!$F68,プルダウンデータリスト!$AC$2:$AC$65,プルダウンデータリスト!$AD$2:$AD$65)),_xlfn.XLOOKUP('シート2-2-2'!$D68,プルダウンデータリスト!$V$3:$V$9,プルダウンデータリスト!$W$3:$W$9,)))) -> - | I68: - | J68: - | K68: =IF(D68="","-",_xlfn.XLOOKUP(D68,プルダウンデータリスト!$V$2:$V$9,プルダウンデータリスト!$X$2:$X$9,"-")) -> - | L68: -
A69: 29 | G69: =IF($D69="","-",IF($E69="","-",IF($D69="製材（製材・集成材・ＣＬＴ等）",IF($F69="","-",_xlfn.XLOOKUP('シート2-2-2'!$F69,プルダウンデータリスト!$AC$2:$AC$65,プルダウンデータリスト!$AD$2:$AD$65)),_xlfn.XLOOKUP('シート2-2-2'!$D69,プルダウンデータリスト!$V$3:$V$9,プルダウンデータリスト!$W$3:$W$9,)))) -> - | I69: - | J69: - | K69: =IF(D69="","-",_xlfn.XLOOKUP(D69,プルダウンデータリスト!$V$2:$V$9,プルダウンデータリスト!$X$2:$X$9,"-")) -> - | L69: -
A70: 30 | G70: =IF($D70="","-",IF($E70="","-",IF($D70="製材（製材・集成材・ＣＬＴ等）",IF($F70="","-",_xlfn.XLOOKUP('シート2-2-2'!$F70,プルダウンデータリスト!$AC$2:$AC$65,プルダウンデータリスト!$AD$2:$AD$65)),_xlfn.XLOOKUP('シート2-2-2'!$D70,プルダウンデータリスト!$V$3:$V$9,プルダウンデータリスト!$W$3:$W$9,)))) -> - | I70: - | J70: - | K70: =IF(D70="","-",_xlfn.XLOOKUP(D70,プルダウンデータリスト!$V$2:$V$9,プルダウンデータリスト!$X$2:$X$9,"-")) -> - | L70: -
A71: 31 | G71: =IF($D71="","-",IF($E71="","-",IF($D71="製材（製材・集成材・ＣＬＴ等）",IF($F71="","-",_xlfn.XLOOKUP('シート2-2-2'!$F71,プルダウンデータリスト!$AC$2:$AC$65,プルダウンデータリスト!$AD$2:$AD$65)),_xlfn.XLOOKUP('シート2-2-2'!$D71,プルダウンデータリスト!$V$3:$V$9,プルダウンデータリスト!$W$3:$W$9,)))) -> - | I71: - | J71: - | K71: =IF(D71="","-",_xlfn.XLOOKUP(D71,プルダウンデータリスト!$V$2:$V$9,プルダウンデータリスト!$X$2:$X$9,"-")) -> - | L71: -
A72: 32 | G72: =IF($D72="","-",IF($E72="","-",IF($D72="製材（製材・集成材・ＣＬＴ等）",IF($F72="","-",_xlfn.XLOOKUP('シート2-2-2'!$F72,プルダウンデータリスト!$AC$2:$AC$65,プルダウンデータリスト!$AD$2:$AD$65)),_xlfn.XLOOKUP('シート2-2-2'!$D72,プルダウンデータリスト!$V$3:$V$9,プルダウンデータリスト!$W$3:$W$9,)))) -> - | I72: - | J72: - | K72: =IF(D72="","-",_xlfn.XLOOKUP(D72,プルダウンデータリスト!$V$2:$V$9,プルダウンデータリスト!$X$2:$X$9,"-")) -> - | L72: -
A73: 33 | G73: =IF($D73="","-",IF($E73="","-",IF($D73="製材（製材・集成材・ＣＬＴ等）",IF($F73="","-",_xlfn.XLOOKUP('シート2-2-2'!$F73,プルダウンデータリスト!$AC$2:$AC$65,プルダウンデータリスト!$AD$2:$AD$65)),_xlfn.XLOOKUP('シート2-2-2'!$D73,プルダウンデータリスト!$V$3:$V$9,プルダウンデータリスト!$W$3:$W$9,)))) -> - | I73: =IF(E73="","-",E73*C73) -> - | J73: =IF(H73="","-",H73*C73) -> - | K73: =IF(D73="","-",_xlfn.XLOOKUP(D73,プルダウンデータリスト!$V$2:$V$9,プルダウンデータリスト!$X$2:$X$9,"-")) -> - | L73: -
A74: 34 | G74: =IF($D74="","-",IF($E74="","-",IF($D74="製材（製材・集成材・ＣＬＴ等）",IF($F74="","-",_xlfn.XLOOKUP('シート2-2-2'!$F74,プルダウンデータリスト!$AC$2:$AC$65,プルダウンデータリスト!$AD$2:$AD$65)),_xlfn.XLOOKUP('シート2-2-2'!$D74,プルダウンデータリスト!$V$3:$V$9,プルダウンデータリスト!$W$3:$W$9,)))) -> - | I74: - | J74: - | K74: =IF(D74="","-",_xlfn.XLOOKUP(D74,プルダウンデータリスト!$V$2:$V$9,プルダウンデータリスト!$X$2:$X$9,"-")) -> - | L74: -
A75: 35 | G75: =IF($D75="","-",IF($E75="","-",IF($D75="製材（製材・集成材・ＣＬＴ等）",IF($F75="","-",_xlfn.XLOOKUP('シート2-2-2'!$F75,プルダウンデータリスト!$AC$2:$AC$65,プルダウンデータリスト!$AD$2:$AD$65)),_xlfn.XLOOKUP('シート2-2-2'!$D75,プルダウンデータリスト!$V$3:$V$9,プルダウンデータリスト!$W$3:$W$9,)))) -> - | I75: - | J75: - | K75: =IF(D75="","-",_xlfn.XLOOKUP(D75,プルダウンデータリスト!$V$2:$V$9,プルダウンデータリスト!$X$2:$X$9,"-")) -> - | L75: -
A76: 36 | G76: =IF($D76="","-",IF($E76="","-",IF($D76="製材（製材・集成材・ＣＬＴ等）",IF($F76="","-",_xlfn.XLOOKUP('シート2-2-2'!$F76,プルダウンデータリスト!$AC$2:$AC$65,プルダウンデータリスト!$AD$2:$AD$65)),_xlfn.XLOOKUP('シート2-2-2'!$D76,プルダウンデータリスト!$V$3:$V$9,プルダウンデータリスト!$W$3:$W$9,)))) -> - | I76: - | J76: - | K76: =IF(D76="","-",_xlfn.XLOOKUP(D76,プルダウンデータリスト!$V$2:$V$9,プルダウンデータリスト!$X$2:$X$9,"-")) -> - | L76: -
A77: 37 | G77: =IF($D77="","-",IF($E77="","-",IF($D77="製材（製材・集成材・ＣＬＴ等）",IF($F77="","-",_xlfn.XLOOKUP('シート2-2-2'!$F77,プルダウンデータリスト!$AC$2:$AC$65,プルダウンデータリスト!$AD$2:$AD$65)),_xlfn.XLOOKUP('シート2-2-2'!$D77,プルダウンデータリスト!$V$3:$V$9,プルダウンデータリスト!$W$3:$W$9,)))) -> - | I77: - | J77: - | K77: =IF(D77="","-",_xlfn.XLOOKUP(D77,プルダウンデータリスト!$V$2:$V$9,プルダウンデータリスト!$X$2:$X$9,"-")) -> - | L77: -
A78: 38 | G78: =IF($D78="","-",IF($E78="","-",IF($D78="製材（製材・集成材・ＣＬＴ等）",IF($F78="","-",_xlfn.XLOOKUP('シート2-2-2'!$F78,プルダウンデータリスト!$AC$2:$AC$65,プルダウンデータリスト!$AD$2:$AD$65)),_xlfn.XLOOKUP('シート2-2-2'!$D78,プルダウンデータリスト!$V$3:$V$9,プルダウンデータリスト!$W$3:$W$9,)))) -> - | I78: - | J78: - | K78: =IF(D78="","-",_xlfn.XLOOKUP(D78,プルダウンデータリスト!$V$2:$V$9,プルダウンデータリスト!$X$2:$X$9,"-")) -> - | L78: -
A79: 39 | G79: =IF($D79="","-",IF($E79="","-",IF($D79="製材（製材・集成材・ＣＬＴ等）",IF($F79="","-",_xlfn.XLOOKUP('シート2-2-2'!$F79,プルダウンデータリスト!$AC$2:$AC$65,プルダウンデータリスト!$AD$2:$AD$65)),_xlfn.XLOOKUP('シート2-2-2'!$D79,プルダウンデータリスト!$V$3:$V$9,プルダウンデータリスト!$W$3:$W$9,)))) -> - | I79: - | J79: - | K79: =IF(D79="","-",_xlfn.XLOOKUP(D79,プルダウンデータリスト!$V$2:$V$9,プルダウンデータリスト!$X$2:$X$9,"-")) -> - | L79: -
A80: 40 | G80: =IF($D80="","-",IF($E80="","-",IF($D80="製材（製材・集成材・ＣＬＴ等）",IF($F80="","-",_xlfn.XLOOKUP('シート2-2-2'!$F80,プルダウンデータリスト!$AC$2:$AC$65,プルダウンデータリスト!$AD$2:$AD$65)),_xlfn.XLOOKUP('シート2-2-2'!$D80,プルダウンデータリスト!$V$3:$V$9,プルダウンデータリスト!$W$3:$W$9,)))) -> - | I80: - | J80: - | K80: =IF(D80="","-",_xlfn.XLOOKUP(D80,プルダウンデータリスト!$V$2:$V$9,プルダウンデータリスト!$X$2:$X$9,"-")) -> - | L80: -
A81: 41 | G81: =IF($D81="","-",IF($E81="","-",IF($D81="製材（製材・集成材・ＣＬＴ等）",IF($F81="","-",_xlfn.XLOOKUP('シート2-2-2'!$F81,プルダウンデータリスト!$AC$2:$AC$65,プルダウンデータリスト!$AD$2:$AD$65)),_xlfn.XLOOKUP('シート2-2-2'!$D81,プルダウンデータリスト!$V$3:$V$9,プルダウンデータリスト!$W$3:$W$9,)))) -> - | I81: - | J81: - | K81: =IF(D81="","-",_xlfn.XLOOKUP(D81,プルダウンデータリスト!$V$2:$V$9,プルダウンデータリスト!$X$2:$X$9,"-")) -> - | L81: -
A82: 42 | G82: =IF($D82="","-",IF($E82="","-",IF($D82="製材（製材・集成材・ＣＬＴ等）",IF($F82="","-",_xlfn.XLOOKUP('シート2-2-2'!$F82,プルダウンデータリスト!$AC$2:$AC$65,プルダウンデータリスト!$AD$2:$AD$65)),_xlfn.XLOOKUP('シート2-2-2'!$D82,プルダウンデータリスト!$V$3:$V$9,プルダウンデータリスト!$W$3:$W$9,)))) -> - | I82: - | J82: - | K82: =IF(D82="","-",_xlfn.XLOOKUP(D82,プルダウンデータリスト!$V$2:$V$9,プルダウンデータリスト!$X$2:$X$9,"-")) -> - | L82: -
A83: 43 | G83: =IF($D83="","-",IF($E83="","-",IF($D83="製材（製材・集成材・ＣＬＴ等）",IF($F83="","-",_xlfn.XLOOKUP('シート2-2-2'!$F83,プルダウンデータリスト!$AC$2:$AC$65,プルダウンデータリスト!$AD$2:$AD$65)),_xlfn.XLOOKUP('シート2-2-2'!$D83,プルダウンデータリスト!$V$3:$V$9,プルダウンデータリスト!$W$3:$W$9,)))) -> - | I83: - | J83: - | K83: =IF(D83="","-",_xlfn.XLOOKUP(D83,プルダウンデータリスト!$V$2:$V$9,プルダウンデータリスト!$X$2:$X$9,"-")) -> - | L83: -
A84: 44 | G84: =IF($D84="","-",IF($E84="","-",IF($D84="製材（製材・集成材・ＣＬＴ等）",IF($F84="","-",_xlfn.XLOOKUP('シート2-2-2'!$F84,プルダウンデータリスト!$AC$2:$AC$65,プルダウンデータリスト!$AD$2:$AD$65)),_xlfn.XLOOKUP('シート2-2-2'!$D84,プルダウンデータリスト!$V$3:$V$9,プルダウンデータリスト!$W$3:$W$9,)))) -> - | I84: - | J84: - | K84: =IF(D84="","-",_xlfn.XLOOKUP(D84,プルダウンデータリスト!$V$2:$V$9,プルダウンデータリスト!$X$2:$X$9,"-")) -> - | L84: -
A85: 45 | G85: =IF($D85="","-",IF($E85="","-",IF($D85="製材（製材・集成材・ＣＬＴ等）",IF($F85="","-",_xlfn.XLOOKUP('シート2-2-2'!$F85,プルダウンデータリスト!$AC$2:$AC$65,プルダウンデータリスト!$AD$2:$AD$65)),_xlfn.XLOOKUP('シート2-2-2'!$D85,プルダウンデータリスト!$V$3:$V$9,プルダウンデータリスト!$W$3:$W$9,)))) -> - | I85: - | J85: - | K85: =IF(D85="","-",_xlfn.XLOOKUP(D85,プルダウンデータリスト!$V$2:$V$9,プルダウンデータリスト!$X$2:$X$9,"-")) -> - | L85: -
A86: 46 | G86: =IF($D86="","-",IF($E86="","-",IF($D86="製材（製材・集成材・ＣＬＴ等）",IF($F86="","-",_xlfn.XLOOKUP('シート2-2-2'!$F86,プルダウンデータリスト!$AC$2:$AC$65,プルダウンデータリスト!$AD$2:$AD$65)),_xlfn.XLOOKUP('シート2-2-2'!$D86,プルダウンデータリスト!$V$3:$V$9,プルダウンデータリスト!$W$3:$W$9,)))) -> - | I86: - | J86: - | K86: =IF(D86="","-",_xlfn.XLOOKUP(D86,プルダウンデータリスト!$V$2:$V$9,プルダウンデータリスト!$X$2:$X$9,"-")) -> - | L86: -
A87: 47 | G87: =IF($D87="","-",IF($E87="","-",IF($D87="製材（製材・集成材・ＣＬＴ等）",IF($F87="","-",_xlfn.XLOOKUP('シート2-2-2'!$F87,プルダウンデータリスト!$AC$2:$AC$65,プルダウンデータリスト!$AD$2:$AD$65)),_xlfn.XLOOKUP('シート2-2-2'!$D87,プルダウンデータリスト!$V$3:$V$9,プルダウンデータリスト!$W$3:$W$9,)))) -> - | I87: - | J87: - | K87: =IF(D87="","-",_xlfn.XLOOKUP(D87,プルダウンデータリスト!$V$2:$V$9,プルダウンデータリスト!$X$2:$X$9,"-")) -> - | L87: -
A88: 48 | G88: =IF($D88="","-",IF($E88="","-",IF($D88="製材（製材・集成材・ＣＬＴ等）",IF($F88="","-",_xlfn.XLOOKUP('シート2-2-2'!$F88,プルダウンデータリスト!$AC$2:$AC$65,プルダウンデータリスト!$AD$2:$AD$65)),_xlfn.XLOOKUP('シート2-2-2'!$D88,プルダウンデータリスト!$V$3:$V$9,プルダウンデータリスト!$W$3:$W$9,)))) -> - | I88: - | J88: - | K88: =IF(D88="","-",_xlfn.XLOOKUP(D88,プルダウンデータリスト!$V$2:$V$9,プルダウンデータリスト!$X$2:$X$9,"-")) -> - | L88: -
A89: 49 | G89: =IF($D89="","-",IF($E89="","-",IF($D89="製材（製材・集成材・ＣＬＴ等）",IF($F89="","-",_xlfn.XLOOKUP('シート2-2-2'!$F89,プルダウンデータリスト!$AC$2:$AC$65,プルダウンデータリスト!$AD$2:$AD$65)),_xlfn.XLOOKUP('シート2-2-2'!$D89,プルダウンデータリスト!$V$3:$V$9,プルダウンデータリスト!$W$3:$W$9,)))) -> - | I89: - | J89: - | K89: =IF(D89="","-",_xlfn.XLOOKUP(D89,プルダウンデータリスト!$V$2:$V$9,プルダウンデータリスト!$X$2:$X$9,"-")) -> - | L89: -
A90: 50 | G90: =IF($D90="","-",IF($E90="","-",IF($D90="製材（製材・集成材・ＣＬＴ等）",IF($F90="","-",_xlfn.XLOOKUP('シート2-2-2'!$F90,プルダウンデータリスト!$AC$2:$AC$65,プルダウンデータリスト!$AD$2:$AD$65)),_xlfn.XLOOKUP('シート2-2-2'!$D90,プルダウンデータリスト!$V$3:$V$9,プルダウンデータリスト!$W$3:$W$9,)))) -> - | I90: - | J90: - | K90: =IF(D90="","-",_xlfn.XLOOKUP(D90,プルダウンデータリスト!$V$2:$V$9,プルダウンデータリスト!$X$2:$X$9,"-")) -> - | L90: -
A91: 51 | G91: =IF($D91="","-",IF($E91="","-",IF($D91="製材（製材・集成材・ＣＬＴ等）",IF($F91="","-",_xlfn.XLOOKUP('シート2-2-2'!$F91,プルダウンデータリスト!$AC$2:$AC$65,プルダウンデータリスト!$AD$2:$AD$65)),_xlfn.XLOOKUP('シート2-2-2'!$D91,プルダウンデータリスト!$V$3:$V$9,プルダウンデータリスト!$W$3:$W$9,)))) -> - | I91: - | J91: - | K91: =IF(D91="","-",_xlfn.XLOOKUP(D91,プルダウンデータリスト!$V$2:$V$9,プルダウンデータリスト!$X$2:$X$9,"-")) -> - | L91: -
A92: 52 | G92: =IF($D92="","-",IF($E92="","-",IF($D92="製材（製材・集成材・ＣＬＴ等）",IF($F92="","-",_xlfn.XLOOKUP('シート2-2-2'!$F92,プルダウンデータリスト!$AC$2:$AC$65,プルダウンデータリスト!$AD$2:$AD$65)),_xlfn.XLOOKUP('シート2-2-2'!$D92,プルダウンデータリスト!$V$3:$V$9,プルダウンデータリスト!$W$3:$W$9,)))) -> - | I92: - | J92: - | K92: =IF(D92="","-",_xlfn.XLOOKUP(D92,プルダウンデータリスト!$V$2:$V$9,プルダウンデータリスト!$X$2:$X$9,"-")) -> - | L92: -
A93: 53 | G93: =IF($D93="","-",IF($E93="","-",IF($D93="製材（製材・集成材・ＣＬＴ等）",IF($F93="","-",_xlfn.XLOOKUP('シート2-2-2'!$F93,プルダウンデータリスト!$AC$2:$AC$65,プルダウンデータリスト!$AD$2:$AD$65)),_xlfn.XLOOKUP('シート2-2-2'!$D93,プルダウンデータリスト!$V$3:$V$9,プルダウンデータリスト!$W$3:$W$9,)))) -> - | I93: - | J93: - | K93: =IF(D93="","-",_xlfn.XLOOKUP(D93,プルダウンデータリスト!$V$2:$V$9,プルダウンデータリスト!$X$2:$X$9,"-")) -> - | L93: -
A94: 54 | G94: =IF($D94="","-",IF($E94="","-",IF($D94="製材（製材・集成材・ＣＬＴ等）",IF($F94="","-",_xlfn.XLOOKUP('シート2-2-2'!$F94,プルダウンデータリスト!$AC$2:$AC$65,プルダウンデータリスト!$AD$2:$AD$65)),_xlfn.XLOOKUP('シート2-2-2'!$D94,プルダウンデータリスト!$V$3:$V$9,プルダウンデータリスト!$W$3:$W$9,)))) -> - | I94: - | J94: - | K94: =IF(D94="","-",_xlfn.XLOOKUP(D94,プルダウンデータリスト!$V$2:$V$9,プルダウンデータリスト!$X$2:$X$9,"-")) -> - | L94: -
A95: 55 | G95: =IF($D95="","-",IF($E95="","-",IF($D95="製材（製材・集成材・ＣＬＴ等）",IF($F95="","-",_xlfn.XLOOKUP('シート2-2-2'!$F95,プルダウンデータリスト!$AC$2:$AC$65,プルダウンデータリスト!$AD$2:$AD$65)),_xlfn.XLOOKUP('シート2-2-2'!$D95,プルダウンデータリスト!$V$3:$V$9,プルダウンデータリスト!$W$3:$W$9,)))) -> - | I95: - | J95: - | K95: =IF(D95="","-",_xlfn.XLOOKUP(D95,プルダウンデータリスト!$V$2:$V$9,プルダウンデータリスト!$X$2:$X$9,"-")) -> - | L95: -
A96: 56 | G96: =IF($D96="","-",IF($E96="","-",IF($D96="製材（製材・集成材・ＣＬＴ等）",IF($F96="","-",_xlfn.XLOOKUP('シート2-2-2'!$F96,プルダウンデータリスト!$AC$2:$AC$65,プルダウンデータリスト!$AD$2:$AD$65)),_xlfn.XLOOKUP('シート2-2-2'!$D96,プルダウンデータリスト!$V$3:$V$9,プルダウンデータリスト!$W$3:$W$9,)))) -> - | I96: - | J96: - | K96: =IF(D96="","-",_xlfn.XLOOKUP(D96,プルダウンデータリスト!$V$2:$V$9,プルダウンデータリスト!$X$2:$X$9,"-")) -> - | L96: -
A97: 57 | G97: =IF($D97="","-",IF($E97="","-",IF($D97="製材（製材・集成材・ＣＬＴ等）",IF($F97="","-",_xlfn.XLOOKUP('シート2-2-2'!$F97,プルダウンデータリスト!$AC$2:$AC$65,プルダウンデータリスト!$AD$2:$AD$65)),_xlfn.XLOOKUP('シート2-2-2'!$D97,プルダウンデータリスト!$V$3:$V$9,プルダウンデータリスト!$W$3:$W$9,)))) -> - | I97: - | J97: - | K97: =IF(D97="","-",_xlfn.XLOOKUP(D97,プルダウンデータリスト!$V$2:$V$9,プルダウンデータリスト!$X$2:$X$9,"-")) -> - | L97: -
A98: 58 | G98: =IF($D98="","-",IF($E98="","-",IF($D98="製材（製材・集成材・ＣＬＴ等）",IF($F98="","-",_xlfn.XLOOKUP('シート2-2-2'!$F98,プルダウンデータリスト!$AC$2:$AC$65,プルダウンデータリスト!$AD$2:$AD$65)),_xlfn.XLOOKUP('シート2-2-2'!$D98,プルダウンデータリスト!$V$3:$V$9,プルダウンデータリスト!$W$3:$W$9,)))) -> - | I98: - | J98: - | K98: =IF(D98="","-",_xlfn.XLOOKUP(D98,プルダウンデータリスト!$V$2:$V$9,プルダウンデータリスト!$X$2:$X$9,"-")) -> - | L98: -
A99: 59 | G99: =IF($D99="","-",IF($E99="","-",IF($D99="製材（製材・集成材・ＣＬＴ等）",IF($F99="","-",_xlfn.XLOOKUP('シート2-2-2'!$F99,プルダウンデータリスト!$AC$2:$AC$65,プルダウンデータリスト!$AD$2:$AD$65)),_xlfn.XLOOKUP('シート2-2-2'!$D99,プルダウンデータリスト!$V$3:$V$9,プルダウンデータリスト!$W$3:$W$9,)))) -> - | I99: - | J99: - | K99: =IF(D99="","-",_xlfn.XLOOKUP(D99,プルダウンデータリスト!$V$2:$V$9,プルダウンデータリスト!$X$2:$X$9,"-")) -> - | L99: -
A100: 60 | G100: =IF($D100="","-",IF($E100="","-",IF($D100="製材（製材・集成材・ＣＬＴ等）",IF($F100="","-",_xlfn.XLOOKUP('シート2-2-2'!$F100,プルダウンデータリスト!$AC$2:$AC$65,プルダウンデータリスト!$AD$2:$AD$65)),_xlfn.XLOOKUP('シート2-2-2'!$D100,プルダウンデータリスト!$V$3:$V$9,プルダウンデータリスト!$W$3:$W$9,)))) -> - | I100: - | J100: - | K100: =IF(D100="","-",_xlfn.XLOOKUP(D100,プルダウンデータリスト!$V$2:$V$9,プルダウンデータリスト!$X$2:$X$9,"-")) -> - | L100: -
A101: 61 | G101: =IF($D101="","-",IF($E101="","-",IF($D101="製材（製材・集成材・ＣＬＴ等）",IF($F101="","-",_xlfn.XLOOKUP('シート2-2-2'!$F101,プルダウンデータリスト!$AC$2:$AC$65,プルダウンデータリスト!$AD$2:$AD$65)),_xlfn.XLOOKUP('シート2-2-2'!$D101,プルダウンデータリスト!$V$3:$V$9,プルダウンデータリスト!$W$3:$W$9,)))) -> - | I101: - | J101: - | K101: =IF(D101="","-",_xlfn.XLOOKUP(D101,プルダウンデータリスト!$V$2:$V$9,プルダウンデータリスト!$X$2:$X$9,"-")) -> - | L101: -
A102: 62 | G102: =IF($D102="","-",IF($E102="","-",IF($D102="製材（製材・集成材・ＣＬＴ等）",IF($F102="","-",_xlfn.XLOOKUP('シート2-2-2'!$F102,プルダウンデータリスト!$AC$2:$AC$65,プルダウンデータリスト!$AD$2:$AD$65)),_xlfn.XLOOKUP('シート2-2-2'!$D102,プルダウンデータリスト!$V$3:$V$9,プルダウンデータリスト!$W$3:$W$9,)))) -> - | I102: - | J102: - | K102: =IF(D102="","-",_xlfn.XLOOKUP(D102,プルダウンデータリスト!$V$2:$V$9,プルダウンデータリスト!$X$2:$X$9,"-")) -> - | L102: -
A103: 63 | G103: =IF($D103="","-",IF($E103="","-",IF($D103="製材（製材・集成材・ＣＬＴ等）",IF($F103="","-",_xlfn.XLOOKUP('シート2-2-2'!$F103,プルダウンデータリスト!$AC$2:$AC$65,プルダウンデータリスト!$AD$2:$AD$65)),_xlfn.XLOOKUP('シート2-2-2'!$D103,プルダウンデータリスト!$V$3:$V$9,プルダウンデータリスト!$W$3:$W$9,)))) -> - | I103: - | J103: - | K103: =IF(D103="","-",_xlfn.XLOOKUP(D103,プルダウンデータリスト!$V$2:$V$9,プルダウンデータリスト!$X$2:$X$9,"-")) -> - | L103: -
A104: 64 | G104: =IF($D104="","-",IF($E104="","-",IF($D104="製材（製材・集成材・ＣＬＴ等）",IF($F104="","-",_xlfn.XLOOKUP('シート2-2-2'!$F104,プルダウンデータリスト!$AC$2:$AC$65,プルダウンデータリスト!$AD$2:$AD$65)),_xlfn.XLOOKUP('シート2-2-2'!$D104,プルダウンデータリスト!$V$3:$V$9,プルダウンデータリスト!$W$3:$W$9,)))) -> - | I104: - | J104: - | K104: =IF(D104="","-",_xlfn.XLOOKUP(D104,プルダウンデータリスト!$V$2:$V$9,プルダウンデータリスト!$X$2:$X$9,"-")) -> - | L104: -
A105: 65 | G105: =IF($D105="","-",IF($E105="","-",IF($D105="製材（製材・集成材・ＣＬＴ等）",IF($F105="","-",_xlfn.XLOOKUP('シート2-2-2'!$F105,プルダウンデータリスト!$AC$2:$AC$65,プルダウンデータリスト!$AD$2:$AD$65)),_xlfn.XLOOKUP('シート2-2-2'!$D105,プルダウンデータリスト!$V$3:$V$9,プルダウンデータリスト!$W$3:$W$9,)))) -> - | I105: =IF(E105="","-",E105*C105) -> - | J105: =IF(H105="","-",H105*C105) -> - | K105: =IF(D105="","-",_xlfn.XLOOKUP(D105,プルダウンデータリスト!$V$2:$V$9,プルダウンデータリスト!$X$2:$X$9,"-")) -> - | L105: -
A106: 66 | G106: =IF($D106="","-",IF($E106="","-",IF($D106="製材（製材・集成材・ＣＬＴ等）",IF($F106="","-",_xlfn.XLOOKUP('シート2-2-2'!$F106,プルダウンデータリスト!$AC$2:$AC$65,プルダウンデータリスト!$AD$2:$AD$65)),_xlfn.XLOOKUP('シート2-2-2'!$D106,プルダウンデータリスト!$V$3:$V$9,プルダウンデータリスト!$W$3:$W$9,)))) -> - | I106: - | J106: - | K106: =IF(D106="","-",_xlfn.XLOOKUP(D106,プルダウンデータリスト!$V$2:$V$9,プルダウンデータリスト!$X$2:$X$9,"-")) -> - | L106: =IFERROR(IF(LEN(E106)>0,I106*G106*K106,IF(LEN(H106)>0,J106*K106/1000,"-")),"-") -> -
A107: 67 | G107: =IF($D107="","-",IF($E107="","-",IF($D107="製材（製材・集成材・ＣＬＴ等）",IF($F107="","-",_xlfn.XLOOKUP('シート2-2-2'!$F107,プルダウンデータリスト!$AC$2:$AC$65,プルダウンデータリスト!$AD$2:$AD$65)),_xlfn.XLOOKUP('シート2-2-2'!$D107,プルダウンデータリスト!$V$3:$V$9,プルダウンデータリスト!$W$3:$W$9,)))) -> - | I107: - | J107: - | K107: =IF(D107="","-",_xlfn.XLOOKUP(D107,プルダウンデータリスト!$V$2:$V$9,プルダウンデータリスト!$X$2:$X$9,"-")) -> - | L107: -
A108: 68 | G108: =IF($D108="","-",IF($E108="","-",IF($D108="製材（製材・集成材・ＣＬＴ等）",IF($F108="","-",_xlfn.XLOOKUP('シート2-2-2'!$F108,プルダウンデータリスト!$AC$2:$AC$65,プルダウンデータリスト!$AD$2:$AD$65)),_xlfn.XLOOKUP('シート2-2-2'!$D108,プルダウンデータリスト!$V$3:$V$9,プルダウンデータリスト!$W$3:$W$9,)))) -> - | I108: - | J108: - | K108: =IF(D108="","-",_xlfn.XLOOKUP(D108,プルダウンデータリスト!$V$2:$V$9,プルダウンデータリスト!$X$2:$X$9,"-")) -> - | L108: -
A109: 69 | G109: =IF($D109="","-",IF($E109="","-",IF($D109="製材（製材・集成材・ＣＬＴ等）",IF($F109="","-",_xlfn.XLOOKUP('シート2-2-2'!$F109,プルダウンデータリスト!$AC$2:$AC$65,プルダウンデータリスト!$AD$2:$AD$65)),_xlfn.XLOOKUP('シート2-2-2'!$D109,プルダウンデータリスト!$V$3:$V$9,プルダウンデータリスト!$W$3:$W$9,)))) -> - | I109: - | J109: - | K109: =IF(D109="","-",_xlfn.XLOOKUP(D109,プルダウンデータリスト!$V$2:$V$9,プルダウンデータリスト!$X$2:$X$9,"-")) -> - | L109: -
A110: 70 | G110: =IF($D110="","-",IF($E110="","-",IF($D110="製材（製材・集成材・ＣＬＴ等）",IF($F110="","-",_xlfn.XLOOKUP('シート2-2-2'!$F110,プルダウンデータリスト!$AC$2:$AC$65,プルダウンデータリスト!$AD$2:$AD$65)),_xlfn.XLOOKUP('シート2-2-2'!$D110,プルダウンデータリスト!$V$3:$V$9,プルダウンデータリスト!$W$3:$W$9,)))) -> - | I110: - | J110: - | K110: =IF(D110="","-",_xlfn.XLOOKUP(D110,プルダウンデータリスト!$V$2:$V$9,プルダウンデータリスト!$X$2:$X$9,"-")) -> - | L110: -
A111: 71 | G111: =IF($D111="","-",IF($E111="","-",IF($D111="製材（製材・集成材・ＣＬＴ等）",IF($F111="","-",_xlfn.XLOOKUP('シート2-2-2'!$F111,プルダウンデータリスト!$AC$2:$AC$65,プルダウンデータリスト!$AD$2:$AD$65)),_xlfn.XLOOKUP('シート2-2-2'!$D111,プルダウンデータリスト!$V$3:$V$9,プルダウンデータリスト!$W$3:$W$9,)))) -> - | I111: - | J111: - | K111: =IF(D111="","-",_xlfn.XLOOKUP(D111,プルダウンデータリスト!$V$2:$V$9,プルダウンデータリスト!$X$2:$X$9,"-")) -> - | L111: -
A112: 72 | G112: =IF($D112="","-",IF($E112="","-",IF($D112="製材（製材・集成材・ＣＬＴ等）",IF($F112="","-",_xlfn.XLOOKUP('シート2-2-2'!$F112,プルダウンデータリスト!$AC$2:$AC$65,プルダウンデータリスト!$AD$2:$AD$65)),_xlfn.XLOOKUP('シート2-2-2'!$D112,プルダウンデータリスト!$V$3:$V$9,プルダウンデータリスト!$W$3:$W$9,)))) -> - | I112: - | J112: - | K112: =IF(D112="","-",_xlfn.XLOOKUP(D112,プルダウンデータリスト!$V$2:$V$9,プルダウンデータリスト!$X$2:$X$9,"-")) -> - | L112: -
A113: 73 | G113: =IF($D113="","-",IF($E113="","-",IF($D113="製材（製材・集成材・ＣＬＴ等）",IF($F113="","-",_xlfn.XLOOKUP('シート2-2-2'!$F113,プルダウンデータリスト!$AC$2:$AC$65,プルダウンデータリスト!$AD$2:$AD$65)),_xlfn.XLOOKUP('シート2-2-2'!$D113,プルダウンデータリスト!$V$3:$V$9,プルダウンデータリスト!$W$3:$W$9,)))) -> - | I113: - | J113: - | K113: =IF(D113="","-",_xlfn.XLOOKUP(D113,プルダウンデータリスト!$V$2:$V$9,プルダウンデータリスト!$X$2:$X$9,"-")) -> - | L113: -
A114: 74 | G114: =IF($D114="","-",IF($E114="","-",IF($D114="製材（製材・集成材・ＣＬＴ等）",IF($F114="","-",_xlfn.XLOOKUP('シート2-2-2'!$F114,プルダウンデータリスト!$AC$2:$AC$65,プルダウンデータリスト!$AD$2:$AD$65)),_xlfn.XLOOKUP('シート2-2-2'!$D114,プルダウンデータリスト!$V$3:$V$9,プルダウンデータリスト!$W$3:$W$9,)))) -> - | I114: - | J114: - | K114: =IF(D114="","-",_xlfn.XLOOKUP(D114,プルダウンデータリスト!$V$2:$V$9,プルダウンデータリスト!$X$2:$X$9,"-")) -> - | L114: -
A115: 75 | G115: =IF($D115="","-",IF($E115="","-",IF($D115="製材（製材・集成材・ＣＬＴ等）",IF($F115="","-",_xlfn.XLOOKUP('シート2-2-2'!$F115,プルダウンデータリスト!$AC$2:$AC$65,プルダウンデータリスト!$AD$2:$AD$65)),_xlfn.XLOOKUP('シート2-2-2'!$D115,プルダウンデータリスト!$V$3:$V$9,プルダウンデータリスト!$W$3:$W$9,)))) -> - | I115: - | J115: - | K115: =IF(D115="","-",_xlfn.XLOOKUP(D115,プルダウンデータリスト!$V$2:$V$9,プルダウンデータリスト!$X$2:$X$9,"-")) -> - | L115: -
A116: 76 | G116: =IF($D116="","-",IF($E116="","-",IF($D116="製材（製材・集成材・ＣＬＴ等）",IF($F116="","-",_xlfn.XLOOKUP('シート2-2-2'!$F116,プルダウンデータリスト!$AC$2:$AC$65,プルダウンデータリスト!$AD$2:$AD$65)),_xlfn.XLOOKUP('シート2-2-2'!$D116,プルダウンデータリスト!$V$3:$V$9,プルダウンデータリスト!$W$3:$W$9,)))) -> - | I116: - | J116: - | K116: =IF(D116="","-",_xlfn.XLOOKUP(D116,プルダウンデータリスト!$V$2:$V$9,プルダウンデータリスト!$X$2:$X$9,"-")) -> - | L116: -
A117: 77 | G117: =IF($D117="","-",IF($E117="","-",IF($D117="製材（製材・集成材・ＣＬＴ等）",IF($F117="","-",_xlfn.XLOOKUP('シート2-2-2'!$F117,プルダウンデータリスト!$AC$2:$AC$65,プルダウンデータリスト!$AD$2:$AD$65)),_xlfn.XLOOKUP('シート2-2-2'!$D117,プルダウンデータリスト!$V$3:$V$9,プルダウンデータリスト!$W$3:$W$9,)))) -> - | I117: - | J117: - | K117: =IF(D117="","-",_xlfn.XLOOKUP(D117,プルダウンデータリスト!$V$2:$V$9,プルダウンデータリスト!$X$2:$X$9,"-")) -> - | L117: -
A118: 78 | G118: =IF($D118="","-",IF($E118="","-",IF($D118="製材（製材・集成材・ＣＬＴ等）",IF($F118="","-",_xlfn.XLOOKUP('シート2-2-2'!$F118,プルダウンデータリスト!$AC$2:$AC$65,プルダウンデータリスト!$AD$2:$AD$65)),_xlfn.XLOOKUP('シート2-2-2'!$D118,プルダウンデータリスト!$V$3:$V$9,プルダウンデータリスト!$W$3:$W$9,)))) -> - | I118: - | J118: - | K118: =IF(D118="","-",_xlfn.XLOOKUP(D118,プルダウンデータリスト!$V$2:$V$9,プルダウンデータリスト!$X$2:$X$9,"-")) -> - | L118: -
A119: 79 | G119: =IF($D119="","-",IF($E119="","-",IF($D119="製材（製材・集成材・ＣＬＴ等）",IF($F119="","-",_xlfn.XLOOKUP('シート2-2-2'!$F119,プルダウンデータリスト!$AC$2:$AC$65,プルダウンデータリスト!$AD$2:$AD$65)),_xlfn.XLOOKUP('シート2-2-2'!$D119,プルダウンデータリスト!$V$3:$V$9,プルダウンデータリスト!$W$3:$W$9,)))) -> - | I119: - | J119: - | K119: =IF(D119="","-",_xlfn.XLOOKUP(D119,プルダウンデータリスト!$V$2:$V$9,プルダウンデータリスト!$X$2:$X$9,"-")) -> - | L119: -
A120: 80 | G120: =IF($D120="","-",IF($E120="","-",IF($D120="製材（製材・集成材・ＣＬＴ等）",IF($F120="","-",_xlfn.XLOOKUP('シート2-2-2'!$F120,プルダウンデータリスト!$AC$2:$AC$65,プルダウンデータリスト!$AD$2:$AD$65)),_xlfn.XLOOKUP('シート2-2-2'!$D120,プルダウンデータリスト!$V$3:$V$9,プルダウンデータリスト!$W$3:$W$9,)))) -> - | I120: - | J120: - | K120: =IF(D120="","-",_xlfn.XLOOKUP(D120,プルダウンデータリスト!$V$2:$V$9,プルダウンデータリスト!$X$2:$X$9,"-")) -> - | L120: -
A121: 81 | G121: =IF($D121="","-",IF($E121="","-",IF($D121="製材（製材・集成材・ＣＬＴ等）",IF($F121="","-",_xlfn.XLOOKUP('シート2-2-2'!$F121,プルダウンデータリスト!$AC$2:$AC$65,プルダウンデータリスト!$AD$2:$AD$65)),_xlfn.XLOOKUP('シート2-2-2'!$D121,プルダウンデータリスト!$V$3:$V$9,プルダウンデータリスト!$W$3:$W$9,)))) -> - | I121: - | J121: - | K121: =IF(D121="","-",_xlfn.XLOOKUP(D121,プルダウンデータリスト!$V$2:$V$9,プルダウンデータリスト!$X$2:$X$9,"-")) -> - | L121: -
A122: 82 | G122: =IF($D122="","-",IF($E122="","-",IF($D122="製材（製材・集成材・ＣＬＴ等）",IF($F122="","-",_xlfn.XLOOKUP('シート2-2-2'!$F122,プルダウンデータリスト!$AC$2:$AC$65,プルダウンデータリスト!$AD$2:$AD$65)),_xlfn.XLOOKUP('シート2-2-2'!$D122,プルダウンデータリスト!$V$3:$V$9,プルダウンデータリスト!$W$3:$W$9,)))) -> - | I122: - | J122: - | K122: =IF(D122="","-",_xlfn.XLOOKUP(D122,プルダウンデータリスト!$V$2:$V$9,プルダウンデータリスト!$X$2:$X$9,"-")) -> - | L122: -
A123: 83 | G123: =IF($D123="","-",IF($E123="","-",IF($D123="製材（製材・集成材・ＣＬＴ等）",IF($F123="","-",_xlfn.XLOOKUP('シート2-2-2'!$F123,プルダウンデータリスト!$AC$2:$AC$65,プルダウンデータリスト!$AD$2:$AD$65)),_xlfn.XLOOKUP('シート2-2-2'!$D123,プルダウンデータリスト!$V$3:$V$9,プルダウンデータリスト!$W$3:$W$9,)))) -> - | I123: - | J123: - | K123: =IF(D123="","-",_xlfn.XLOOKUP(D123,プルダウンデータリスト!$V$2:$V$9,プルダウンデータリスト!$X$2:$X$9,"-")) -> - | L123: -
A124: 84 | G124: =IF($D124="","-",IF($E124="","-",IF($D124="製材（製材・集成材・ＣＬＴ等）",IF($F124="","-",_xlfn.XLOOKUP('シート2-2-2'!$F124,プルダウンデータリスト!$AC$2:$AC$65,プルダウンデータリスト!$AD$2:$AD$65)),_xlfn.XLOOKUP('シート2-2-2'!$D124,プルダウンデータリスト!$V$3:$V$9,プルダウンデータリスト!$W$3:$W$9,)))) -> - | I124: - | J124: - | K124: =IF(D124="","-",_xlfn.XLOOKUP(D124,プルダウンデータリスト!$V$2:$V$9,プルダウンデータリスト!$X$2:$X$9,"-")) -> - | L124: -
A125: 85 | G125: =IF($D125="","-",IF($E125="","-",IF($D125="製材（製材・集成材・ＣＬＴ等）",IF($F125="","-",_xlfn.XLOOKUP('シート2-2-2'!$F125,プルダウンデータリスト!$AC$2:$AC$65,プルダウンデータリスト!$AD$2:$AD$65)),_xlfn.XLOOKUP('シート2-2-2'!$D125,プルダウンデータリスト!$V$3:$V$9,プルダウンデータリスト!$W$3:$W$9,)))) -> - | I125: - | J125: - | K125: =IF(D125="","-",_xlfn.XLOOKUP(D125,プルダウンデータリスト!$V$2:$V$9,プルダウンデータリスト!$X$2:$X$9,"-")) -> - | L125: -
A126: 86 | G126: =IF($D126="","-",IF($E126="","-",IF($D126="製材（製材・集成材・ＣＬＴ等）",IF($F126="","-",_xlfn.XLOOKUP('シート2-2-2'!$F126,プルダウンデータリスト!$AC$2:$AC$65,プルダウンデータリスト!$AD$2:$AD$65)),_xlfn.XLOOKUP('シート2-2-2'!$D126,プルダウンデータリスト!$V$3:$V$9,プルダウンデータリスト!$W$3:$W$9,)))) -> - | I126: - | J126: - | K126: =IF(D126="","-",_xlfn.XLOOKUP(D126,プルダウンデータリスト!$V$2:$V$9,プルダウンデータリスト!$X$2:$X$9,"-")) -> - | L126: -
A127: 87 | G127: =IF($D127="","-",IF($E127="","-",IF($D127="製材（製材・集成材・ＣＬＴ等）",IF($F127="","-",_xlfn.XLOOKUP('シート2-2-2'!$F127,プルダウンデータリスト!$AC$2:$AC$65,プルダウンデータリスト!$AD$2:$AD$65)),_xlfn.XLOOKUP('シート2-2-2'!$D127,プルダウンデータリスト!$V$3:$V$9,プルダウンデータリスト!$W$3:$W$9,)))) -> - | I127: - | J127: - | K127: =IF(D127="","-",_xlfn.XLOOKUP(D127,プルダウンデータリスト!$V$2:$V$9,プルダウンデータリスト!$X$2:$X$9,"-")) -> - | L127: -
A128: 88 | G128: =IF($D128="","-",IF($E128="","-",IF($D128="製材（製材・集成材・ＣＬＴ等）",IF($F128="","-",_xlfn.XLOOKUP('シート2-2-2'!$F128,プルダウンデータリスト!$AC$2:$AC$65,プルダウンデータリスト!$AD$2:$AD$65)),_xlfn.XLOOKUP('シート2-2-2'!$D128,プルダウンデータリスト!$V$3:$V$9,プルダウンデータリスト!$W$3:$W$9,)))) -> - | I128: - | J128: - | K128: =IF(D128="","-",_xlfn.XLOOKUP(D128,プルダウンデータリスト!$V$2:$V$9,プルダウンデータリスト!$X$2:$X$9,"-")) -> - | L128: -
A129: 89 | G129: =IF($D129="","-",IF($E129="","-",IF($D129="製材（製材・集成材・ＣＬＴ等）",IF($F129="","-",_xlfn.XLOOKUP('シート2-2-2'!$F129,プルダウンデータリスト!$AC$2:$AC$65,プルダウンデータリスト!$AD$2:$AD$65)),_xlfn.XLOOKUP('シート2-2-2'!$D129,プルダウンデータリスト!$V$3:$V$9,プルダウンデータリスト!$W$3:$W$9,)))) -> - | I129: - | J129: - | K129: =IF(D129="","-",_xlfn.XLOOKUP(D129,プルダウンデータリスト!$V$2:$V$9,プルダウンデータリスト!$X$2:$X$9,"-")) -> - | L129: -
A130: 90 | G130: =IF($D130="","-",IF($E130="","-",IF($D130="製材（製材・集成材・ＣＬＴ等）",IF($F130="","-",_xlfn.XLOOKUP('シート2-2-2'!$F130,プルダウンデータリスト!$AC$2:$AC$65,プルダウンデータリスト!$AD$2:$AD$65)),_xlfn.XLOOKUP('シート2-2-2'!$D130,プルダウンデータリスト!$V$3:$V$9,プルダウンデータリスト!$W$3:$W$9,)))) -> - | I130: - | J130: - | K130: =IF(D130="","-",_xlfn.XLOOKUP(D130,プルダウンデータリスト!$V$2:$V$9,プルダウンデータリスト!$X$2:$X$9,"-")) -> - | L130: -
A131: 91 | G131: =IF($D131="","-",IF($E131="","-",IF($D131="製材（製材・集成材・ＣＬＴ等）",IF($F131="","-",_xlfn.XLOOKUP('シート2-2-2'!$F131,プルダウンデータリスト!$AC$2:$AC$65,プルダウンデータリスト!$AD$2:$AD$65)),_xlfn.XLOOKUP('シート2-2-2'!$D131,プルダウンデータリスト!$V$3:$V$9,プルダウンデータリスト!$W$3:$W$9,)))) -> - | I131: - | J131: - | K131: =IF(D131="","-",_xlfn.XLOOKUP(D131,プルダウンデータリスト!$V$2:$V$9,プルダウンデータリスト!$X$2:$X$9,"-")) -> - | L131: -
A132: 92 | G132: =IF($D132="","-",IF($E132="","-",IF($D132="製材（製材・集成材・ＣＬＴ等）",IF($F132="","-",_xlfn.XLOOKUP('シート2-2-2'!$F132,プルダウンデータリスト!$AC$2:$AC$65,プルダウンデータリスト!$AD$2:$AD$65)),_xlfn.XLOOKUP('シート2-2-2'!$D132,プルダウンデータリスト!$V$3:$V$9,プルダウンデータリスト!$W$3:$W$9,)))) -> - | I132: - | J132: - | K132: =IF(D132="","-",_xlfn.XLOOKUP(D132,プルダウンデータリスト!$V$2:$V$9,プルダウンデータリスト!$X$2:$X$9,"-")) -> - | L132: -
A133: 93 | G133: =IF($D133="","-",IF($E133="","-",IF($D133="製材（製材・集成材・ＣＬＴ等）",IF($F133="","-",_xlfn.XLOOKUP('シート2-2-2'!$F133,プルダウンデータリスト!$AC$2:$AC$65,プルダウンデータリスト!$AD$2:$AD$65)),_xlfn.XLOOKUP('シート2-2-2'!$D133,プルダウンデータリスト!$V$3:$V$9,プルダウンデータリスト!$W$3:$W$9,)))) -> - | I133: - | J133: - | K133: =IF(D133="","-",_xlfn.XLOOKUP(D133,プルダウンデータリスト!$V$2:$V$9,プルダウンデータリスト!$X$2:$X$9,"-")) -> - | L133: -
A134: 94 | G134: =IF($D134="","-",IF($E134="","-",IF($D134="製材（製材・集成材・ＣＬＴ等）",IF($F134="","-",_xlfn.XLOOKUP('シート2-2-2'!$F134,プルダウンデータリスト!$AC$2:$AC$65,プルダウンデータリスト!$AD$2:$AD$65)),_xlfn.XLOOKUP('シート2-2-2'!$D134,プルダウンデータリスト!$V$3:$V$9,プルダウンデータリスト!$W$3:$W$9,)))) -> - | I134: - | J134: - | K134: =IF(D134="","-",_xlfn.XLOOKUP(D134,プルダウンデータリスト!$V$2:$V$9,プルダウンデータリスト!$X$2:$X$9,"-")) -> - | L134: -
A135: 95 | G135: =IF($D135="","-",IF($E135="","-",IF($D135="製材（製材・集成材・ＣＬＴ等）",IF($F135="","-",_xlfn.XLOOKUP('シート2-2-2'!$F135,プルダウンデータリスト!$AC$2:$AC$65,プルダウンデータリスト!$AD$2:$AD$65)),_xlfn.XLOOKUP('シート2-2-2'!$D135,プルダウンデータリスト!$V$3:$V$9,プルダウンデータリスト!$W$3:$W$9,)))) -> - | I135: - | J135: - | K135: =IF(D135="","-",_xlfn.XLOOKUP(D135,プルダウンデータリスト!$V$2:$V$9,プルダウンデータリスト!$X$2:$X$9,"-")) -> - | L135: -
A136: 96 | G136: =IF($D136="","-",IF($E136="","-",IF($D136="製材（製材・集成材・ＣＬＴ等）",IF($F136="","-",_xlfn.XLOOKUP('シート2-2-2'!$F136,プルダウンデータリスト!$AC$2:$AC$65,プルダウンデータリスト!$AD$2:$AD$65)),_xlfn.XLOOKUP('シート2-2-2'!$D136,プルダウンデータリスト!$V$3:$V$9,プルダウンデータリスト!$W$3:$W$9,)))) -> - | I136: - | J136: - | K136: =IF(D136="","-",_xlfn.XLOOKUP(D136,プルダウンデータリスト!$V$2:$V$9,プルダウンデータリスト!$X$2:$X$9,"-")) -> - | L136: -
A137: 97 | G137: =IF($D137="","-",IF($E137="","-",IF($D137="製材（製材・集成材・ＣＬＴ等）",IF($F137="","-",_xlfn.XLOOKUP('シート2-2-2'!$F137,プルダウンデータリスト!$AC$2:$AC$65,プルダウンデータリスト!$AD$2:$AD$65)),_xlfn.XLOOKUP('シート2-2-2'!$D137,プルダウンデータリスト!$V$3:$V$9,プルダウンデータリスト!$W$3:$W$9,)))) -> - | I137: =IF(E137="","-",E137*C137) -> - | J137: =IF(H137="","-",H137*C137) -> - | K137: =IF(D137="","-",_xlfn.XLOOKUP(D137,プルダウンデータリスト!$V$2:$V$9,プルダウンデータリスト!$X$2:$X$9,"-")) -> - | L137: -
A138: 98 | G138: =IF($D138="","-",IF($E138="","-",IF($D138="製材（製材・集成材・ＣＬＴ等）",IF($F138="","-",_xlfn.XLOOKUP('シート2-2-2'!$F138,プルダウンデータリスト!$AC$2:$AC$65,プルダウンデータリスト!$AD$2:$AD$65)),_xlfn.XLOOKUP('シート2-2-2'!$D138,プルダウンデータリスト!$V$3:$V$9,プルダウンデータリスト!$W$3:$W$9,)))) -> - | I138: - | J138: - | K138: =IF(D138="","-",_xlfn.XLOOKUP(D138,プルダウンデータリスト!$V$2:$V$9,プルダウンデータリスト!$X$2:$X$9,"-")) -> - | L138: -
A139: 99 | G139: =IF($D139="","-",IF($E139="","-",IF($D139="製材（製材・集成材・ＣＬＴ等）",IF($F139="","-",_xlfn.XLOOKUP('シート2-2-2'!$F139,プルダウンデータリスト!$AC$2:$AC$65,プルダウンデータリスト!$AD$2:$AD$65)),_xlfn.XLOOKUP('シート2-2-2'!$D139,プルダウンデータリスト!$V$3:$V$9,プルダウンデータリスト!$W$3:$W$9,)))) -> - | I139: - | J139: - | K139: =IF(D139="","-",_xlfn.XLOOKUP(D139,プルダウンデータリスト!$V$2:$V$9,プルダウンデータリスト!$X$2:$X$9,"-")) -> - | L139: -
A140: 100 | G140: =IF($D140="","-",IF($E140="","-",IF($D140="製材（製材・集成材・ＣＬＴ等）",IF($F140="","-",_xlfn.XLOOKUP('シート2-2-2'!$F140,プルダウンデータリスト!$AC$2:$AC$65,プルダウンデータリスト!$AD$2:$AD$65)),_xlfn.XLOOKUP('シート2-2-2'!$D140,プルダウンデータリスト!$V$3:$V$9,プルダウンデータリスト!$W$3:$W$9,)))) -> - | I140: - | J140: - | K140: =IF(D140="","-",_xlfn.XLOOKUP(D140,プルダウンデータリスト!$V$2:$V$9,プルダウンデータリスト!$X$2:$X$9,"-")) -> - | L140: -
A141: 101 | G141: =IF($D141="","-",IF($E141="","-",IF($D141="製材（製材・集成材・ＣＬＴ等）",IF($F141="","-",_xlfn.XLOOKUP('シート2-2-2'!$F141,プルダウンデータリスト!$AC$2:$AC$65,プルダウンデータリスト!$AD$2:$AD$65)),_xlfn.XLOOKUP('シート2-2-2'!$D141,プルダウンデータリスト!$V$3:$V$9,プルダウンデータリスト!$W$3:$W$9,)))) -> - | I141: - | J141: - | K141: =IF(D141="","-",_xlfn.XLOOKUP(D141,プルダウンデータリスト!$V$2:$V$9,プルダウンデータリスト!$X$2:$X$9,"-")) -> - | L141: -
A142: 102 | G142: =IF($D142="","-",IF($E142="","-",IF($D142="製材（製材・集成材・ＣＬＴ等）",IF($F142="","-",_xlfn.XLOOKUP('シート2-2-2'!$F142,プルダウンデータリスト!$AC$2:$AC$65,プルダウンデータリスト!$AD$2:$AD$65)),_xlfn.XLOOKUP('シート2-2-2'!$D142,プルダウンデータリスト!$V$3:$V$9,プルダウンデータリスト!$W$3:$W$9,)))) -> - | I142: - | J142: - | K142: =IF(D142="","-",_xlfn.XLOOKUP(D142,プルダウンデータリスト!$V$2:$V$9,プルダウンデータリスト!$X$2:$X$9,"-")) -> - | L142: -
A143: 103 | G143: =IF($D143="","-",IF($E143="","-",IF($D143="製材（製材・集成材・ＣＬＴ等）",IF($F143="","-",_xlfn.XLOOKUP('シート2-2-2'!$F143,プルダウンデータリスト!$AC$2:$AC$65,プルダウンデータリスト!$AD$2:$AD$65)),_xlfn.XLOOKUP('シート2-2-2'!$D143,プルダウンデータリスト!$V$3:$V$9,プルダウンデータリスト!$W$3:$W$9,)))) -> - | I143: - | J143: - | K143: =IF(D143="","-",_xlfn.XLOOKUP(D143,プルダウンデータリスト!$V$2:$V$9,プルダウンデータリスト!$X$2:$X$9,"-")) -> - | L143: -
A144: 104 | G144: =IF($D144="","-",IF($E144="","-",IF($D144="製材（製材・集成材・ＣＬＴ等）",IF($F144="","-",_xlfn.XLOOKUP('シート2-2-2'!$F144,プルダウンデータリスト!$AC$2:$AC$65,プルダウンデータリスト!$AD$2:$AD$65)),_xlfn.XLOOKUP('シート2-2-2'!$D144,プルダウンデータリスト!$V$3:$V$9,プルダウンデータリスト!$W$3:$W$9,)))) -> - | I144: - | J144: - | K144: =IF(D144="","-",_xlfn.XLOOKUP(D144,プルダウンデータリスト!$V$2:$V$9,プルダウンデータリスト!$X$2:$X$9,"-")) -> - | L144: -
A145: 105 | G145: =IF($D145="","-",IF($E145="","-",IF($D145="製材（製材・集成材・ＣＬＴ等）",IF($F145="","-",_xlfn.XLOOKUP('シート2-2-2'!$F145,プルダウンデータリスト!$AC$2:$AC$65,プルダウンデータリスト!$AD$2:$AD$65)),_xlfn.XLOOKUP('シート2-2-2'!$D145,プルダウンデータリスト!$V$3:$V$9,プルダウンデータリスト!$W$3:$W$9,)))) -> - | I145: - | J145: - | K145: =IF(D145="","-",_xlfn.XLOOKUP(D145,プルダウンデータリスト!$V$2:$V$9,プルダウンデータリスト!$X$2:$X$9,"-")) -> - | L145: -
A146: 106 | G146: =IF($D146="","-",IF($E146="","-",IF($D146="製材（製材・集成材・ＣＬＴ等）",IF($F146="","-",_xlfn.XLOOKUP('シート2-2-2'!$F146,プルダウンデータリスト!$AC$2:$AC$65,プルダウンデータリスト!$AD$2:$AD$65)),_xlfn.XLOOKUP('シート2-2-2'!$D146,プルダウンデータリスト!$V$3:$V$9,プルダウンデータリスト!$W$3:$W$9,)))) -> - | I146: - | J146: - | K146: =IF(D146="","-",_xlfn.XLOOKUP(D146,プルダウンデータリスト!$V$2:$V$9,プルダウンデータリスト!$X$2:$X$9,"-")) -> - | L146: -
A147: 107 | G147: =IF($D147="","-",IF($E147="","-",IF($D147="製材（製材・集成材・ＣＬＴ等）",IF($F147="","-",_xlfn.XLOOKUP('シート2-2-2'!$F147,プルダウンデータリスト!$AC$2:$AC$65,プルダウンデータリスト!$AD$2:$AD$65)),_xlfn.XLOOKUP('シート2-2-2'!$D147,プルダウンデータリスト!$V$3:$V$9,プルダウンデータリスト!$W$3:$W$9,)))) -> - | I147: - | J147: - | K147: =IF(D147="","-",_xlfn.XLOOKUP(D147,プルダウンデータリスト!$V$2:$V$9,プルダウンデータリスト!$X$2:$X$9,"-")) -> - | L147: -
A148: 108 | G148: =IF($D148="","-",IF($E148="","-",IF($D148="製材（製材・集成材・ＣＬＴ等）",IF($F148="","-",_xlfn.XLOOKUP('シート2-2-2'!$F148,プルダウンデータリスト!$AC$2:$AC$65,プルダウンデータリスト!$AD$2:$AD$65)),_xlfn.XLOOKUP('シート2-2-2'!$D148,プルダウンデータリスト!$V$3:$V$9,プルダウンデータリスト!$W$3:$W$9,)))) -> - | I148: - | J148: - | K148: =IF(D148="","-",_xlfn.XLOOKUP(D148,プルダウンデータリスト!$V$2:$V$9,プルダウンデータリスト!$X$2:$X$9,"-")) -> - | L148: -
A149: 109 | G149: =IF($D149="","-",IF($E149="","-",IF($D149="製材（製材・集成材・ＣＬＴ等）",IF($F149="","-",_xlfn.XLOOKUP('シート2-2-2'!$F149,プルダウンデータリスト!$AC$2:$AC$65,プルダウンデータリスト!$AD$2:$AD$65)),_xlfn.XLOOKUP('シート2-2-2'!$D149,プルダウンデータリスト!$V$3:$V$9,プルダウンデータリスト!$W$3:$W$9,)))) -> - | I149: - | J149: - | K149: =IF(D149="","-",_xlfn.XLOOKUP(D149,プルダウンデータリスト!$V$2:$V$9,プルダウンデータリスト!$X$2:$X$9,"-")) -> - | L149: -
A150: 110 | G150: =IF($D150="","-",IF($E150="","-",IF($D150="製材（製材・集成材・ＣＬＴ等）",IF($F150="","-",_xlfn.XLOOKUP('シート2-2-2'!$F150,プルダウンデータリスト!$AC$2:$AC$65,プルダウンデータリスト!$AD$2:$AD$65)),_xlfn.XLOOKUP('シート2-2-2'!$D150,プルダウンデータリスト!$V$3:$V$9,プルダウンデータリスト!$W$3:$W$9,)))) -> - | I150: - | J150: - | K150: =IF(D150="","-",_xlfn.XLOOKUP(D150,プルダウンデータリスト!$V$2:$V$9,プルダウンデータリスト!$X$2:$X$9,"-")) -> - | L150: -
A151: 111 | G151: =IF($D151="","-",IF($E151="","-",IF($D151="製材（製材・集成材・ＣＬＴ等）",IF($F151="","-",_xlfn.XLOOKUP('シート2-2-2'!$F151,プルダウンデータリスト!$AC$2:$AC$65,プルダウンデータリスト!$AD$2:$AD$65)),_xlfn.XLOOKUP('シート2-2-2'!$D151,プルダウンデータリスト!$V$3:$V$9,プルダウンデータリスト!$W$3:$W$9,)))) -> - | I151: - | J151: - | K151: =IF(D151="","-",_xlfn.XLOOKUP(D151,プルダウンデータリスト!$V$2:$V$9,プルダウンデータリスト!$X$2:$X$9,"-")) -> - | L151: -
A152: 112 | G152: =IF($D152="","-",IF($E152="","-",IF($D152="製材（製材・集成材・ＣＬＴ等）",IF($F152="","-",_xlfn.XLOOKUP('シート2-2-2'!$F152,プルダウンデータリスト!$AC$2:$AC$65,プルダウンデータリスト!$AD$2:$AD$65)),_xlfn.XLOOKUP('シート2-2-2'!$D152,プルダウンデータリスト!$V$3:$V$9,プルダウンデータリスト!$W$3:$W$9,)))) -> - | I152: - | J152: - | K152: =IF(D152="","-",_xlfn.XLOOKUP(D152,プルダウンデータリスト!$V$2:$V$9,プルダウンデータリスト!$X$2:$X$9,"-")) -> - | L152: -
A153: 113 | G153: =IF($D153="","-",IF($E153="","-",IF($D153="製材（製材・集成材・ＣＬＴ等）",IF($F153="","-",_xlfn.XLOOKUP('シート2-2-2'!$F153,プルダウンデータリスト!$AC$2:$AC$65,プルダウンデータリスト!$AD$2:$AD$65)),_xlfn.XLOOKUP('シート2-2-2'!$D153,プルダウンデータリスト!$V$3:$V$9,プルダウンデータリスト!$W$3:$W$9,)))) -> - | I153: - | J153: - | K153: =IF(D153="","-",_xlfn.XLOOKUP(D153,プルダウンデータリスト!$V$2:$V$9,プルダウンデータリスト!$X$2:$X$9,"-")) -> - | L153: -
A154: 114 | G154: =IF($D154="","-",IF($E154="","-",IF($D154="製材（製材・集成材・ＣＬＴ等）",IF($F154="","-",_xlfn.XLOOKUP('シート2-2-2'!$F154,プルダウンデータリスト!$AC$2:$AC$65,プルダウンデータリスト!$AD$2:$AD$65)),_xlfn.XLOOKUP('シート2-2-2'!$D154,プルダウンデータリスト!$V$3:$V$9,プルダウンデータリスト!$W$3:$W$9,)))) -> - | I154: - | J154: - | K154: =IF(D154="","-",_xlfn.XLOOKUP(D154,プルダウンデータリスト!$V$2:$V$9,プルダウンデータリスト!$X$2:$X$9,"-")) -> - | L154: -
A155: 115 | G155: =IF($D155="","-",IF($E155="","-",IF($D155="製材（製材・集成材・ＣＬＴ等）",IF($F155="","-",_xlfn.XLOOKUP('シート2-2-2'!$F155,プルダウンデータリスト!$AC$2:$AC$65,プルダウンデータリスト!$AD$2:$AD$65)),_xlfn.XLOOKUP('シート2-2-2'!$D155,プルダウンデータリスト!$V$3:$V$9,プルダウンデータリスト!$W$3:$W$9,)))) -> - | I155: - | J155: - | K155: =IF(D155="","-",_xlfn.XLOOKUP(D155,プルダウンデータリスト!$V$2:$V$9,プルダウンデータリスト!$X$2:$X$9,"-")) -> - | L155: -
A156: 116 | G156: =IF($D156="","-",IF($E156="","-",IF($D156="製材（製材・集成材・ＣＬＴ等）",IF($F156="","-",_xlfn.XLOOKUP('シート2-2-2'!$F156,プルダウンデータリスト!$AC$2:$AC$65,プルダウンデータリスト!$AD$2:$AD$65)),_xlfn.XLOOKUP('シート2-2-2'!$D156,プルダウンデータリスト!$V$3:$V$9,プルダウンデータリスト!$W$3:$W$9,)))) -> - | I156: - | J156: - | K156: =IF(D156="","-",_xlfn.XLOOKUP(D156,プルダウンデータリスト!$V$2:$V$9,プルダウンデータリスト!$X$2:$X$9,"-")) -> - | L156: -
A157: 117 | G157: =IF($D157="","-",IF($E157="","-",IF($D157="製材（製材・集成材・ＣＬＴ等）",IF($F157="","-",_xlfn.XLOOKUP('シート2-2-2'!$F157,プルダウンデータリスト!$AC$2:$AC$65,プルダウンデータリスト!$AD$2:$AD$65)),_xlfn.XLOOKUP('シート2-2-2'!$D157,プルダウンデータリスト!$V$3:$V$9,プルダウンデータリスト!$W$3:$W$9,)))) -> - | I157: - | J157: - | K157: =IF(D157="","-",_xlfn.XLOOKUP(D157,プルダウンデータリスト!$V$2:$V$9,プルダウンデータリスト!$X$2:$X$9,"-")) -> - | L157: -
A158: 118 | G158: =IF($D158="","-",IF($E158="","-",IF($D158="製材（製材・集成材・ＣＬＴ等）",IF($F158="","-",_xlfn.XLOOKUP('シート2-2-2'!$F158,プルダウンデータリスト!$AC$2:$AC$65,プルダウンデータリスト!$AD$2:$AD$65)),_xlfn.XLOOKUP('シート2-2-2'!$D158,プルダウンデータリスト!$V$3:$V$9,プルダウンデータリスト!$W$3:$W$9,)))) -> - | I158: - | J158: - | K158: =IF(D158="","-",_xlfn.XLOOKUP(D158,プルダウンデータリスト!$V$2:$V$9,プルダウンデータリスト!$X$2:$X$9,"-")) -> - | L158: -
A159: 119 | G159: =IF($D159="","-",IF($E159="","-",IF($D159="製材（製材・集成材・ＣＬＴ等）",IF($F159="","-",_xlfn.XLOOKUP('シート2-2-2'!$F159,プルダウンデータリスト!$AC$2:$AC$65,プルダウンデータリスト!$AD$2:$AD$65)),_xlfn.XLOOKUP('シート2-2-2'!$D159,プルダウンデータリスト!$V$3:$V$9,プルダウンデータリスト!$W$3:$W$9,)))) -> - | I159: - | J159: - | K159: =IF(D159="","-",_xlfn.XLOOKUP(D159,プルダウンデータリスト!$V$2:$V$9,プルダウンデータリスト!$X$2:$X$9,"-")) -> - | L159: -
A160: 120 | G160: =IF($D160="","-",IF($E160="","-",IF($D160="製材（製材・集成材・ＣＬＴ等）",IF($F160="","-",_xlfn.XLOOKUP('シート2-2-2'!$F160,プルダウンデータリスト!$AC$2:$AC$65,プルダウンデータリスト!$AD$2:$AD$65)),_xlfn.XLOOKUP('シート2-2-2'!$D160,プルダウンデータリスト!$V$3:$V$9,プルダウンデータリスト!$W$3:$W$9,)))) -> - | I160: - | J160: - | K160: =IF(D160="","-",_xlfn.XLOOKUP(D160,プルダウンデータリスト!$V$2:$V$9,プルダウンデータリスト!$X$2:$X$9,"-")) -> - | L160: -
A161: 121 | G161: =IF($D161="","-",IF($E161="","-",IF($D161="製材（製材・集成材・ＣＬＴ等）",IF($F161="","-",_xlfn.XLOOKUP('シート2-2-2'!$F161,プルダウンデータリスト!$AC$2:$AC$65,プルダウンデータリスト!$AD$2:$AD$65)),_xlfn.XLOOKUP('シート2-2-2'!$D161,プルダウンデータリスト!$V$3:$V$9,プルダウンデータリスト!$W$3:$W$9,)))) -> - | I161: - | J161: - | K161: =IF(D161="","-",_xlfn.XLOOKUP(D161,プルダウンデータリスト!$V$2:$V$9,プルダウンデータリスト!$X$2:$X$9,"-")) -> - | L161: -
A162: 122 | G162: =IF($D162="","-",IF($E162="","-",IF($D162="製材（製材・集成材・ＣＬＴ等）",IF($F162="","-",_xlfn.XLOOKUP('シート2-2-2'!$F162,プルダウンデータリスト!$AC$2:$AC$65,プルダウンデータリスト!$AD$2:$AD$65)),_xlfn.XLOOKUP('シート2-2-2'!$D162,プルダウンデータリスト!$V$3:$V$9,プルダウンデータリスト!$W$3:$W$9,)))) -> - | I162: - | J162: - | K162: =IF(D162="","-",_xlfn.XLOOKUP(D162,プルダウンデータリスト!$V$2:$V$9,プルダウンデータリスト!$X$2:$X$9,"-")) -> - | L162: -
A163: 123 | G163: =IF($D163="","-",IF($E163="","-",IF($D163="製材（製材・集成材・ＣＬＴ等）",IF($F163="","-",_xlfn.XLOOKUP('シート2-2-2'!$F163,プルダウンデータリスト!$AC$2:$AC$65,プルダウンデータリスト!$AD$2:$AD$65)),_xlfn.XLOOKUP('シート2-2-2'!$D163,プルダウンデータリスト!$V$3:$V$9,プルダウンデータリスト!$W$3:$W$9,)))) -> - | I163: - | J163: - | K163: =IF(D163="","-",_xlfn.XLOOKUP(D163,プルダウンデータリスト!$V$2:$V$9,プルダウンデータリスト!$X$2:$X$9,"-")) -> - | L163: -
A164: 124 | G164: =IF($D164="","-",IF($E164="","-",IF($D164="製材（製材・集成材・ＣＬＴ等）",IF($F164="","-",_xlfn.XLOOKUP('シート2-2-2'!$F164,プルダウンデータリスト!$AC$2:$AC$65,プルダウンデータリスト!$AD$2:$AD$65)),_xlfn.XLOOKUP('シート2-2-2'!$D164,プルダウンデータリスト!$V$3:$V$9,プルダウンデータリスト!$W$3:$W$9,)))) -> - | I164: - | J164: - | K164: =IF(D164="","-",_xlfn.XLOOKUP(D164,プルダウンデータリスト!$V$2:$V$9,プルダウンデータリスト!$X$2:$X$9,"-")) -> - | L164: -
A165: 125 | G165: =IF($D165="","-",IF($E165="","-",IF($D165="製材（製材・集成材・ＣＬＴ等）",IF($F165="","-",_xlfn.XLOOKUP('シート2-2-2'!$F165,プルダウンデータリスト!$AC$2:$AC$65,プルダウンデータリスト!$AD$2:$AD$65)),_xlfn.XLOOKUP('シート2-2-2'!$D165,プルダウンデータリスト!$V$3:$V$9,プルダウンデータリスト!$W$3:$W$9,)))) -> - | I165: - | J165: - | K165: =IF(D165="","-",_xlfn.XLOOKUP(D165,プルダウンデータリスト!$V$2:$V$9,プルダウンデータリスト!$X$2:$X$9,"-")) -> - | L165: -
A166: 126 | G166: =IF($D166="","-",IF($E166="","-",IF($D166="製材（製材・集成材・ＣＬＴ等）",IF($F166="","-",_xlfn.XLOOKUP('シート2-2-2'!$F166,プルダウンデータリスト!$AC$2:$AC$65,プルダウンデータリスト!$AD$2:$AD$65)),_xlfn.XLOOKUP('シート2-2-2'!$D166,プルダウンデータリスト!$V$3:$V$9,プルダウンデータリスト!$W$3:$W$9,)))) -> - | I166: - | J166: - | K166: =IF(D166="","-",_xlfn.XLOOKUP(D166,プルダウンデータリスト!$V$2:$V$9,プルダウンデータリスト!$X$2:$X$9,"-")) -> - | L166: -
A167: 127 | G167: =IF($D167="","-",IF($E167="","-",IF($D167="製材（製材・集成材・ＣＬＴ等）",IF($F167="","-",_xlfn.XLOOKUP('シート2-2-2'!$F167,プルダウンデータリスト!$AC$2:$AC$65,プルダウンデータリスト!$AD$2:$AD$65)),_xlfn.XLOOKUP('シート2-2-2'!$D167,プルダウンデータリスト!$V$3:$V$9,プルダウンデータリスト!$W$3:$W$9,)))) -> - | I167: - | J167: - | K167: =IF(D167="","-",_xlfn.XLOOKUP(D167,プルダウンデータリスト!$V$2:$V$9,プルダウンデータリスト!$X$2:$X$9,"-")) -> - | L167: -
A168: 128 | G168: =IF($D168="","-",IF($E168="","-",IF($D168="製材（製材・集成材・ＣＬＴ等）",IF($F168="","-",_xlfn.XLOOKUP('シート2-2-2'!$F168,プルダウンデータリスト!$AC$2:$AC$65,プルダウンデータリスト!$AD$2:$AD$65)),_xlfn.XLOOKUP('シート2-2-2'!$D168,プルダウンデータリスト!$V$3:$V$9,プルダウンデータリスト!$W$3:$W$9,)))) -> - | I168: - | J168: - | K168: =IF(D168="","-",_xlfn.XLOOKUP(D168,プルダウンデータリスト!$V$2:$V$9,プルダウンデータリスト!$X$2:$X$9,"-")) -> - | L168: -
A169: 129 | G169: =IF($D169="","-",IF($E169="","-",IF($D169="製材（製材・集成材・ＣＬＴ等）",IF($F169="","-",_xlfn.XLOOKUP('シート2-2-2'!$F169,プルダウンデータリスト!$AC$2:$AC$65,プルダウンデータリスト!$AD$2:$AD$65)),_xlfn.XLOOKUP('シート2-2-2'!$D169,プルダウンデータリスト!$V$3:$V$9,プルダウンデータリスト!$W$3:$W$9,)))) -> - | I169: =IF(E169="","-",E169*C169) -> - | J169: =IF(H169="","-",H169*C169) -> - | K169: =IF(D169="","-",_xlfn.XLOOKUP(D169,プルダウンデータリスト!$V$2:$V$9,プルダウンデータリスト!$X$2:$X$9,"-")) -> - | L169: -
A170: 130 | G170: =IF($D170="","-",IF($E170="","-",IF($D170="製材（製材・集成材・ＣＬＴ等）",IF($F170="","-",_xlfn.XLOOKUP('シート2-2-2'!$F170,プルダウンデータリスト!$AC$2:$AC$65,プルダウンデータリスト!$AD$2:$AD$65)),_xlfn.XLOOKUP('シート2-2-2'!$D170,プルダウンデータリスト!$V$3:$V$9,プルダウンデータリスト!$W$3:$W$9,)))) -> - | I170: - | J170: - | K170: =IF(D170="","-",_xlfn.XLOOKUP(D170,プルダウンデータリスト!$V$2:$V$9,プルダウンデータリスト!$X$2:$X$9,"-")) -> - | L170: =IFERROR(IF(LEN(E170)>0,I170*G170*K170,IF(LEN(H170)>0,J170*K170/1000,"-")),"-") -> -
A171: 131 | G171: =IF($D171="","-",IF($E171="","-",IF($D171="製材（製材・集成材・ＣＬＴ等）",IF($F171="","-",_xlfn.XLOOKUP('シート2-2-2'!$F171,プルダウンデータリスト!$AC$2:$AC$65,プルダウンデータリスト!$AD$2:$AD$65)),_xlfn.XLOOKUP('シート2-2-2'!$D171,プルダウンデータリスト!$V$3:$V$9,プルダウンデータリスト!$W$3:$W$9,)))) -> - | I171: - | J171: - | K171: =IF(D171="","-",_xlfn.XLOOKUP(D171,プルダウンデータリスト!$V$2:$V$9,プルダウンデータリスト!$X$2:$X$9,"-")) -> - | L171: -
A172: 132 | G172: =IF($D172="","-",IF($E172="","-",IF($D172="製材（製材・集成材・ＣＬＴ等）",IF($F172="","-",_xlfn.XLOOKUP('シート2-2-2'!$F172,プルダウンデータリスト!$AC$2:$AC$65,プルダウンデータリスト!$AD$2:$AD$65)),_xlfn.XLOOKUP('シート2-2-2'!$D172,プルダウンデータリスト!$V$3:$V$9,プルダウンデータリスト!$W$3:$W$9,)))) -> - | I172: - | J172: - | K172: =IF(D172="","-",_xlfn.XLOOKUP(D172,プルダウンデータリスト!$V$2:$V$9,プルダウンデータリスト!$X$2:$X$9,"-")) -> - | L172: -
A173: 133 | G173: =IF($D173="","-",IF($E173="","-",IF($D173="製材（製材・集成材・ＣＬＴ等）",IF($F173="","-",_xlfn.XLOOKUP('シート2-2-2'!$F173,プルダウンデータリスト!$AC$2:$AC$65,プルダウンデータリスト!$AD$2:$AD$65)),_xlfn.XLOOKUP('シート2-2-2'!$D173,プルダウンデータリスト!$V$3:$V$9,プルダウンデータリスト!$W$3:$W$9,)))) -> - | I173: - | J173: - | K173: =IF(D173="","-",_xlfn.XLOOKUP(D173,プルダウンデータリスト!$V$2:$V$9,プルダウンデータリスト!$X$2:$X$9,"-")) -> - | L173: -
A174: 134 | G174: =IF($D174="","-",IF($E174="","-",IF($D174="製材（製材・集成材・ＣＬＴ等）",IF($F174="","-",_xlfn.XLOOKUP('シート2-2-2'!$F174,プルダウンデータリスト!$AC$2:$AC$65,プルダウンデータリスト!$AD$2:$AD$65)),_xlfn.XLOOKUP('シート2-2-2'!$D174,プルダウンデータリスト!$V$3:$V$9,プルダウンデータリスト!$W$3:$W$9,)))) -> - | I174: - | J174: - | K174: =IF(D174="","-",_xlfn.XLOOKUP(D174,プルダウンデータリスト!$V$2:$V$9,プルダウンデータリスト!$X$2:$X$9,"-")) -> - | L174: -
A175: 135 | G175: =IF($D175="","-",IF($E175="","-",IF($D175="製材（製材・集成材・ＣＬＴ等）",IF($F175="","-",_xlfn.XLOOKUP('シート2-2-2'!$F175,プルダウンデータリスト!$AC$2:$AC$65,プルダウンデータリスト!$AD$2:$AD$65)),_xlfn.XLOOKUP('シート2-2-2'!$D175,プルダウンデータリスト!$V$3:$V$9,プルダウンデータリスト!$W$3:$W$9,)))) -> - | I175: - | J175: - | K175: =IF(D175="","-",_xlfn.XLOOKUP(D175,プルダウンデータリスト!$V$2:$V$9,プルダウンデータリスト!$X$2:$X$9,"-")) -> - | L175: -
A176: 136 | G176: =IF($D176="","-",IF($E176="","-",IF($D176="製材（製材・集成材・ＣＬＴ等）",IF($F176="","-",_xlfn.XLOOKUP('シート2-2-2'!$F176,プルダウンデータリスト!$AC$2:$AC$65,プルダウンデータリスト!$AD$2:$AD$65)),_xlfn.XLOOKUP('シート2-2-2'!$D176,プルダウンデータリスト!$V$3:$V$9,プルダウンデータリスト!$W$3:$W$9,)))) -> - | I176: - | J176: - | K176: =IF(D176="","-",_xlfn.XLOOKUP(D176,プルダウンデータリスト!$V$2:$V$9,プルダウンデータリスト!$X$2:$X$9,"-")) -> - | L176: -
A177: 137 | G177: =IF($D177="","-",IF($E177="","-",IF($D177="製材（製材・集成材・ＣＬＴ等）",IF($F177="","-",_xlfn.XLOOKUP('シート2-2-2'!$F177,プルダウンデータリスト!$AC$2:$AC$65,プルダウンデータリスト!$AD$2:$AD$65)),_xlfn.XLOOKUP('シート2-2-2'!$D177,プルダウンデータリスト!$V$3:$V$9,プルダウンデータリスト!$W$3:$W$9,)))) -> - | I177: - | J177: - | K177: =IF(D177="","-",_xlfn.XLOOKUP(D177,プルダウンデータリスト!$V$2:$V$9,プルダウンデータリスト!$X$2:$X$9,"-")) -> - | L177: -
A178: 138 | G178: =IF($D178="","-",IF($E178="","-",IF($D178="製材（製材・集成材・ＣＬＴ等）",IF($F178="","-",_xlfn.XLOOKUP('シート2-2-2'!$F178,プルダウンデータリスト!$AC$2:$AC$65,プルダウンデータリスト!$AD$2:$AD$65)),_xlfn.XLOOKUP('シート2-2-2'!$D178,プルダウンデータリスト!$V$3:$V$9,プルダウンデータリスト!$W$3:$W$9,)))) -> - | I178: - | J178: - | K178: =IF(D178="","-",_xlfn.XLOOKUP(D178,プルダウンデータリスト!$V$2:$V$9,プルダウンデータリスト!$X$2:$X$9,"-")) -> - | L178: -
A179: 139 | G179: =IF($D179="","-",IF($E179="","-",IF($D179="製材（製材・集成材・ＣＬＴ等）",IF($F179="","-",_xlfn.XLOOKUP('シート2-2-2'!$F179,プルダウンデータリスト!$AC$2:$AC$65,プルダウンデータリスト!$AD$2:$AD$65)),_xlfn.XLOOKUP('シート2-2-2'!$D179,プルダウンデータリスト!$V$3:$V$9,プルダウンデータリスト!$W$3:$W$9,)))) -> - | I179: - | J179: - | K179: =IF(D179="","-",_xlfn.XLOOKUP(D179,プルダウンデータリスト!$V$2:$V$9,プルダウンデータリスト!$X$2:$X$9,"-")) -> - | L179: -
A180: 140 | G180: =IF($D180="","-",IF($E180="","-",IF($D180="製材（製材・集成材・ＣＬＴ等）",IF($F180="","-",_xlfn.XLOOKUP('シート2-2-2'!$F180,プルダウンデータリスト!$AC$2:$AC$65,プルダウンデータリスト!$AD$2:$AD$65)),_xlfn.XLOOKUP('シート2-2-2'!$D180,プルダウンデータリスト!$V$3:$V$9,プルダウンデータリスト!$W$3:$W$9,)))) -> - | I180: - | J180: - | K180: =IF(D180="","-",_xlfn.XLOOKUP(D180,プルダウンデータリスト!$V$2:$V$9,プルダウンデータリスト!$X$2:$X$9,"-")) -> - | L180: -
A181: 141 | G181: =IF($D181="","-",IF($E181="","-",IF($D181="製材（製材・集成材・ＣＬＴ等）",IF($F181="","-",_xlfn.XLOOKUP('シート2-2-2'!$F181,プルダウンデータリスト!$AC$2:$AC$65,プルダウンデータリスト!$AD$2:$AD$65)),_xlfn.XLOOKUP('シート2-2-2'!$D181,プルダウンデータリスト!$V$3:$V$9,プルダウンデータリスト!$W$3:$W$9,)))) -> - | I181: - | J181: - | K181: =IF(D181="","-",_xlfn.XLOOKUP(D181,プルダウンデータリスト!$V$2:$V$9,プルダウンデータリスト!$X$2:$X$9,"-")) -> - | L181: -
A182: 142 | G182: =IF($D182="","-",IF($E182="","-",IF($D182="製材（製材・集成材・ＣＬＴ等）",IF($F182="","-",_xlfn.XLOOKUP('シート2-2-2'!$F182,プルダウンデータリスト!$AC$2:$AC$65,プルダウンデータリスト!$AD$2:$AD$65)),_xlfn.XLOOKUP('シート2-2-2'!$D182,プルダウンデータリスト!$V$3:$V$9,プルダウンデータリスト!$W$3:$W$9,)))) -> - | I182: - | J182: - | K182: =IF(D182="","-",_xlfn.XLOOKUP(D182,プルダウンデータリスト!$V$2:$V$9,プルダウンデータリスト!$X$2:$X$9,"-")) -> - | L182: -
A183: 143 | G183: =IF($D183="","-",IF($E183="","-",IF($D183="製材（製材・集成材・ＣＬＴ等）",IF($F183="","-",_xlfn.XLOOKUP('シート2-2-2'!$F183,プルダウンデータリスト!$AC$2:$AC$65,プルダウンデータリスト!$AD$2:$AD$65)),_xlfn.XLOOKUP('シート2-2-2'!$D183,プルダウンデータリスト!$V$3:$V$9,プルダウンデータリスト!$W$3:$W$9,)))) -> - | I183: - | J183: - | K183: =IF(D183="","-",_xlfn.XLOOKUP(D183,プルダウンデータリスト!$V$2:$V$9,プルダウンデータリスト!$X$2:$X$9,"-")) -> - | L183: -
A184: 144 | G184: =IF($D184="","-",IF($E184="","-",IF($D184="製材（製材・集成材・ＣＬＴ等）",IF($F184="","-",_xlfn.XLOOKUP('シート2-2-2'!$F184,プルダウンデータリスト!$AC$2:$AC$65,プルダウンデータリスト!$AD$2:$AD$65)),_xlfn.XLOOKUP('シート2-2-2'!$D184,プルダウンデータリスト!$V$3:$V$9,プルダウンデータリスト!$W$3:$W$9,)))) -> - | I184: - | J184: - | K184: =IF(D184="","-",_xlfn.XLOOKUP(D184,プルダウンデータリスト!$V$2:$V$9,プルダウンデータリスト!$X$2:$X$9,"-")) -> - | L184: -
A185: 145 | G185: =IF($D185="","-",IF($E185="","-",IF($D185="製材（製材・集成材・ＣＬＴ等）",IF($F185="","-",_xlfn.XLOOKUP('シート2-2-2'!$F185,プルダウンデータリスト!$AC$2:$AC$65,プルダウンデータリスト!$AD$2:$AD$65)),_xlfn.XLOOKUP('シート2-2-2'!$D185,プルダウンデータリスト!$V$3:$V$9,プルダウンデータリスト!$W$3:$W$9,)))) -> - | I185: - | J185: - | K185: =IF(D185="","-",_xlfn.XLOOKUP(D185,プルダウンデータリスト!$V$2:$V$9,プルダウンデータリスト!$X$2:$X$9,"-")) -> - | L185: -
A186: 146 | G186: =IF($D186="","-",IF($E186="","-",IF($D186="製材（製材・集成材・ＣＬＴ等）",IF($F186="","-",_xlfn.XLOOKUP('シート2-2-2'!$F186,プルダウンデータリスト!$AC$2:$AC$65,プルダウンデータリスト!$AD$2:$AD$65)),_xlfn.XLOOKUP('シート2-2-2'!$D186,プルダウンデータリスト!$V$3:$V$9,プルダウンデータリスト!$W$3:$W$9,)))) -> - | I186: - | J186: - | K186: =IF(D186="","-",_xlfn.XLOOKUP(D186,プルダウンデータリスト!$V$2:$V$9,プルダウンデータリスト!$X$2:$X$9,"-")) -> - | L186: -
A187: 147 | G187: =IF($D187="","-",IF($E187="","-",IF($D187="製材（製材・集成材・ＣＬＴ等）",IF($F187="","-",_xlfn.XLOOKUP('シート2-2-2'!$F187,プルダウンデータリスト!$AC$2:$AC$65,プルダウンデータリスト!$AD$2:$AD$65)),_xlfn.XLOOKUP('シート2-2-2'!$D187,プルダウンデータリスト!$V$3:$V$9,プルダウンデータリスト!$W$3:$W$9,)))) -> - | I187: - | J187: - | K187: =IF(D187="","-",_xlfn.XLOOKUP(D187,プルダウンデータリスト!$V$2:$V$9,プルダウンデータリスト!$X$2:$X$9,"-")) -> - | L187: -
A188: 148 | G188: =IF($D188="","-",IF($E188="","-",IF($D188="製材（製材・集成材・ＣＬＴ等）",IF($F188="","-",_xlfn.XLOOKUP('シート2-2-2'!$F188,プルダウンデータリスト!$AC$2:$AC$65,プルダウンデータリスト!$AD$2:$AD$65)),_xlfn.XLOOKUP('シート2-2-2'!$D188,プルダウンデータリスト!$V$3:$V$9,プルダウンデータリスト!$W$3:$W$9,)))) -> - | I188: - | J188: - | K188: =IF(D188="","-",_xlfn.XLOOKUP(D188,プルダウンデータリスト!$V$2:$V$9,プルダウンデータリスト!$X$2:$X$9,"-")) -> - | L188: -
A189: 149 | G189: =IF($D189="","-",IF($E189="","-",IF($D189="製材（製材・集成材・ＣＬＴ等）",IF($F189="","-",_xlfn.XLOOKUP('シート2-2-2'!$F189,プルダウンデータリスト!$AC$2:$AC$65,プルダウンデータリスト!$AD$2:$AD$65)),_xlfn.XLOOKUP('シート2-2-2'!$D189,プルダウンデータリスト!$V$3:$V$9,プルダウンデータリスト!$W$3:$W$9,)))) -> - | I189: - | J189: - | K189: =IF(D189="","-",_xlfn.XLOOKUP(D189,プルダウンデータリスト!$V$2:$V$9,プルダウンデータリスト!$X$2:$X$9,"-")) -> - | L189: -
A190: 150 | G190: =IF($D190="","-",IF($E190="","-",IF($D190="製材（製材・集成材・ＣＬＴ等）",IF($F190="","-",_xlfn.XLOOKUP('シート2-2-2'!$F190,プルダウンデータリスト!$AC$2:$AC$65,プルダウンデータリスト!$AD$2:$AD$65)),_xlfn.XLOOKUP('シート2-2-2'!$D190,プルダウンデータリスト!$V$3:$V$9,プルダウンデータリスト!$W$3:$W$9,)))) -> - | I190: - | J190: - | K190: =IF(D190="","-",_xlfn.XLOOKUP(D190,プルダウンデータリスト!$V$2:$V$9,プルダウンデータリスト!$X$2:$X$9,"-")) -> - | L190: -
A191: 151 | G191: =IF($D191="","-",IF($E191="","-",IF($D191="製材（製材・集成材・ＣＬＴ等）",IF($F191="","-",_xlfn.XLOOKUP('シート2-2-2'!$F191,プルダウンデータリスト!$AC$2:$AC$65,プルダウンデータリスト!$AD$2:$AD$65)),_xlfn.XLOOKUP('シート2-2-2'!$D191,プルダウンデータリスト!$V$3:$V$9,プルダウンデータリスト!$W$3:$W$9,)))) -> - | I191: - | J191: - | K191: =IF(D191="","-",_xlfn.XLOOKUP(D191,プルダウンデータリスト!$V$2:$V$9,プルダウンデータリスト!$X$2:$X$9,"-")) -> - | L191: -
A192: 152 | G192: =IF($D192="","-",IF($E192="","-",IF($D192="製材（製材・集成材・ＣＬＴ等）",IF($F192="","-",_xlfn.XLOOKUP('シート2-2-2'!$F192,プルダウンデータリスト!$AC$2:$AC$65,プルダウンデータリスト!$AD$2:$AD$65)),_xlfn.XLOOKUP('シート2-2-2'!$D192,プルダウンデータリスト!$V$3:$V$9,プルダウンデータリスト!$W$3:$W$9,)))) -> - | I192: - | J192: - | K192: =IF(D192="","-",_xlfn.XLOOKUP(D192,プルダウンデータリスト!$V$2:$V$9,プルダウンデータリスト!$X$2:$X$9,"-")) -> - | L192: -
A193: 153 | G193: =IF($D193="","-",IF($E193="","-",IF($D193="製材（製材・集成材・ＣＬＴ等）",IF($F193="","-",_xlfn.XLOOKUP('シート2-2-2'!$F193,プルダウンデータリスト!$AC$2:$AC$65,プルダウンデータリスト!$AD$2:$AD$65)),_xlfn.XLOOKUP('シート2-2-2'!$D193,プルダウンデータリスト!$V$3:$V$9,プルダウンデータリスト!$W$3:$W$9,)))) -> - | I193: - | J193: - | K193: =IF(D193="","-",_xlfn.XLOOKUP(D193,プルダウンデータリスト!$V$2:$V$9,プルダウンデータリスト!$X$2:$X$9,"-")) -> - | L193: -
A194: 154 | G194: =IF($D194="","-",IF($E194="","-",IF($D194="製材（製材・集成材・ＣＬＴ等）",IF($F194="","-",_xlfn.XLOOKUP('シート2-2-2'!$F194,プルダウンデータリスト!$AC$2:$AC$65,プルダウンデータリスト!$AD$2:$AD$65)),_xlfn.XLOOKUP('シート2-2-2'!$D194,プルダウンデータリスト!$V$3:$V$9,プルダウンデータリスト!$W$3:$W$9,)))) -> - | I194: - | J194: - | K194: =IF(D194="","-",_xlfn.XLOOKUP(D194,プルダウンデータリスト!$V$2:$V$9,プルダウンデータリスト!$X$2:$X$9,"-")) -> - | L194: -
A195: 155 | G195: =IF($D195="","-",IF($E195="","-",IF($D195="製材（製材・集成材・ＣＬＴ等）",IF($F195="","-",_xlfn.XLOOKUP('シート2-2-2'!$F195,プルダウンデータリスト!$AC$2:$AC$65,プルダウンデータリスト!$AD$2:$AD$65)),_xlfn.XLOOKUP('シート2-2-2'!$D195,プルダウンデータリスト!$V$3:$V$9,プルダウンデータリスト!$W$3:$W$9,)))) -> - | I195: - | J195: - | K195: =IF(D195="","-",_xlfn.XLOOKUP(D195,プルダウンデータリスト!$V$2:$V$9,プルダウンデータリスト!$X$2:$X$9,"-")) -> - | L195: -
A196: 156 | G196: =IF($D196="","-",IF($E196="","-",IF($D196="製材（製材・集成材・ＣＬＴ等）",IF($F196="","-",_xlfn.XLOOKUP('シート2-2-2'!$F196,プルダウンデータリスト!$AC$2:$AC$65,プルダウンデータリスト!$AD$2:$AD$65)),_xlfn.XLOOKUP('シート2-2-2'!$D196,プルダウンデータリスト!$V$3:$V$9,プルダウンデータリスト!$W$3:$W$9,)))) -> - | I196: - | J196: - | K196: =IF(D196="","-",_xlfn.XLOOKUP(D196,プルダウンデータリスト!$V$2:$V$9,プルダウンデータリスト!$X$2:$X$9,"-")) -> - | L196: -
A197: 157 | G197: =IF($D197="","-",IF($E197="","-",IF($D197="製材（製材・集成材・ＣＬＴ等）",IF($F197="","-",_xlfn.XLOOKUP('シート2-2-2'!$F197,プルダウンデータリスト!$AC$2:$AC$65,プルダウンデータリスト!$AD$2:$AD$65)),_xlfn.XLOOKUP('シート2-2-2'!$D197,プルダウンデータリスト!$V$3:$V$9,プルダウンデータリスト!$W$3:$W$9,)))) -> - | I197: - | J197: - | K197: =IF(D197="","-",_xlfn.XLOOKUP(D197,プルダウンデータリスト!$V$2:$V$9,プルダウンデータリスト!$X$2:$X$9,"-")) -> - | L197: -
A198: 158 | G198: =IF($D198="","-",IF($E198="","-",IF($D198="製材（製材・集成材・ＣＬＴ等）",IF($F198="","-",_xlfn.XLOOKUP('シート2-2-2'!$F198,プルダウンデータリスト!$AC$2:$AC$65,プルダウンデータリスト!$AD$2:$AD$65)),_xlfn.XLOOKUP('シート2-2-2'!$D198,プルダウンデータリスト!$V$3:$V$9,プルダウンデータリスト!$W$3:$W$9,)))) -> - | I198: - | J198: - | K198: =IF(D198="","-",_xlfn.XLOOKUP(D198,プルダウンデータリスト!$V$2:$V$9,プルダウンデータリスト!$X$2:$X$9,"-")) -> - | L198: -
A199: 159 | G199: =IF($D199="","-",IF($E199="","-",IF($D199="製材（製材・集成材・ＣＬＴ等）",IF($F199="","-",_xlfn.XLOOKUP('シート2-2-2'!$F199,プルダウンデータリスト!$AC$2:$AC$65,プルダウンデータリスト!$AD$2:$AD$65)),_xlfn.XLOOKUP('シート2-2-2'!$D199,プルダウンデータリスト!$V$3:$V$9,プルダウンデータリスト!$W$3:$W$9,)))) -> - | I199: - | J199: - | K199: =IF(D199="","-",_xlfn.XLOOKUP(D199,プルダウンデータリスト!$V$2:$V$9,プルダウンデータリスト!$X$2:$X$9,"-")) -> - | L199: -
A200: 160 | G200: =IF($D200="","-",IF($E200="","-",IF($D200="製材（製材・集成材・ＣＬＴ等）",IF($F200="","-",_xlfn.XLOOKUP('シート2-2-2'!$F200,プルダウンデータリスト!$AC$2:$AC$65,プルダウンデータリスト!$AD$2:$AD$65)),_xlfn.XLOOKUP('シート2-2-2'!$D200,プルダウンデータリスト!$V$3:$V$9,プルダウンデータリスト!$W$3:$W$9,)))) -> - | I200: - | J200: - | K200: =IF(D200="","-",_xlfn.XLOOKUP(D200,プルダウンデータリスト!$V$2:$V$9,プルダウンデータリスト!$X$2:$X$9,"-")) -> - | L200: -
A201: 161 | G201: =IF($D201="","-",IF($E201="","-",IF($D201="製材（製材・集成材・ＣＬＴ等）",IF($F201="","-",_xlfn.XLOOKUP('シート2-2-2'!$F201,プルダウンデータリスト!$AC$2:$AC$65,プルダウンデータリスト!$AD$2:$AD$65)),_xlfn.XLOOKUP('シート2-2-2'!$D201,プルダウンデータリスト!$V$3:$V$9,プルダウンデータリスト!$W$3:$W$9,)))) -> - | I201: =IF(E201="","-",E201*C201) -> - | J201: =IF(H201="","-",H201*C201) -> - | K201: =IF(D201="","-",_xlfn.XLOOKUP(D201,プルダウンデータリスト!$V$2:$V$9,プルダウンデータリスト!$X$2:$X$9,"-")) -> - | L201: -
A202: 162 | G202: =IF($D202="","-",IF($E202="","-",IF($D202="製材（製材・集成材・ＣＬＴ等）",IF($F202="","-",_xlfn.XLOOKUP('シート2-2-2'!$F202,プルダウンデータリスト!$AC$2:$AC$65,プルダウンデータリスト!$AD$2:$AD$65)),_xlfn.XLOOKUP('シート2-2-2'!$D202,プルダウンデータリスト!$V$3:$V$9,プルダウンデータリスト!$W$3:$W$9,)))) -> - | I202: - | J202: - | K202: =IF(D202="","-",_xlfn.XLOOKUP(D202,プルダウンデータリスト!$V$2:$V$9,プルダウンデータリスト!$X$2:$X$9,"-")) -> - | L202: -
A203: 163 | G203: =IF($D203="","-",IF($E203="","-",IF($D203="製材（製材・集成材・ＣＬＴ等）",IF($F203="","-",_xlfn.XLOOKUP('シート2-2-2'!$F203,プルダウンデータリスト!$AC$2:$AC$65,プルダウンデータリスト!$AD$2:$AD$65)),_xlfn.XLOOKUP('シート2-2-2'!$D203,プルダウンデータリスト!$V$3:$V$9,プルダウンデータリスト!$W$3:$W$9,)))) -> - | I203: - | J203: - | K203: =IF(D203="","-",_xlfn.XLOOKUP(D203,プルダウンデータリスト!$V$2:$V$9,プルダウンデータリスト!$X$2:$X$9,"-")) -> - | L203: -
A204: 164 | G204: =IF($D204="","-",IF($E204="","-",IF($D204="製材（製材・集成材・ＣＬＴ等）",IF($F204="","-",_xlfn.XLOOKUP('シート2-2-2'!$F204,プルダウンデータリスト!$AC$2:$AC$65,プルダウンデータリスト!$AD$2:$AD$65)),_xlfn.XLOOKUP('シート2-2-2'!$D204,プルダウンデータリスト!$V$3:$V$9,プルダウンデータリスト!$W$3:$W$9,)))) -> - | I204: - | J204: - | K204: =IF(D204="","-",_xlfn.XLOOKUP(D204,プルダウンデータリスト!$V$2:$V$9,プルダウンデータリスト!$X$2:$X$9,"-")) -> - | L204: -
A205: 165 | G205: =IF($D205="","-",IF($E205="","-",IF($D205="製材（製材・集成材・ＣＬＴ等）",IF($F205="","-",_xlfn.XLOOKUP('シート2-2-2'!$F205,プルダウンデータリスト!$AC$2:$AC$65,プルダウンデータリスト!$AD$2:$AD$65)),_xlfn.XLOOKUP('シート2-2-2'!$D205,プルダウンデータリスト!$V$3:$V$9,プルダウンデータリスト!$W$3:$W$9,)))) -> - | I205: - | J205: - | K205: =IF(D205="","-",_xlfn.XLOOKUP(D205,プルダウンデータリスト!$V$2:$V$9,プルダウンデータリスト!$X$2:$X$9,"-")) -> - | L205: -
A206: 166 | G206: =IF($D206="","-",IF($E206="","-",IF($D206="製材（製材・集成材・ＣＬＴ等）",IF($F206="","-",_xlfn.XLOOKUP('シート2-2-2'!$F206,プルダウンデータリスト!$AC$2:$AC$65,プルダウンデータリスト!$AD$2:$AD$65)),_xlfn.XLOOKUP('シート2-2-2'!$D206,プルダウンデータリスト!$V$3:$V$9,プルダウンデータリスト!$W$3:$W$9,)))) -> - | I206: - | J206: - | K206: =IF(D206="","-",_xlfn.XLOOKUP(D206,プルダウンデータリスト!$V$2:$V$9,プルダウンデータリスト!$X$2:$X$9,"-")) -> - | L206: -
A207: 167 | G207: =IF($D207="","-",IF($E207="","-",IF($D207="製材（製材・集成材・ＣＬＴ等）",IF($F207="","-",_xlfn.XLOOKUP('シート2-2-2'!$F207,プルダウンデータリスト!$AC$2:$AC$65,プルダウンデータリスト!$AD$2:$AD$65)),_xlfn.XLOOKUP('シート2-2-2'!$D207,プルダウンデータリスト!$V$3:$V$9,プルダウンデータリスト!$W$3:$W$9,)))) -> - | I207: - | J207: - | K207: =IF(D207="","-",_xlfn.XLOOKUP(D207,プルダウンデータリスト!$V$2:$V$9,プルダウンデータリスト!$X$2:$X$9,"-")) -> - | L207: -
A208: 168 | G208: =IF($D208="","-",IF($E208="","-",IF($D208="製材（製材・集成材・ＣＬＴ等）",IF($F208="","-",_xlfn.XLOOKUP('シート2-2-2'!$F208,プルダウンデータリスト!$AC$2:$AC$65,プルダウンデータリスト!$AD$2:$AD$65)),_xlfn.XLOOKUP('シート2-2-2'!$D208,プルダウンデータリスト!$V$3:$V$9,プルダウンデータリスト!$W$3:$W$9,)))) -> - | I208: - | J208: - | K208: =IF(D208="","-",_xlfn.XLOOKUP(D208,プルダウンデータリスト!$V$2:$V$9,プルダウンデータリスト!$X$2:$X$9,"-")) -> - | L208: -
A209: 169 | G209: =IF($D209="","-",IF($E209="","-",IF($D209="製材（製材・集成材・ＣＬＴ等）",IF($F209="","-",_xlfn.XLOOKUP('シート2-2-2'!$F209,プルダウンデータリスト!$AC$2:$AC$65,プルダウンデータリスト!$AD$2:$AD$65)),_xlfn.XLOOKUP('シート2-2-2'!$D209,プルダウンデータリスト!$V$3:$V$9,プルダウンデータリスト!$W$3:$W$9,)))) -> - | I209: - | J209: - | K209: =IF(D209="","-",_xlfn.XLOOKUP(D209,プルダウンデータリスト!$V$2:$V$9,プルダウンデータリスト!$X$2:$X$9,"-")) -> - | L209: -
A210: 170 | G210: =IF($D210="","-",IF($E210="","-",IF($D210="製材（製材・集成材・ＣＬＴ等）",IF($F210="","-",_xlfn.XLOOKUP('シート2-2-2'!$F210,プルダウンデータリスト!$AC$2:$AC$65,プルダウンデータリスト!$AD$2:$AD$65)),_xlfn.XLOOKUP('シート2-2-2'!$D210,プルダウンデータリスト!$V$3:$V$9,プルダウンデータリスト!$W$3:$W$9,)))) -> - | I210: - | J210: - | K210: =IF(D210="","-",_xlfn.XLOOKUP(D210,プルダウンデータリスト!$V$2:$V$9,プルダウンデータリスト!$X$2:$X$9,"-")) -> - | L210: -
A211: 171 | G211: =IF($D211="","-",IF($E211="","-",IF($D211="製材（製材・集成材・ＣＬＴ等）",IF($F211="","-",_xlfn.XLOOKUP('シート2-2-2'!$F211,プルダウンデータリスト!$AC$2:$AC$65,プルダウンデータリスト!$AD$2:$AD$65)),_xlfn.XLOOKUP('シート2-2-2'!$D211,プルダウンデータリスト!$V$3:$V$9,プルダウンデータリスト!$W$3:$W$9,)))) -> - | I211: - | J211: - | K211: =IF(D211="","-",_xlfn.XLOOKUP(D211,プルダウンデータリスト!$V$2:$V$9,プルダウンデータリスト!$X$2:$X$9,"-")) -> - | L211: -
... 29 more rows

Sheet 係数表2-1
A1: 係数表2-1 変化した炭素蓄積の量（木材）の算定に使用する係数（品目及び樹種の区分ごとの係数）
A3: 係数表2-1-1 品目及び樹種の区分ごとの木材の密度及び炭素含有率
A4: 部材、製品名等の品目区分 | C4: 木材の密度[t/㎥] | D4: 炭素含有率
A5: 製材（製材・集成材・ＣＬＴ等） | C5: 係数表2-1-2参照 | D5: 0.5
A6: 合板（合板・ＬＶＬ） | C6: 0.542 | D6: 0.493
A7: 木質ボード（パーティクルボード） | C7: 0.596 | D7: 0.451
A8: 木質ボード（硬質繊維板） | C8: 0.788 | D8: 0.425
A9: 木質ボード（中質繊維板） | C9: 0.691 | D9: 0.427
A10: 木質ボード（軟質繊維板） | C10: 0.159 | D10: 0.474
A12: （備考）
A13: 品目及び樹種の区分ごとの変化した炭素蓄積の量(木材、t-C)の算定式：
A14: ○木材の材積をもとに算出する場合
A15: 当該品目及び樹種の区分における対象木材の材積(㎥)×木材の密度×炭素含有率
A16: ○木材の重量をもとに算出する場合
A17: 当該品目における対象木材の重量(kg)×炭素含有率
A19: 係数表2-1-2 製材における樹種の区分ごとの木材の密度
A20: 針葉樹 | B20: 樹種 | C20: 木材の密度[t/㎥] | E20: 広葉樹 | F20: 樹種 | G20: 木材の密度[t/㎥]
B21: スギ | C21: 0.33 | F21: イタヤカエデ | G21: 0.57
B22: ヒノキ | C22: 0.38 | F22: セン、ハリギリ | G22: 0.45
B23: アカマツ、メマツ | C23: 0.45 | F23: マカンバ、ウダイカンバ | G23: 0.58
B24: カラマツ | C24: 0.44 | F24: シラカンバ | G24: 0.5
B25: トドマツ、アカトドマツ | C25: 0.35 | F25: オノオレカンバ | G25: 0.78
B26: エゾマツ | C26: 0.37 | F26: アサダ | G26: 0.64
B27: サワラ | C27: 0.3 | F27: キリ | G27: 0.26
B28: ネズコ、クロベ | C28: 0.31 | F28: ツゲ | G28: 0.78
B29: アスナロ | C29: 0.39 | F29: カツラ | G29: 0.44
B30: イチョウ | C30: 0.41 | F30: ミズキ | G30: 0.53
B31: モミ | C31: 0.38 | F31: カキ | G31: 0.6
B32: ヒメコマツ | C32: 0.39 | F32: クリ | G32: 0.52
B33: クロマツ、オマツ | C33: 0.47 | F33: コジイ、ツブラジイ | G33: 0.47
B34: トガサワラ | C34: 0.43 | F34: スダジイ、イタジイ | G34: 0.53
B35: ツガ | C35: 0.44 | F35: ブナ | G35: 0.57
B36: イヌマキ、ホンマキ、クサマキ | C36: 0.47 | F36: イヌブナ | G36: 0.6
B37: コウヤマキ、ホンマキ | C37: 0.37 | F37: アカガシ | G37: 0.76
B38: イチイ、アララギ、オンコ | C38: 0.44 | F38: イチイガシ | G38: 0.7
B39: カヤ | C39: 0.46 | F39: アラカシ | G39: 0.84
F40: シラカシ | G40: 0.72
F41: クヌギ | G41: 0.73
F42: ミズナラ、オオナラ、ナラ | G42: 0.59
F43: コナラ | G43: 0.69
F44: ウバメガシ | G44: 0.93
F45: イスノキ | G45: 0.78
F46: トチノキ | G46: 0.45
F47: オニグルミ | G47: 0.46
F48: サワグルミ | G48: 0.39
F49: クスノキ | G49: 0.45
F50: タブノキ | G50: 0.57
F51: イヌエンジュ | G51: 0.51
F52: ホオノキ | G52: 0.43
F53: ヤマグワ、クワ | G53: 0.54
F54: ヤチダモ | G54: 0.48
F55: シオジ | G55: 0.46
F56: トネリコ | G56: 0.65
F57: アオダモ | G57: 0.62
F58: ヤマトアオダモ | G58: 0.63
F59: ヤマザクラ | G59: 0.54
F60: キハダ | G60: 0.43
F61: ドロノキ、ドロヤナギ | G61: 0.37
F62: シナノキ | G62: 0.44
F63: ハルニレ、アカダモ | G63: 0.55
F64: ケヤキ | G64: 0.6
E65: 樹種不明 | G65: 0.33

Sheet 係数表2-2
A1: 表４．木材の変化した炭素蓄積の量の算定に使用する係数（対象木材の使用量の算定が困難な品目）
A3: 部材、製品等の品目 | E3: 国産材率
A4: 木質ボード（パーティクルボード） | E4: 0.83
A5: 木質ボード（硬質繊維板） | E5: 0.55
A6: 木質ボード（中質繊維板） | E6: 0.55
A7: 木質ボード（軟質繊維板） | E7: 0.55
A9: （備考）
A10: 変化した炭素蓄積の量(木材、t-C)の算定式：
A11: ○木材の材積をもとに算出する場合
A12: 当該品目及び樹種の区分における木材の材積(㎥)×木材の密度(係数表2-1-1)×炭素含有率(係数表2-1-1)×国産材率
A13: ○木材の重量をもとに算出する場合
A14: 当該品目における木材の重量(kg)×炭素含有率(係数表2-1-1)×国産材率

Sheet 係数表2-3
A1: 係数表2-3 建替え等による建築物その他の工作物に使用した木材の減少した炭素蓄積の量の算定に使用する係数
A2: （対象木材の材積又は重量の算定が困難な場合）
A4: （備考）
A5: 建替え等による建築物その他の工作物に使用した木材の減少した炭素蓄積の量(t-C)の算出式：延床面積(㎡)×区分別の係数
A7: 当該建築物等の建築年度 | B7: 区分別の係数（t-C）
B8: 住宅 | G8: 非住宅
B9: 木造 | C9: SRC造 | D9: RC造 | E9: S造 | F9: その他 | G9: 木造 | H9: SRC造 | I9: RC造 | J9: S造 | K9: その他
A10: ～1980 | B10: 0.025265753 | C10: 0.002152892799 | D10: 0.003150605393 | E10: 0.004436608437 | F10: 0.007984044868 | G10: 0.02668944399 | H10: 0.0009659825784 | I10: 0.001435354281 | J10: 0.001034662937 | K10: 0.002265802905
A11: 1981 | B11: 0.0251371515 | C11: 0.002123340835 | D11: 0.003105970137 | E11: 0.004372779119 | F11: 0.007868382588 | G11: 0.02655263898 | H11: 0.0009524690543 | I11: 0.001415239444 | J11: 0.001020788387 | K11: 0.002232869204
A12: 1982 | B12: 0.02503248056 | C12: 0.002106413401 | D12: 0.003070843501 | E12: 0.004314429042 | F12: 0.007747025479 | G12: 0.02640840464 | H12: 0.0009553878243 | I12: 0.001410064813 | J12: 0.00102309574 | K12: 0.002212296178
A13: 1983 | B13: 0.02486723776 | C13: 0.00205265944 | D13: 0.002985772925 | E13: 0.004188857284 | F13: 0.007509121302 | G13: 0.02623098492 | H13: 0.0009399324707 | I13: 0.001379605754 | J13: 0.001005113695 | K13: 0.002155915376
A14: 1984 | B14: 0.02512719528 | C14: 0.002109268855 | D14: 0.003078806897 | E14: 0.004328574456 | F14: 0.007776415947 | G14: 0.02652713591 | H14: 0.000955259242 | I14: 0.001411536397 | J14: 0.001022219373 | K14: 0.002218448318
A15: 1985 | B15: 0.02436562177 | C15: 0.001990298554 | D15: 0.002884265604 | E15: 0.004037095928 | F15: 0.007219651278 | G15: 0.0256823312 | H15: 0.0009225729811 | I15: 0.001344237092 | J15: 0.0009856170315 | K15: 0.002087745531
A16: 1986 | B16: 0.0239072559 | C16: 0.001942896856 | D16: 0.002819249699 | E16: 0.003949202713 | F16: 0.007067870684 | G16: 0.0252119887 | H16: 0.0008974604788 | I16: 0.001310491501 | J16: 0.0009588174864 | K16: 0.002039523849
A17: 1987 | B17: 0.0236816312 | C17: 0.001725045346 | D17: 0.002488173223 | E17: 0.003472496848 | F17: 0.006190850599 | G17: 0.02495510069 | H17: 0.0008119032922 | I17: 0.001172291372 | J17: 0.0008663199345 | K17: 0.00180674751
A18: 1988 | B18: 0.02282959249 | C18: 0.001567079265 | D18: 0.002245209877 | E18: 0.00312019633 | F18: 0.005537934297 | G18: 0.02403699228 | H18: 0.0007533583384 | I18: 0.001074199496 | J18: 0.0008025262782 | K18: 0.001637672939
A19: 1989 | B19: 0.02265399602 | C19: 0.001600678902 | D19: 0.002294857661 | E19: 0.003190497933 | F19: 0.005665067848 | G19: 0.02385280651 | H19: 0.0007681087269 | I19: 0.00109643684 | J19: 0.0008182953073 | K19: 0.001673301586
A20: 1990 | B20: 0.02238836993 | C20: 0.001579457663 | D20: 0.002261345121 | E20: 0.003141167277 | F20: 0.005572214419 | G20: 0.02356905772 | H20: 0.0007613189565 | I20: 0.001083914149 | J20: 0.000810727207 | K20: 0.001650521754
A21: 1991 | B21: 0.02224958882 | C21: 0.001564590985 | D21: 0.002237644384 | E21: 0.0031060937 | F21: 0.005505831133 | G21: 0.02341882171 | H21: 0.0007568550939 | I21: 0.00107532196 | J21: 0.0008056930734 | K21: 0.001634561747
A22: 1992 | B22: 0.02204259816 | C22: 0.001634017347 | D22: 0.002342249891 | E22: 0.00325595491 | F22: 0.00578013191 | G22: 0.023205743 | H22: 0.0007851123153 | I22: 0.001119952319 | J22: 0.0008361298269 | K22: 0.001708568025
A23: 1993 | B23: 0.02211495716 | C23: 0.001567818906 | D23: 0.002243121204 | E23: 0.003114468407 | F23: 0.005522195901 | G23: 0.02327982426 | H23: 0.0007574140751 | I23: 0.001076937264 | J23: 0.0008064045813 | K23: 0.001638049818
A24: 1994 | B24: 0.02148061617 | C24: 0.001605077408 | D24: 0.002295279582 | E24: 0.003186221711 | F24: 0.005644419193 | G24: 0.02260401915 | H24: 0.0007756572757 | I24: 0.00110396726 | J24: 0.0008262169968 | K24: 0.001675154485
A25: 1995 | B25: 0.02174514345 | C25: 0.001528845139 | D25: 0.002171849018 | E25: 0.003010231109 | F25: 0.005314587804 | G25: 0.0228768503 | H25: 0.0007380281759 | I25: 0.001059137091 | J25: 0.0007909504352 | K25: 0.001586261798
A26: 1996 | B26: 0.02172741961 | C26: 0.001550516693 | D26: 0.002206312983 | E26: 0.003061548433 | F26: 0.005411753663 | G26: 0.02286558095 | H26: 0.0007442244677 | I26: 0.001071888942 | J26: 0.0007980746154 | K26: 0.001609700823
A27: 1997 | B27: 0.02117597432 | C27: 0.001518299384 | D27: 0.002153268337 | E27: 0.002980664523 | F27: 0.00525356676 | G27: 0.02227307637 | H27: 0.0007375926647 | I27: 0.001054591045 | J27: 0.0007899024121 | K27: 0.001573807443
A28: 1998 | B28: 0.02083693575 | C28: 0.001508014434 | D28: 0.002131384139 | E28: 0.002949008851 | F28: 0.005172038557 | G28: 0.02190952194 | H28: 0.0007269875146 | I28: 0.001054090614 | J28: 0.0007837813107 | K28: 0.001548655451
A29: 1999 | B29: 0.02032855341 | C29: 0.001581666644 | D29: 0.002091191021 | E29: 0.002912007711 | F29: 0.00529400293 | G29: 0.02115329924 | H29: 0.0007084808275 | I29: 0.001129490773 | J29: 0.0008165735371 | K29: 0.001628280024
A30: 2000 | B30: 0.01990164509 | C30: 0.001570409233 | D30: 0.002096971244 | E30: 0.002912644937 | F30: 0.005255368418 | G30: 0.0206900606 | H30: 0.0007185527743 | I30: 0.001120069198 | J30: 0.0008169587603 | K30: 0.001615286318
A31: 2001 | B31: 0.01952020767 | C31: 0.001550750407 | D31: 0.002053532137 | E31: 0.002848582027 | F31: 0.005139262359 | G31: 0.0202371332 | H31: 0.0007105140479 | I31: 0.001112910631 | J31: 0.0008119483423 | K31: 0.001591184354
A32: 2002 | B32: 0.02022833873 | C32: 0.001544769856 | D32: 0.002106364202 | E32: 0.002926894324 | F32: 0.005254664963 | G32: 0.02118623916 | H32: 0.0007190426525 | I32: 0.00108841611 | J32: 0.0008003766907 | K32: 0.001603887019
A33: 2003 | B33: 0.01967639244 | C33: 0.001561264192 | D33: 0.002125860581 | E33: 0.002953718818 | F33: 0.005303459358 | G33: 0.02061109797 | H33: 0.0007266306883 | I33: 0.001101229354 | J33: 0.0008095859419 | K33: 0.001620993753
A34: 2004 | B34: 0.01978575281 | C34: 0.001513634296 | D34: 0.0020728059 | E34: 0.002872067346 | F34: 0.005107445903 | G34: 0.02072607174 | H34: 0.0007140620094 | I34: 0.001070918747 | J34: 0.0007902197247 | K34: 0.001561252954
A35: 2005 | B35: 0.01985856492 | C35: 0.001482772117 | D35: 0.002070735321 | E35: 0.002860233882 | F35: 0.005016586762 | G35: 0.02084458395 | H35: 0.0007153563718 | I35: 0.001045564076 | J35: 0.0007775317998 | K35: 0.001517872969
A36: 2006 | B36: 0.01948117322 | C36: 0.001462741209 | D36: 0.002048853184 | E36: 0.002823676992 | F36: 0.004901015362 | G36: 0.02041194875 | H36: 0.0007101802457 | I36: 0.001037431368 | J36: 0.0007705577613 | K36: 0.001481253876
A37: 2007 | B37: 0.01940827922 | C37: 0.001510666633 | D37: 0.002124269012 | E37: 0.002933758284 | F37: 0.005133280005 | G37: 0.02036610074 | H37: 0.0007333928699 | I37: 0.001062220504 | J37: 0.0007918566839 | K37: 0.001547971664
A38: 2008 | B38: 0.01932957349 | C38: 0.001474616617 | D38: 0.002045160393 | E38: 0.002820807096 | F38: 0.004941361776 | G38: 0.02024570066 | H38: 0.0007137125796 | I38: 0.001046030741 | J38: 0.000778587893 | K38: 0.001506683313
A39: 2009 | B39: 0.01913723923 | C39: 0.001499324846 | D39: 0.002038472968 | E39: 0.002821083283 | F39: 0.005027867805 | G39: 0.02004999445 | H39: 0.0007082598854 | I39: 0.001064498274 | J39: 0.0007866850008 | K39: 0.001548225183
A40: 2010 | B40: 0.01799623083 | C40: 0.001617174439 | D40: 0.001898994218 | E40: 0.002697505007 | F40: 0.005619591064 | G40: 0.01868205642 | H40: 0.000699929242 | I40: 0.001129439918 | J40: 0.0008427177698 | K40: 0.001925094933
A41: 2011 | B41: 0.01882237206 | C41: 0.001498668398 | D41: 0.001950098548 | E41: 0.002714649801 | F41: 0.005065184322 | G41: 0.01967650199 | H41: 0.0006974302353 | I41: 0.00106160139 | J41: 0.0007911972945 | K41: 0.001614267354
A42: 2012 | B42: 0.01911315018 | C42: 0.001526359255 | D42: 0.001993646236 | E42: 0.002778890137 | F42: 0.005159951345 | G42: 0.01998285604 | H42: 0.0007009710877 | I42: 0.001081799384 | J42: 0.0007986675848 | K42: 0.001631094256
A43: 2013 | B43: 0.01934963148 | C43: 0.001601025398 | D43: 0.002020386589 | E43: 0.002844419994 | F43: 0.005572140041 | G43: 0.02024348933 | H43: 0.0007146692785 | I43: 0.001113403451 | J43: 0.0008278316864 | K43: 0.00182190666
A44: 2014 | B44: 0.01888195848 | C44: 0.001573686817 | D44: 0.001961795895 | E44: 0.002759124054 | F44: 0.005419928703 | G44: 0.01972713795 | H44: 0.0007032183363 | I44: 0.001102088132 | J44: 0.0008197456563 | K44: 0.001791363074
A45: 2015 | B45: 0.01779300104 | C45: 0.001502051464 | D45: 0.001930444825 | E45: 0.002684299639 | F45: 0.005027306397 | G45: 0.01850046763 | H45: 0.0007008924449 | I45: 0.001070421765 | J45: 0.0007995527284 | K45: 0.001624243335
A46: 2016 | B46: 0.01940453047 | C46: 0.001525384649 | D46: 0.00195775292 | E46: 0.002735386433 | F46: 0.005168368218 | G46: 0.0202557558 | H46: 0.0006934105139 | I46: 0.001080181945 | J46: 0.0007986257595 | K46: 0.001652803561
A47: 2017 | B47: 0.01815108205 | C47: 0.001494653833 | D47: 0.001966753932 | E47: 0.002717757076 | F47: 0.004913562093 | G47: 0.01883363018 | H47: 0.0007117851343 | I47: 0.001075756248 | J47: 0.0008034846237 | K47: 0.00156356225
A48: 2018 | B48: 0.01806483882 | C48: 0.001557006802 | D48: 0.002053630812 | E48: 0.002841769407 | F48: 0.005145604045 | G48: 0.01874160291 | H48: 0.0007371968668 | I48: 0.001117539097 | J48: 0.000832379882 | K48: 0.001631489374
A49: 2019 | B49: 0.0180652853 | C49: 0.001475266593 | D49: 0.001926341704 | E49: 0.002664037561 | F49: 0.004854996194 | G49: 0.01876596525 | H49: 0.0007016657232 | I49: 0.001060849989 | J49: 0.0007942679996 | K49: 0.00155937313
A50: 2020 | B50: 0.01837764982 | C50: 0.00148826463 | D50: 0.001957936004 | E50: 0.002713764147 | F50: 0.004923581544 | G50: 0.01915640998 | H50: 0.0006964093627 | I50: 0.00106847377 | J50: 0.0007916766128 | K50: 0.001556820657
A51: 2021 | B51: 0.01781834041 | C51: 0.001472331635 | D51: 0.001941291737 | E51: 0.00268287774 | F51: 0.004849272176 | G51: 0.0185051077 | H51: 0.0006960148507 | I51: 0.001057857071 | J51: 0.0007853671183 | K51: 0.001537317077
A52: 2022 | B52: 0.01787586695 | C52: 0.001481846552 | D52: 0.001921617961 | E52: 0.002665127546 | F52: 0.004902147906 | G52: 0.01858443923 | H52: 0.000688835648 | I52: 0.001063604809 | J52: 0.0007876714981 | K52: 0.001568287668
A53: 2023 | B53: 0.01756103882 | C53: 0.001469972038 | D53: 0.001886680246 | E53: 0.002615814861 | F53: 0.004839232674 | G53: 0.01823165359 | H53: 0.0006833792664 | I53: 0.001058866844 | J53: 0.0007856255938 | K53: 0.001564389338
A54: 2024
A55: 2025
A56: 2026
A57: =A56+1 -> 2027
A58: =A57+1 -> 2028
A59: 2029
A60: 2030
A61: 2031
A62: 2032
A63: 2033
A64: 2034
A65: 2035
A66: 2036
A67: 2037
A68: 2038
A69: 2039
A70: 2040
A71: 2041
A72: 2042
A73: 2043
A74: 2044
A75: 2045
A76: 2046
A77: 2047
A78: 2048
A79: 2049
A80: 2050
A81: 2051
A82: 2052
A83: 2053
A84: 2054
A85: 2055
A86: 2056
A87: 2057
A88: 2058
A89: 2059
A90: 2060
A91: 2061
A92: 2062
A93: 2063
A94: 2064
A95: 2065
A96: 2066
A97: 2067
A98: 2068
A99: 2069
A100: 2070
A101: 2071
A102: 2072
A103: 2073
A104: 2074
A105: 2075
A106: 2076
A107: 2077
A108: 2078
A109: 2079
A110: 2080
A111: 2081
A112: 2082
A113: 2083
A114: 2084
A115: 2085
A116: 2086
A117: 2087
A118: 2088
A119: 2089
A120: 2090
A121: 2091
A122: =A121+1 -> 2092
A123: 2093
A124: 2094
A125: 2095
A126: 2096
A127: 2097
A128: 2098
A129: 2099
A130: 2100
A131: 2101
A132: 2102
A133: 2103
A134: 2104
A135: 2105
A136: 2106
A137: 2107
A138: =A137+1 -> 2108
A139: 2109
A140: 2110
A141: 2111
A142: 2112
A143: 2113
A144: 2114
A145: 2115
A146: 2116
A147: 2117
A148: 2118
A149: 2119
A150: 2120
A151: 2121
A152: 2122
A153: 2123
A154: =A153+1 -> 2124
A155: 2125
A156: 2126
A157: 2127
A158: 2128
A159: 2129
A160: 2130
A161: 2131
A162: 2132
A163: 2133
A164: 2134
A165: 2135
A166: 2136
A167: 2137
A168: 2138
A169: 2139
A170: =A169+1 -> 2140
A171: 2141
A172: 2142
A173: 2143
A174: 2144
A175: 2145
A176: 2146
A177: 2147
A178: 2148
A179: 2149
A180: 2150
A181: 2151
A182: 2152
A183: 2153
A184: 2154
A185: 2155
A186: =A185+1 -> 2156
A187: 2157
A188: 2158
A189: 2159
A190: 2160
A191: 2161
A192: 2162
A193: 2163
A194: 2164
A195: 2165
A196: 2166
A197: 2167
A198: 2168
A199: 2169
A200: 2170
A201: 2171
A202: =A201+1 -> 2172
... 329 more rows

Sheet プルダウンデータリスト (hidden)
A1: 樹種 | B1: BEF[-]_<=20 | C1: BEF[-]_>20 | D1: R | E1: D | F1: CF | L1: 用途の変更内容 | M1: 用途変更後20年間での１ha当たりの変化した炭素蓄積の量 | N1: 炭素蓄積内訳（枯死木） | O1: 炭素蓄積内訳（リター） | P1: 炭素蓄積内訳（土壌） | R1: 建築物その他の工作物/家具その他の物品の別 | V1: 部材、製品名等の区分 | W1: 木材の密度[t/㎥] | X1: 炭素含有率 | Z1: 構造材/非構造材の別 | AB1: 針広 | AC1: 樹種 | AD1: 木材の密度[t/㎥] | AF1: 品目 | AG1: 国産材率 | AI1: 当該建築物等の建築年度 | AJ1: 住宅/非住宅 | AK1: 構造区分 | AL1: 区分別の係数(t-C) | AN1: 住宅/非住宅の別 | AP1: 構造区分
A2: スギ | B2: 1.57 | C2: 1.23 | D2: 0.25 | E2: 0.31 | F2: 0.51 | H2: 20年生以下 | J2: 森林簿 | L2: 森林から田 | M2: =SUM(N2:P2) -> 11.7 | N2: -10 | O2: -4.9 | P2: =1.33*20 -> 26.6 | R2: 建築物その他の工作物（構造材） | T2: 建築物その他の工作物 | V2: 製材（製材・集成材・ＣＬＴ等） | W2: 表３－２参照 | X2: 0.5 | Z2: 構造材 | AB2: 針 | AC2: スギ | AD2: 0.33 | AF2: 木質ボード（パーティクルボード） | AG2: 0.83 | AI2: ～1980 | AJ2: 住宅 | AK2: 木造 | AL2: =INDEX('係数表2-3'!$B:$K, 10 + QUOTIENT(ROW(AL2)-2, 10), 1 + MOD(ROW(AL2)-2, 10)) -> 0.025265753 | AN2: 住宅 | AP2: 木造
A3: ヒノキ | B3: 1.55 | C3: 1.24 | D3: 0.26 | E3: 0.41 | F3: 0.51 | H3: 21年生以上 | J3: 実測 | L3: 森林から普通畑、樹園地 | M3: =SUM(N3:P3) -> -32.5 | N3: -10 | O3: -4.9 | P3: =(-0.44)*40 -> -17.6 | R3: 建築物その他の工作物（非構造材） | T3: 家具その他の物品 | V3: 合板（合板・ＬＶＬ） | W3: 0.542 | X3: 0.493 | Z3: 非構造材 | AB3: 針 | AC3: ヒノキ | AD3: 0.38 | AF3: 木質ボード（硬質繊維板） | AG3: 0.55 | AI3: ～1980 | AJ3: 住宅 | AK3: SRC造 | AL3: =INDEX('係数表2-3'!$B:$K, 10 + QUOTIENT(ROW(AL3)-2, 10), 1 + MOD(ROW(AL3)-2, 10)) -> 0.002152892799 | AN3: 非住宅 | AP3: SRC造
A4: サワラ | B4: 1.55 | C4: 1.24 | D4: 0.26 | E4: 0.29 | F4: 0.51 | L4: 森林から草地（牧草地） | M4: -25.7 | N4: -10 | O4: -4.9 | P4: =(-0.54)*20 -> -10.8 | R4: 家具その他の物品 | V4: 木質ボード（パーティクルボード） | W4: 0.596 | X4: 0.451 | Z4: - | AB4: 針 | AC4: アカマツ、メマツ | AD4: 0.45 | AF4: 木質ボード（中質繊維板） | AG4: 0.55 | AI4: ～1980 | AJ4: 住宅 | AK4: RC造 | AL4: =INDEX('係数表2-3'!$B:$K, 10 + QUOTIENT(ROW(AL4)-2, 10), 1 + MOD(ROW(AL4)-2, 10)) -> 0.003150605393 | AP4: RC造
A5: アカマツ | B5: 1.63 | C5: 1.23 | D5: 0.26 | E5: 0.45 | F5: 0.51 | L5: 森林から開発地 | M5: -62.8 | N5: -10 | O5: -4.9 | P5: =28.1-76 -> -47.9 | V5: 木質ボード（硬質繊維板） | W5: 0.788 | X5: 0.425 | AB5: 針 | AC5: カラマツ | AD5: 0.44 | AF5: 木質ボード（軟質繊維板） | AG5: 0.55 | AI5: ～1980 | AJ5: 住宅 | AK5: S造 | AL5: =INDEX('係数表2-3'!$B:$K, 10 + QUOTIENT(ROW(AL5)-2, 10), 1 + MOD(ROW(AL5)-2, 10)) -> 0.004436608437 | AP5: S造
A6: クロマツ | B6: 1.39 | C6: 1.36 | D6: 0.34 | E6: 0.46 | F6: 0.51 | L6: 森林からその他の土地 | M6: -70.8 | N6: -10 | O6: -4.9 | P6: =20.1-76 -> -55.9 | V6: 木質ボード（中質繊維板） | W6: 0.691 | X6: 0.427 | AB6: 針 | AC6: トドマツ、アカトドマツ | AD6: 0.35 | AF6: 木質ボード（配向性ストランドボード） | AG6: 0 | AI6: ～1980 | AJ6: 住宅 | AK6: その他 | AL6: =INDEX('係数表2-3'!$B:$K, 10 + QUOTIENT(ROW(AL6)-2, 10), 1 + MOD(ROW(AL6)-2, 10)) -> 0.007984044868 | AP6: その他
A7: ヒバ | B7: 2.38 | C7: 1.41 | D7: 0.2 | E7: 0.41 | F7: 0.51 | L7: 田から森林 | M7: 15.385 | N7: =6.5*20/40 -> 3.25 | O7: =6.67*20/40 -> 3.335 | P7: =0.44*20 -> 8.8 | V7: 木質ボード（軟質繊維板） | W7: 0.159 | X7: 0.474 | AB7: 針 | AC7: エゾマツ | AD7: 0.37 | AG7: - | AI7: ～1980 | AJ7: 非住宅 | AK7: 木造 | AL7: =INDEX('係数表2-3'!$B:$K, 10 + QUOTIENT(ROW(AL7)-2, 10), 1 + MOD(ROW(AL7)-2, 10)) -> 0.02668944399 | AP7: 木造
A8: カラマツ | B8: 1.5 | C8: 1.15 | D8: 0.29 | E8: 0.4 | F8: 0.51 | L8: 普通畑、樹園地から森林 | M8: 15.385 | N8: =6.5*20/40 -> 3.25 | O8: =6.67*20/40 -> 3.335 | P8: =0.44*20 -> 8.8 | AB8: 針 | AC8: サワラ | AD8: 0.3 | AI8: ～1980 | AJ8: 非住宅 | AK8: SRC造 | AL8: =INDEX('係数表2-3'!$B:$K, 10 + QUOTIENT(ROW(AL8)-2, 10), 1 + MOD(ROW(AL8)-2, 10)) -> 0.0009659825784 | AP8: SRC造
A9: モミ | B9: 1.4 | C9: 1.4 | D9: 0.4 | E9: 0.42 | F9: 0.51 | L9: 草地（牧草地）から森林 | M9: 15.385 | N9: 3.25 | O9: 3.335 | P9: 8.8 | W9: - | X9: - | AB9: 針 | AC9: ネズコ、クロベ | AD9: 0.31 | AI9: ～1980 | AJ9: 非住宅 | AK9: RC造 | AL9: =INDEX('係数表2-3'!$B:$K, 10 + QUOTIENT(ROW(AL9)-2, 10), 1 + MOD(ROW(AL9)-2, 10)) -> 0.001435354281 | AP9: RC造
A10: トドマツ | B10: 1.88 | C10: 1.48 | D10: 0.21 | E10: 0.32 | F10: 0.51 | L10: 開発地から森林 | M10: 36.585 | N10: 3.25 | O10: 3.335 | P10: =1.5*20 -> 30 | AB10: 針 | AC10: アスナロ | AD10: 0.39 | AI10: ～1980 | AJ10: 非住宅 | AK10: S造 | AL10: =INDEX('係数表2-3'!$B:$K, 10 + QUOTIENT(ROW(AL10)-2, 10), 1 + MOD(ROW(AL10)-2, 10)) -> 0.001034662937 | AP10: S造
A11: ツガ | B11: 1.4 | C11: 1.4 | D11: 0.4 | E11: 0.46 | F11: 0.51 | L11: その他の土地から森林 | M11: 36.585 | N11: 3.25 | O11: 3.335 | P11: =1.5*20 -> 30 | AB11: 針 | AC11: イチョウ | AD11: 0.41 | AF11: 表４，５と連動 | AI11: ～1980 | AJ11: 非住宅 | AK11: その他 | AL11: =INDEX('係数表2-3'!$B:$K, 10 + QUOTIENT(ROW(AL11)-2, 10), 1 + MOD(ROW(AL11)-2, 10)) -> 0.002265802905 | AP11: その他
A12: エゾマツ | B12: 2.18 | C12: 1.48 | D12: 0.23 | E12: 0.36 | F12: 0.51 | AB12: 針 | AC12: モミ | AD12: 0.38 | AI12: 1981 | AJ12: 住宅 | AK12: 木造 | AL12: =INDEX('係数表2-3'!$B:$K, 10 + QUOTIENT(ROW(AL12)-2, 10), 1 + MOD(ROW(AL12)-2, 10)) -> 0.0251371515
A13: アカエゾマツ | B13: 2.17 | C13: 1.67 | D13: 0.21 | E13: 0.36 | F13: 0.51 | AB13: 針 | AC13: ヒメコマツ | AD13: 0.39 | AI13: 1981 | AJ13: 住宅 | AK13: SRC造 | AL13: =INDEX('係数表2-3'!$B:$K, 10 + QUOTIENT(ROW(AL13)-2, 10), 1 + MOD(ROW(AL13)-2, 10)) -> 0.002123340835
A14: マキ | B14: 1.39 | C14: 1.23 | D14: 0.2 | E14: 0.46 | F14: 0.51 | AB14: 針 | AC14: クロマツ、オマツ | AD14: 0.47 | AI14: 1981 | AJ14: 住宅 | AK14: RC造 | AL14: =INDEX('係数表2-3'!$B:$K, 10 + QUOTIENT(ROW(AL14)-2, 10), 1 + MOD(ROW(AL14)-2, 10)) -> 0.003105970137
A15: イチイ | B15: 1.39 | C15: 1.23 | D15: 0.2 | E15: 0.45 | F15: 0.51 | AB15: 針 | AC15: トガサワラ | AD15: 0.43 | AI15: 1981 | AJ15: 住宅 | AK15: S造 | AL15: =INDEX('係数表2-3'!$B:$K, 10 + QUOTIENT(ROW(AL15)-2, 10), 1 + MOD(ROW(AL15)-2, 10)) -> 0.004372779119
A16: イチョウ | B16: 1.5 | C16: 1.15 | D16: 0.2 | E16: 0.45 | F16: 0.51 | AB16: 針 | AC16: ツガ | AD16: 0.44 | AI16: 1981 | AJ16: 住宅 | AK16: その他 | AL16: =INDEX('係数表2-3'!$B:$K, 10 + QUOTIENT(ROW(AL16)-2, 10), 1 + MOD(ROW(AL16)-2, 10)) -> 0.007868382588
A17: 外来針葉樹 | B17: 1.41 | C17: 1.41 | D17: 0.17 | E17: 0.32 | F17: 0.51 | AB17: 針 | AC17: イヌマキ、ホンマキ、クサマキ | AD17: 0.47 | AI17: 1981 | AJ17: 非住宅 | AK17: 木造 | AL17: =INDEX('係数表2-3'!$B:$K, 10 + QUOTIENT(ROW(AL17)-2, 10), 1 + MOD(ROW(AL17)-2, 10)) -> 0.02655263898
A18: その他針葉樹１ | B18: 2.55 | C18: 1.32 | D18: 0.34 | E18: 0.35 | F18: 0.51 | AB18: 針 | AC18: コウヤマキ、ホンマキ | AD18: 0.37 | AI18: 1981 | AJ18: 非住宅 | AK18: SRC造 | AL18: =INDEX('係数表2-3'!$B:$K, 10 + QUOTIENT(ROW(AL18)-2, 10), 1 + MOD(ROW(AL18)-2, 10)) -> 0.0009524690543
A19: その他針葉樹２ | B19: 1.39 | C19: 1.36 | D19: 0.34 | E19: 0.46 | F19: 0.51 | AB19: 針 | AC19: イチイ、アララギ、オンコ | AD19: 0.44 | AI19: 1981 | AJ19: 非住宅 | AK19: RC造 | AL19: =INDEX('係数表2-3'!$B:$K, 10 + QUOTIENT(ROW(AL19)-2, 10), 1 + MOD(ROW(AL19)-2, 10)) -> 0.001415239444
A20: その他針葉樹３ | B20: 1.4 | C20: 1.4 | D20: 0.4 | E20: 0.42 | F20: 0.51 | AB20: 針 | AC20: カヤ | AD20: 0.46 | AI20: 1981 | AJ20: 非住宅 | AK20: S造 | AL20: =INDEX('係数表2-3'!$B:$K, 10 + QUOTIENT(ROW(AL20)-2, 10), 1 + MOD(ROW(AL20)-2, 10)) -> 0.001020788387
A21: ブナ | B21: 1.58 | C21: 1.32 | D21: 0.26 | E21: 0.57 | F21: 0.48 | AB21: 広 | AC21: イタヤカエデ | AD21: 0.57 | AI21: 1981 | AJ21: 非住宅 | AK21: その他 | AL21: =INDEX('係数表2-3'!$B:$K, 10 + QUOTIENT(ROW(AL21)-2, 10), 1 + MOD(ROW(AL21)-2, 10)) -> 0.002232869204
A22: カシ | B22: 1.52 | C22: 1.33 | D22: 0.26 | E22: 0.65 | F22: 0.48 | AB22: 広 | AC22: セン、ハリギリ | AD22: 0.45 | AI22: 1982 | AJ22: 住宅 | AK22: 木造 | AL22: =INDEX('係数表2-3'!$B:$K, 10 + QUOTIENT(ROW(AL22)-2, 10), 1 + MOD(ROW(AL22)-2, 10)) -> 0.02503248056
A23: クリ | B23: 1.33 | C23: 1.18 | D23: 0.26 | E23: 0.42 | F23: 0.48 | AB23: 広 | AC23: マカンバ、ウダイカンバ | AD23: 0.58 | AI23: 1982 | AJ23: 住宅 | AK23: SRC造 | AL23: =INDEX('係数表2-3'!$B:$K, 10 + QUOTIENT(ROW(AL23)-2, 10), 1 + MOD(ROW(AL23)-2, 10)) -> 0.002106413401
A24: クヌギ | B24: 1.36 | C24: 1.32 | D24: 0.26 | E24: 0.67 | F24: 0.48 | AB24: 広 | AC24: シラカンバ | AD24: 0.5 | AI24: 1982 | AJ24: 住宅 | AK24: RC造 | AL24: =INDEX('係数表2-3'!$B:$K, 10 + QUOTIENT(ROW(AL24)-2, 10), 1 + MOD(ROW(AL24)-2, 10)) -> 0.003070843501
A25: ナラ | B25: 1.4 | C25: 1.26 | D25: 0.26 | E25: 0.62 | F25: 0.48 | AB25: 広 | AC25: オノオレカンバ | AD25: 0.78 | AI25: 1982 | AJ25: 住宅 | AK25: S造 | AL25: =INDEX('係数表2-3'!$B:$K, 10 + QUOTIENT(ROW(AL25)-2, 10), 1 + MOD(ROW(AL25)-2, 10)) -> 0.004314429042
A26: ドロノキ | B26: 1.33 | C26: 1.18 | D26: 0.26 | E26: 0.29 | F26: 0.48 | AB26: 広 | AC26: アサダ | AD26: 0.64 | AI26: 1982 | AJ26: 住宅 | AK26: その他 | AL26: =INDEX('係数表2-3'!$B:$K, 10 + QUOTIENT(ROW(AL26)-2, 10), 1 + MOD(ROW(AL26)-2, 10)) -> 0.007747025479
A27: ハンノキ | B27: 1.33 | C27: 1.25 | D27: 0.26 | E27: 0.45 | F27: 0.48 | AB27: 広 | AC27: キリ | AD27: 0.26 | AI27: 1982 | AJ27: 非住宅 | AK27: 木造 | AL27: =INDEX('係数表2-3'!$B:$K, 10 + QUOTIENT(ROW(AL27)-2, 10), 1 + MOD(ROW(AL27)-2, 10)) -> 0.02640840464
A28: ニレ | B28: 1.33 | C28: 1.18 | D28: 0.26 | E28: 0.49 | F28: 0.48 | AB28: 広 | AC28: ツゲ | AD28: 0.78 | AI28: 1982 | AJ28: 非住宅 | AK28: SRC造 | AL28: =INDEX('係数表2-3'!$B:$K, 10 + QUOTIENT(ROW(AL28)-2, 10), 1 + MOD(ROW(AL28)-2, 10)) -> 0.0009553878243
A29: ケヤキ | B29: 1.58 | C29: 1.18 | D29: 0.26 | E29: 0.61 | F29: 0.48 | AB29: 広 | AC29: カツラ | AD29: 0.44 | AI29: 1982 | AJ29: 非住宅 | AK29: RC造 | AL29: =INDEX('係数表2-3'!$B:$K, 10 + QUOTIENT(ROW(AL29)-2, 10), 1 + MOD(ROW(AL29)-2, 10)) -> 0.001410064813
A30: カツラ | B30: 1.33 | C30: 1.18 | D30: 0.26 | E30: 0.45 | F30: 0.48 | AB30: 広 | AC30: ミズキ | AD30: 0.53 | AI30: 1982 | AJ30: 非住宅 | AK30: S造 | AL30: =INDEX('係数表2-3'!$B:$K, 10 + QUOTIENT(ROW(AL30)-2, 10), 1 + MOD(ROW(AL30)-2, 10)) -> 0.00102309574
A31: ホオノキ | B31: 1.33 | C31: 1.18 | D31: 0.26 | E31: 0.39 | F31: 0.48 | AB31: 広 | AC31: カキ | AD31: 0.6 | AI31: 1982 | AJ31: 非住宅 | AK31: その他 | AL31: =INDEX('係数表2-3'!$B:$K, 10 + QUOTIENT(ROW(AL31)-2, 10), 1 + MOD(ROW(AL31)-2, 10)) -> 0.002212296178
A32: カエデ | B32: 1.33 | C32: 1.18 | D32: 0.26 | E32: 0.52 | F32: 0.48 | AB32: 広 | AC32: クリ | AD32: 0.52 | AI32: 1983 | AJ32: 住宅 | AK32: 木造 | AL32: =INDEX('係数表2-3'!$B:$K, 10 + QUOTIENT(ROW(AL32)-2, 10), 1 + MOD(ROW(AL32)-2, 10)) -> 0.02486723776
A33: キハダ | B33: 1.33 | C33: 1.18 | D33: 0.26 | E33: 0.34 | F33: 0.48 | AB33: 広 | AC33: コジイ、ツブラジイ | AD33: 0.47 | AI33: 1983 | AJ33: 住宅 | AK33: SRC造 | AL33: =INDEX('係数表2-3'!$B:$K, 10 + QUOTIENT(ROW(AL33)-2, 10), 1 + MOD(ROW(AL33)-2, 10)) -> 0.00205265944
A34: シナノキ | B34: 1.33 | C34: 1.18 | D34: 0.26 | E34: 0.37 | F34: 0.48 | AB34: 広 | AC34: スダジイ、イタジイ | AD34: 0.53 | AI34: 1983 | AJ34: 住宅 | AK34: RC造 | AL34: =INDEX('係数表2-3'!$B:$K, 10 + QUOTIENT(ROW(AL34)-2, 10), 1 + MOD(ROW(AL34)-2, 10)) -> 0.002985772925
A35: センノキ | B35: 1.33 | C35: 1.18 | D35: 0.26 | E35: 0.4 | F35: 0.48 | AB35: 広 | AC35: ブナ | AD35: 0.57 | AI35: 1983 | AJ35: 住宅 | AK35: S造 | AL35: =INDEX('係数表2-3'!$B:$K, 10 + QUOTIENT(ROW(AL35)-2, 10), 1 + MOD(ROW(AL35)-2, 10)) -> 0.004188857284
A36: キリ | B36: 1.33 | C36: 1.18 | D36: 0.26 | E36: 0.23 | F36: 0.48 | AB36: 広 | AC36: イヌブナ | AD36: 0.6 | AI36: 1983 | AJ36: 住宅 | AK36: その他 | AL36: =INDEX('係数表2-3'!$B:$K, 10 + QUOTIENT(ROW(AL36)-2, 10), 1 + MOD(ROW(AL36)-2, 10)) -> 0.007509121302
A37: 外来広葉樹 | B37: 1.41 | C37: 1.41 | D37: 0.16 | E37: 0.66 | F37: 0.48 | AB37: 広 | AC37: アカガシ | AD37: 0.76 | AI37: 1983 | AJ37: 非住宅 | AK37: 木造 | AL37: =INDEX('係数表2-3'!$B:$K, 10 + QUOTIENT(ROW(AL37)-2, 10), 1 + MOD(ROW(AL37)-2, 10)) -> 0.02623098492
A38: カンバ | B38: 1.31 | C38: 1.2 | D38: 0.26 | E38: 0.47 | F38: 0.48 | AB38: 広 | AC38: イチイガシ | AD38: 0.7 | AI38: 1983 | AJ38: 非住宅 | AK38: SRC造 | AL38: =INDEX('係数表2-3'!$B:$K, 10 + QUOTIENT(ROW(AL38)-2, 10), 1 + MOD(ROW(AL38)-2, 10)) -> 0.0009399324707
A39: その他広葉樹１ | B39: 1.37 | C39: 1.37 | D39: 0.26 | E39: 0.47 | F39: 0.48 | AB39: 広 | AC39: アラカシ | AD39: 0.84 | AI39: 1983 | AJ39: 非住宅 | AK39: RC造 | AL39: =INDEX('係数表2-3'!$B:$K, 10 + QUOTIENT(ROW(AL39)-2, 10), 1 + MOD(ROW(AL39)-2, 10)) -> 0.001379605754
A40: その他広葉樹２ | B40: 1.52 | C40: 1.33 | D40: 0.26 | E40: 0.65 | F40: 0.48 | AB40: 広 | AC40: シラカシ | AD40: 0.72 | AI40: 1983 | AJ40: 非住宅 | AK40: S造 | AL40: =INDEX('係数表2-3'!$B:$K, 10 + QUOTIENT(ROW(AL40)-2, 10), 1 + MOD(ROW(AL40)-2, 10)) -> 0.001005113695
A41: その他広葉樹３ | B41: 1.4 | C41: 1.26 | D41: 0.26 | E41: 0.62 | F41: 0.48 | AB41: 広 | AC41: クヌギ | AD41: 0.73 | AI41: 1983 | AJ41: 非住宅 | AK41: その他 | AL41: =INDEX('係数表2-3'!$B:$K, 10 + QUOTIENT(ROW(AL41)-2, 10), 1 + MOD(ROW(AL41)-2, 10)) -> 0.002155915376
A42: 無立木地(民有林) | B42: 1.27 | C42: 1.27 | D42: 0.26 | E42: 0.48 | F42: 0.5 | AB42: 広 | AC42: ミズナラ、オオナラ、ナラ | AD42: 0.59 | AI42: 1984 | AJ42: 住宅 | AK42: 木造 | AL42: =INDEX('係数表2-3'!$B:$K, 10 + QUOTIENT(ROW(AL42)-2, 10), 1 + MOD(ROW(AL42)-2, 10)) -> 0.02512719528
A43: 無立木地(国有林) | B43: 1.3 | C43: 1.3 | D43: 0.26 | E43: 0.47 | F43: 0.5 | AB43: 広 | AC43: コナラ | AD43: 0.69 | AI43: 1984 | AJ43: 住宅 | AK43: SRC造 | AL43: =INDEX('係数表2-3'!$B:$K, 10 + QUOTIENT(ROW(AL43)-2, 10), 1 + MOD(ROW(AL43)-2, 10)) -> 0.002109268855
AB44: 広 | AC44: ウバメガシ | AD44: 0.93 | AI44: 1984 | AJ44: 住宅 | AK44: RC造 | AL44: =INDEX('係数表2-3'!$B:$K, 10 + QUOTIENT(ROW(AL44)-2, 10), 1 + MOD(ROW(AL44)-2, 10)) -> 0.003078806897
AB45: 広 | AC45: イスノキ | AD45: 0.78 | AI45: 1984 | AJ45: 住宅 | AK45: S造 | AL45: =INDEX('係数表2-3'!$B:$K, 10 + QUOTIENT(ROW(AL45)-2, 10), 1 + MOD(ROW(AL45)-2, 10)) -> 0.004328574456
AB46: 広 | AC46: トチノキ | AD46: 0.45 | AI46: 1984 | AJ46: 住宅 | AK46: その他 | AL46: =INDEX('係数表2-3'!$B:$K, 10 + QUOTIENT(ROW(AL46)-2, 10), 1 + MOD(ROW(AL46)-2, 10)) -> 0.007776415947
AB47: 広 | AC47: オニグルミ | AD47: 0.46 | AI47: 1984 | AJ47: 非住宅 | AK47: 木造 | AL47: =INDEX('係数表2-3'!$B:$K, 10 + QUOTIENT(ROW(AL47)-2, 10), 1 + MOD(ROW(AL47)-2, 10)) -> 0.02652713591
AB48: 広 | AC48: サワグルミ | AD48: 0.39 | AI48: 1984 | AJ48: 非住宅 | AK48: SRC造 | AL48: =INDEX('係数表2-3'!$B:$K, 10 + QUOTIENT(ROW(AL48)-2, 10), 1 + MOD(ROW(AL48)-2, 10)) -> 0.000955259242
AB49: 広 | AC49: クスノキ | AD49: 0.45 | AI49: 1984 | AJ49: 非住宅 | AK49: RC造 | AL49: =INDEX('係数表2-3'!$B:$K, 10 + QUOTIENT(ROW(AL49)-2, 10), 1 + MOD(ROW(AL49)-2, 10)) -> 0.001411536397
AB50: 広 | AC50: タブノキ | AD50: 0.57 | AI50: 1984 | AJ50: 非住宅 | AK50: S造 | AL50: =INDEX('係数表2-3'!$B:$K, 10 + QUOTIENT(ROW(AL50)-2, 10), 1 + MOD(ROW(AL50)-2, 10)) -> 0.001022219373
AB51: 広 | AC51: イヌエンジュ | AD51: 0.51 | AI51: 1984 | AJ51: 非住宅 | AK51: その他 | AL51: =INDEX('係数表2-3'!$B:$K, 10 + QUOTIENT(ROW(AL51)-2, 10), 1 + MOD(ROW(AL51)-2, 10)) -> 0.002218448318
AB52: 広 | AC52: ホオノキ | AD52: 0.43 | AI52: 1985 | AJ52: 住宅 | AK52: 木造 | AL52: =INDEX('係数表2-3'!$B:$K, 10 + QUOTIENT(ROW(AL52)-2, 10), 1 + MOD(ROW(AL52)-2, 10)) -> 0.02436562177
AB53: 広 | AC53: ヤマグワ、クワ | AD53: 0.54 | AI53: 1985 | AJ53: 住宅 | AK53: SRC造 | AL53: =INDEX('係数表2-3'!$B:$K, 10 + QUOTIENT(ROW(AL53)-2, 10), 1 + MOD(ROW(AL53)-2, 10)) -> 0.001990298554
AB54: 広 | AC54: ヤチダモ | AD54: 0.48 | AI54: 1985 | AJ54: 住宅 | AK54: RC造 | AL54: =INDEX('係数表2-3'!$B:$K, 10 + QUOTIENT(ROW(AL54)-2, 10), 1 + MOD(ROW(AL54)-2, 10)) -> 0.002884265604
AB55: 広 | AC55: シオジ | AD55: 0.46 | AI55: 1985 | AJ55: 住宅 | AK55: S造 | AL55: =INDEX('係数表2-3'!$B:$K, 10 + QUOTIENT(ROW(AL55)-2, 10), 1 + MOD(ROW(AL55)-2, 10)) -> 0.004037095928
AB56: 広 | AC56: トネリコ | AD56: 0.65 | AI56: 1985 | AJ56: 住宅 | AK56: その他 | AL56: =INDEX('係数表2-3'!$B:$K, 10 + QUOTIENT(ROW(AL56)-2, 10), 1 + MOD(ROW(AL56)-2, 10)) -> 0.007219651278
AB57: 広 | AC57: アオダモ | AD57: 0.62 | AI57: 1985 | AJ57: 非住宅 | AK57: 木造 | AL57: =INDEX('係数表2-3'!$B:$K, 10 + QUOTIENT(ROW(AL57)-2, 10), 1 + MOD(ROW(AL57)-2, 10)) -> 0.0256823312
AB58: 広 | AC58: ヤマトアオダモ | AD58: 0.63 | AI58: 1985 | AJ58: 非住宅 | AK58: SRC造 | AL58: =INDEX('係数表2-3'!$B:$K, 10 + QUOTIENT(ROW(AL58)-2, 10), 1 + MOD(ROW(AL58)-2, 10)) -> 0.0009225729811
AB59: 広 | AC59: ヤマザクラ | AD59: 0.54 | AI59: 1985 | AJ59: 非住宅 | AK59: RC造 | AL59: =INDEX('係数表2-3'!$B:$K, 10 + QUOTIENT(ROW(AL59)-2, 10), 1 + MOD(ROW(AL59)-2, 10)) -> 0.001344237092
AB60: 広 | AC60: キハダ | AD60: 0.43 | AI60: 1985 | AJ60: 非住宅 | AK60: S造 | AL60: =INDEX('係数表2-3'!$B:$K, 10 + QUOTIENT(ROW(AL60)-2, 10), 1 + MOD(ROW(AL60)-2, 10)) -> 0.0009856170315
AB61: 広 | AC61: ドロノキ、ドロヤナギ | AD61: 0.37 | AI61: 1985 | AJ61: 非住宅 | AK61: その他 | AL61: =INDEX('係数表2-3'!$B:$K, 10 + QUOTIENT(ROW(AL61)-2, 10), 1 + MOD(ROW(AL61)-2, 10)) -> 0.002087745531
AB62: 広 | AC62: シナノキ | AD62: 0.44 | AI62: 1986 | AJ62: 住宅 | AK62: 木造 | AL62: =INDEX('係数表2-3'!$B:$K, 10 + QUOTIENT(ROW(AL62)-2, 10), 1 + MOD(ROW(AL62)-2, 10)) -> 0.0239072559
AB63: 広 | AC63: ハルニレ、アカダモ | AD63: 0.55 | AI63: 1986 | AJ63: 住宅 | AK63: SRC造 | AL63: =INDEX('係数表2-3'!$B:$K, 10 + QUOTIENT(ROW(AL63)-2, 10), 1 + MOD(ROW(AL63)-2, 10)) -> 0.001942896856
AB64: 広 | AC64: ケヤキ | AD64: 0.6 | AI64: 1986 | AJ64: 住宅 | AK64: RC造 | AL64: =INDEX('係数表2-3'!$B:$K, 10 + QUOTIENT(ROW(AL64)-2, 10), 1 + MOD(ROW(AL64)-2, 10)) -> 0.002819249699
AB65: - | AC65: 樹種不明 | AD65: 0.33 | AI65: 1986 | AJ65: 住宅 | AK65: S造 | AL65: =INDEX('係数表2-3'!$B:$K, 10 + QUOTIENT(ROW(AL65)-2, 10), 1 + MOD(ROW(AL65)-2, 10)) -> 0.003949202713
AI66: 1986 | AJ66: 住宅 | AK66: その他 | AL66: =INDEX('係数表2-3'!$B:$K, 10 + QUOTIENT(ROW(AL66)-2, 10), 1 + MOD(ROW(AL66)-2, 10)) -> 0.007067870684
AI67: 1986 | AJ67: 非住宅 | AK67: 木造 | AL67: =INDEX('係数表2-3'!$B:$K, 10 + QUOTIENT(ROW(AL67)-2, 10), 1 + MOD(ROW(AL67)-2, 10)) -> 0.0252119887
AI68: 1986 | AJ68: 非住宅 | AK68: SRC造 | AL68: =INDEX('係数表2-3'!$B:$K, 10 + QUOTIENT(ROW(AL68)-2, 10), 1 + MOD(ROW(AL68)-2, 10)) -> 0.0008974604788
AI69: 1986 | AJ69: 非住宅 | AK69: RC造 | AL69: =INDEX('係数表2-3'!$B:$K, 10 + QUOTIENT(ROW(AL69)-2, 10), 1 + MOD(ROW(AL69)-2, 10)) -> 0.001310491501
AI70: 1986 | AJ70: 非住宅 | AK70: S造 | AL70: =INDEX('係数表2-3'!$B:$K, 10 + QUOTIENT(ROW(AL70)-2, 10), 1 + MOD(ROW(AL70)-2, 10)) -> 0.0009588174864
AI71: 1986 | AJ71: 非住宅 | AK71: その他 | AL71: =INDEX('係数表2-3'!$B:$K, 10 + QUOTIENT(ROW(AL71)-2, 10), 1 + MOD(ROW(AL71)-2, 10)) -> 0.002039523849
AI72: 1987 | AJ72: 住宅 | AK72: 木造 | AL72: =INDEX('係数表2-3'!$B:$K, 10 + QUOTIENT(ROW(AL72)-2, 10), 1 + MOD(ROW(AL72)-2, 10)) -> 0.0236816312
AI73: 1987 | AJ73: 住宅 | AK73: SRC造 | AL73: =INDEX('係数表2-3'!$B:$K, 10 + QUOTIENT(ROW(AL73)-2, 10), 1 + MOD(ROW(AL73)-2, 10)) -> 0.001725045346
AI74: 1987 | AJ74: 住宅 | AK74: RC造 | AL74: =INDEX('係数表2-3'!$B:$K, 10 + QUOTIENT(ROW(AL74)-2, 10), 1 + MOD(ROW(AL74)-2, 10)) -> 0.002488173223
AI75: 1987 | AJ75: 住宅 | AK75: S造 | AL75: =INDEX('係数表2-3'!$B:$K, 10 + QUOTIENT(ROW(AL75)-2, 10), 1 + MOD(ROW(AL75)-2, 10)) -> 0.003472496848
AI76: 1987 | AJ76: 住宅 | AK76: その他 | AL76: =INDEX('係数表2-3'!$B:$K, 10 + QUOTIENT(ROW(AL76)-2, 10), 1 + MOD(ROW(AL76)-2, 10)) -> 0.006190850599
AI77: 1987 | AJ77: 非住宅 | AK77: 木造 | AL77: =INDEX('係数表2-3'!$B:$K, 10 + QUOTIENT(ROW(AL77)-2, 10), 1 + MOD(ROW(AL77)-2, 10)) -> 0.02495510069
AI78: 1987 | AJ78: 非住宅 | AK78: SRC造 | AL78: =INDEX('係数表2-3'!$B:$K, 10 + QUOTIENT(ROW(AL78)-2, 10), 1 + MOD(ROW(AL78)-2, 10)) -> 0.0008119032922
AI79: 1987 | AJ79: 非住宅 | AK79: RC造 | AL79: =INDEX('係数表2-3'!$B:$K, 10 + QUOTIENT(ROW(AL79)-2, 10), 1 + MOD(ROW(AL79)-2, 10)) -> 0.001172291372
AI80: 1987 | AJ80: 非住宅 | AK80: S造 | AL80: =INDEX('係数表2-3'!$B:$K, 10 + QUOTIENT(ROW(AL80)-2, 10), 1 + MOD(ROW(AL80)-2, 10)) -> 0.0008663199345
AI81: 1987 | AJ81: 非住宅 | AK81: その他 | AL81: =INDEX('係数表2-3'!$B:$K, 10 + QUOTIENT(ROW(AL81)-2, 10), 1 + MOD(ROW(AL81)-2, 10)) -> 0.00180674751
AI82: 1988 | AJ82: 住宅 | AK82: 木造 | AL82: =INDEX('係数表2-3'!$B:$K, 10 + QUOTIENT(ROW(AL82)-2, 10), 1 + MOD(ROW(AL82)-2, 10)) -> 0.02282959249
AI83: 1988 | AJ83: 住宅 | AK83: SRC造 | AL83: =INDEX('係数表2-3'!$B:$K, 10 + QUOTIENT(ROW(AL83)-2, 10), 1 + MOD(ROW(AL83)-2, 10)) -> 0.001567079265
AI84: 1988 | AJ84: 住宅 | AK84: RC造 | AL84: =INDEX('係数表2-3'!$B:$K, 10 + QUOTIENT(ROW(AL84)-2, 10), 1 + MOD(ROW(AL84)-2, 10)) -> 0.002245209877
AI85: 1988 | AJ85: 住宅 | AK85: S造 | AL85: =INDEX('係数表2-3'!$B:$K, 10 + QUOTIENT(ROW(AL85)-2, 10), 1 + MOD(ROW(AL85)-2, 10)) -> 0.00312019633
AI86: 1988 | AJ86: 住宅 | AK86: その他 | AL86: =INDEX('係数表2-3'!$B:$K, 10 + QUOTIENT(ROW(AL86)-2, 10), 1 + MOD(ROW(AL86)-2, 10)) -> 0.005537934297
AI87: 1988 | AJ87: 非住宅 | AK87: 木造 | AL87: =INDEX('係数表2-3'!$B:$K, 10 + QUOTIENT(ROW(AL87)-2, 10), 1 + MOD(ROW(AL87)-2, 10)) -> 0.02403699228
AI88: 1988 | AJ88: 非住宅 | AK88: SRC造 | AL88: =INDEX('係数表2-3'!$B:$K, 10 + QUOTIENT(ROW(AL88)-2, 10), 1 + MOD(ROW(AL88)-2, 10)) -> 0.0007533583384
AI89: 1988 | AJ89: 非住宅 | AK89: RC造 | AL89: =INDEX('係数表2-3'!$B:$K, 10 + QUOTIENT(ROW(AL89)-2, 10), 1 + MOD(ROW(AL89)-2, 10)) -> 0.001074199496
AI90: 1988 | AJ90: 非住宅 | AK90: S造 | AL90: =INDEX('係数表2-3'!$B:$K, 10 + QUOTIENT(ROW(AL90)-2, 10), 1 + MOD(ROW(AL90)-2, 10)) -> 0.0008025262782
AI91: 1988 | AJ91: 非住宅 | AK91: その他 | AL91: =INDEX('係数表2-3'!$B:$K, 10 + QUOTIENT(ROW(AL91)-2, 10), 1 + MOD(ROW(AL91)-2, 10)) -> 0.001637672939
AI92: 1989 | AJ92: 住宅 | AK92: 木造 | AL92: =INDEX('係数表2-3'!$B:$K, 10 + QUOTIENT(ROW(AL92)-2, 10), 1 + MOD(ROW(AL92)-2, 10)) -> 0.02265399602
AI93: 1989 | AJ93: 住宅 | AK93: SRC造 | AL93: =INDEX('係数表2-3'!$B:$K, 10 + QUOTIENT(ROW(AL93)-2, 10), 1 + MOD(ROW(AL93)-2, 10)) -> 0.001600678902
AI94: 1989 | AJ94: 住宅 | AK94: RC造 | AL94: =INDEX('係数表2-3'!$B:$K, 10 + QUOTIENT(ROW(AL94)-2, 10), 1 + MOD(ROW(AL94)-2, 10)) -> 0.002294857661
AI95: 1989 | AJ95: 住宅 | AK95: S造 | AL95: =INDEX('係数表2-3'!$B:$K, 10 + QUOTIENT(ROW(AL95)-2, 10), 1 + MOD(ROW(AL95)-2, 10)) -> 0.003190497933
AI96: 1989 | AJ96: 住宅 | AK96: その他 | AL96: =INDEX('係数表2-3'!$B:$K, 10 + QUOTIENT(ROW(AL96)-2, 10), 1 + MOD(ROW(AL96)-2, 10)) -> 0.005665067848
AI97: 1989 | AJ97: 非住宅 | AK97: 木造 | AL97: =INDEX('係数表2-3'!$B:$K, 10 + QUOTIENT(ROW(AL97)-2, 10), 1 + MOD(ROW(AL97)-2, 10)) -> 0.02385280651
AI98: 1989 | AJ98: 非住宅 | AK98: SRC造 | AL98: =INDEX('係数表2-3'!$B:$K, 10 + QUOTIENT(ROW(AL98)-2, 10), 1 + MOD(ROW(AL98)-2, 10)) -> 0.0007681087269
AI99: 1989 | AJ99: 非住宅 | AK99: RC造 | AL99: =INDEX('係数表2-3'!$B:$K, 10 + QUOTIENT(ROW(AL99)-2, 10), 1 + MOD(ROW(AL99)-2, 10)) -> 0.00109643684
AI100: 1989 | AJ100: 非住宅 | AK100: S造 | AL100: =INDEX('係数表2-3'!$B:$K, 10 + QUOTIENT(ROW(AL100)-2, 10), 1 + MOD(ROW(AL100)-2, 10)) -> 0.0008182953073
AI101: 1989 | AJ101: 非住宅 | AK101: その他 | AL101: =INDEX('係数表2-3'!$B:$K, 10 + QUOTIENT(ROW(AL101)-2, 10), 1 + MOD(ROW(AL101)-2, 10)) -> 0.001673301586
AI102: 1990 | AJ102: 住宅 | AK102: 木造 | AL102: =INDEX('係数表2-3'!$B:$K, 10 + QUOTIENT(ROW(AL102)-2, 10), 1 + MOD(ROW(AL102)-2, 10)) -> 0.02238836993
AI103: 1990 | AJ103: 住宅 | AK103: SRC造 | AL103: =INDEX('係数表2-3'!$B:$K, 10 + QUOTIENT(ROW(AL103)-2, 10), 1 + MOD(ROW(AL103)-2, 10)) -> 0.001579457663
AI104: 1990 | AJ104: 住宅 | AK104: RC造 | AL104: =INDEX('係数表2-3'!$B:$K, 10 + QUOTIENT(ROW(AL104)-2, 10), 1 + MOD(ROW(AL104)-2, 10)) -> 0.002261345121
AI105: 1990 | AJ105: 住宅 | AK105: S造 | AL105: =INDEX('係数表2-3'!$B:$K, 10 + QUOTIENT(ROW(AL105)-2, 10), 1 + MOD(ROW(AL105)-2, 10)) -> 0.003141167277
AI106: 1990 | AJ106: 住宅 | AK106: その他 | AL106: =INDEX('係数表2-3'!$B:$K, 10 + QUOTIENT(ROW(AL106)-2, 10), 1 + MOD(ROW(AL106)-2, 10)) -> 0.005572214419
AI107: 1990 | AJ107: 非住宅 | AK107: 木造 | AL107: =INDEX('係数表2-3'!$B:$K, 10 + QUOTIENT(ROW(AL107)-2, 10), 1 + MOD(ROW(AL107)-2, 10)) -> 0.02356905772
AI108: 1990 | AJ108: 非住宅 | AK108: SRC造 | AL108: =INDEX('係数表2-3'!$B:$K, 10 + QUOTIENT(ROW(AL108)-2, 10), 1 + MOD(ROW(AL108)-2, 10)) -> 0.0007613189565
AI109: 1990 | AJ109: 非住宅 | AK109: RC造 | AL109: =INDEX('係数表2-3'!$B:$K, 10 + QUOTIENT(ROW(AL109)-2, 10), 1 + MOD(ROW(AL109)-2, 10)) -> 0.001083914149
AI110: 1990 | AJ110: 非住宅 | AK110: S造 | AL110: =INDEX('係数表2-3'!$B:$K, 10 + QUOTIENT(ROW(AL110)-2, 10), 1 + MOD(ROW(AL110)-2, 10)) -> 0.000810727207
AI111: 1990 | AJ111: 非住宅 | AK111: その他 | AL111: =INDEX('係数表2-3'!$B:$K, 10 + QUOTIENT(ROW(AL111)-2, 10), 1 + MOD(ROW(AL111)-2, 10)) -> 0.001650521754
AI112: 1991 | AJ112: 住宅 | AK112: 木造 | AL112: =INDEX('係数表2-3'!$B:$K, 10 + QUOTIENT(ROW(AL112)-2, 10), 1 + MOD(ROW(AL112)-2, 10)) -> 0.02224958882
AI113: 1991 | AJ113: 住宅 | AK113: SRC造 | AL113: =INDEX('係数表2-3'!$B:$K, 10 + QUOTIENT(ROW(AL113)-2, 10), 1 + MOD(ROW(AL113)-2, 10)) -> 0.001564590985
AI114: 1991 | AJ114: 住宅 | AK114: RC造 | AL114: =INDEX('係数表2-3'!$B:$K, 10 + QUOTIENT(ROW(AL114)-2, 10), 1 + MOD(ROW(AL114)-2, 10)) -> 0.002237644384
AI115: 1991 | AJ115: 住宅 | AK115: S造 | AL115: =INDEX('係数表2-3'!$B:$K, 10 + QUOTIENT(ROW(AL115)-2, 10), 1 + MOD(ROW(AL115)-2, 10)) -> 0.0031060937
AI116: 1991 | AJ116: 住宅 | AK116: その他 | AL116: =INDEX('係数表2-3'!$B:$K, 10 + QUOTIENT(ROW(AL116)-2, 10), 1 + MOD(ROW(AL116)-2, 10)) -> 0.005505831133
AI117: 1991 | AJ117: 非住宅 | AK117: 木造 | AL117: =INDEX('係数表2-3'!$B:$K, 10 + QUOTIENT(ROW(AL117)-2, 10), 1 + MOD(ROW(AL117)-2, 10)) -> 0.02341882171
AI118: 1991 | AJ118: 非住宅 | AK118: SRC造 | AL118: =INDEX('係数表2-3'!$B:$K, 10 + QUOTIENT(ROW(AL118)-2, 10), 1 + MOD(ROW(AL118)-2, 10)) -> 0.0007568550939
AI119: 1991 | AJ119: 非住宅 | AK119: RC造 | AL119: =INDEX('係数表2-3'!$B:$K, 10 + QUOTIENT(ROW(AL119)-2, 10), 1 + MOD(ROW(AL119)-2, 10)) -> 0.00107532196
AI120: 1991 | AJ120: 非住宅 | AK120: S造 | AL120: =INDEX('係数表2-3'!$B:$K, 10 + QUOTIENT(ROW(AL120)-2, 10), 1 + MOD(ROW(AL120)-2, 10)) -> 0.0008056930734
AI121: 1991 | AJ121: 非住宅 | AK121: その他 | AL121: =INDEX('係数表2-3'!$B:$K, 10 + QUOTIENT(ROW(AL121)-2, 10), 1 + MOD(ROW(AL121)-2, 10)) -> 0.001634561747
AI122: 1992 | AJ122: 住宅 | AK122: 木造 | AL122: =INDEX('係数表2-3'!$B:$K, 10 + QUOTIENT(ROW(AL122)-2, 10), 1 + MOD(ROW(AL122)-2, 10)) -> 0.02204259816
AI123: 1992 | AJ123: 住宅 | AK123: SRC造 | AL123: =INDEX('係数表2-3'!$B:$K, 10 + QUOTIENT(ROW(AL123)-2, 10), 1 + MOD(ROW(AL123)-2, 10)) -> 0.001634017347
AI124: 1992 | AJ124: 住宅 | AK124: RC造 | AL124: =INDEX('係数表2-3'!$B:$K, 10 + QUOTIENT(ROW(AL124)-2, 10), 1 + MOD(ROW(AL124)-2, 10)) -> 0.002342249891
AI125: 1992 | AJ125: 住宅 | AK125: S造 | AL125: =INDEX('係数表2-3'!$B:$K, 10 + QUOTIENT(ROW(AL125)-2, 10), 1 + MOD(ROW(AL125)-2, 10)) -> 0.00325595491
AI126: 1992 | AJ126: 住宅 | AK126: その他 | AL126: =INDEX('係数表2-3'!$B:$K, 10 + QUOTIENT(ROW(AL126)-2, 10), 1 + MOD(ROW(AL126)-2, 10)) -> 0.00578013191
AI127: 1992 | AJ127: 非住宅 | AK127: 木造 | AL127: =INDEX('係数表2-3'!$B:$K, 10 + QUOTIENT(ROW(AL127)-2, 10), 1 + MOD(ROW(AL127)-2, 10)) -> 0.023205743
AI128: 1992 | AJ128: 非住宅 | AK128: SRC造 | AL128: =INDEX('係数表2-3'!$B:$K, 10 + QUOTIENT(ROW(AL128)-2, 10), 1 + MOD(ROW(AL128)-2, 10)) -> 0.0007851123153
AI129: 1992 | AJ129: 非住宅 | AK129: RC造 | AL129: =INDEX('係数表2-3'!$B:$K, 10 + QUOTIENT(ROW(AL129)-2, 10), 1 + MOD(ROW(AL129)-2, 10)) -> 0.001119952319
AI130: 1992 | AJ130: 非住宅 | AK130: S造 | AL130: =INDEX('係数表2-3'!$B:$K, 10 + QUOTIENT(ROW(AL130)-2, 10), 1 + MOD(ROW(AL130)-2, 10)) -> 0.0008361298269
AI131: 1992 | AJ131: 非住宅 | AK131: その他 | AL131: =INDEX('係数表2-3'!$B:$K, 10 + QUOTIENT(ROW(AL131)-2, 10), 1 + MOD(ROW(AL131)-2, 10)) -> 0.001708568025
AI132: 1993 | AJ132: 住宅 | AK132: 木造 | AL132: =INDEX('係数表2-3'!$B:$K, 10 + QUOTIENT(ROW(AL132)-2, 10), 1 + MOD(ROW(AL132)-2, 10)) -> 0.02211495716
AI133: 1993 | AJ133: 住宅 | AK133: SRC造 | AL133: =INDEX('係数表2-3'!$B:$K, 10 + QUOTIENT(ROW(AL133)-2, 10), 1 + MOD(ROW(AL133)-2, 10)) -> 0.001567818906
AI134: 1993 | AJ134: 住宅 | AK134: RC造 | AL134: =INDEX('係数表2-3'!$B:$K, 10 + QUOTIENT(ROW(AL134)-2, 10), 1 + MOD(ROW(AL134)-2, 10)) -> 0.002243121204
AI135: 1993 | AJ135: 住宅 | AK135: S造 | AL135: =INDEX('係数表2-3'!$B:$K, 10 + QUOTIENT(ROW(AL135)-2, 10), 1 + MOD(ROW(AL135)-2, 10)) -> 0.003114468407
AI136: 1993 | AJ136: 住宅 | AK136: その他 | AL136: =INDEX('係数表2-3'!$B:$K, 10 + QUOTIENT(ROW(AL136)-2, 10), 1 + MOD(ROW(AL136)-2, 10)) -> 0.005522195901
AI137: 1993 | AJ137: 非住宅 | AK137: 木造 | AL137: =INDEX('係数表2-3'!$B:$K, 10 + QUOTIENT(ROW(AL137)-2, 10), 1 + MOD(ROW(AL137)-2, 10)) -> 0.02327982426
AI138: 1993 | AJ138: 非住宅 | AK138: SRC造 | AL138: =INDEX('係数表2-3'!$B:$K, 10 + QUOTIENT(ROW(AL138)-2, 10), 1 + MOD(ROW(AL138)-2, 10)) -> 0.0007574140751
AI139: 1993 | AJ139: 非住宅 | AK139: RC造 | AL139: =INDEX('係数表2-3'!$B:$K, 10 + QUOTIENT(ROW(AL139)-2, 10), 1 + MOD(ROW(AL139)-2, 10)) -> 0.001076937264
AI140: 1993 | AJ140: 非住宅 | AK140: S造 | AL140: =INDEX('係数表2-3'!$B:$K, 10 + QUOTIENT(ROW(AL140)-2, 10), 1 + MOD(ROW(AL140)-2, 10)) -> 0.0008064045813
AI141: 1993 | AJ141: 非住宅 | AK141: その他 | AL141: =INDEX('係数表2-3'!$B:$K, 10 + QUOTIENT(ROW(AL141)-2, 10), 1 + MOD(ROW(AL141)-2, 10)) -> 0.001638049818
AI142: 1994 | AJ142: 住宅 | AK142: 木造 | AL142: =INDEX('係数表2-3'!$B:$K, 10 + QUOTIENT(ROW(AL142)-2, 10), 1 + MOD(ROW(AL142)-2, 10)) -> 0.02148061617
AI143: 1994 | AJ143: 住宅 | AK143: SRC造 | AL143: =INDEX('係数表2-3'!$B:$K, 10 + QUOTIENT(ROW(AL143)-2, 10), 1 + MOD(ROW(AL143)-2, 10)) -> 0.001605077408
AI144: 1994 | AJ144: 住宅 | AK144: RC造 | AL144: =INDEX('係数表2-3'!$B:$K, 10 + QUOTIENT(ROW(AL144)-2, 10), 1 + MOD(ROW(AL144)-2, 10)) -> 0.002295279582
AI145: 1994 | AJ145: 住宅 | AK145: S造 | AL145: =INDEX('係数表2-3'!$B:$K, 10 + QUOTIENT(ROW(AL145)-2, 10), 1 + MOD(ROW(AL145)-2, 10)) -> 0.003186221711
AI146: 1994 | AJ146: 住宅 | AK146: その他 | AL146: =INDEX('係数表2-3'!$B:$K, 10 + QUOTIENT(ROW(AL146)-2, 10), 1 + MOD(ROW(AL146)-2, 10)) -> 0.005644419193
AI147: 1994 | AJ147: 非住宅 | AK147: 木造 | AL147: =INDEX('係数表2-3'!$B:$K, 10 + QUOTIENT(ROW(AL147)-2, 10), 1 + MOD(ROW(AL147)-2, 10)) -> 0.02260401915
AI148: 1994 | AJ148: 非住宅 | AK148: SRC造 | AL148: =INDEX('係数表2-3'!$B:$K, 10 + QUOTIENT(ROW(AL148)-2, 10), 1 + MOD(ROW(AL148)-2, 10)) -> 0.0007756572757
AI149: 1994 | AJ149: 非住宅 | AK149: RC造 | AL149: =INDEX('係数表2-3'!$B:$K, 10 + QUOTIENT(ROW(AL149)-2, 10), 1 + MOD(ROW(AL149)-2, 10)) -> 0.00110396726
AI150: 1994 | AJ150: 非住宅 | AK150: S造 | AL150: =INDEX('係数表2-3'!$B:$K, 10 + QUOTIENT(ROW(AL150)-2, 10), 1 + MOD(ROW(AL150)-2, 10)) -> 0.0008262169968
AI151: 1994 | AJ151: 非住宅 | AK151: その他 | AL151: =INDEX('係数表2-3'!$B:$K, 10 + QUOTIENT(ROW(AL151)-2, 10), 1 + MOD(ROW(AL151)-2, 10)) -> 0.001675154485
AI152: 1995 | AJ152: 住宅 | AK152: 木造 | AL152: =INDEX('係数表2-3'!$B:$K, 10 + QUOTIENT(ROW(AL152)-2, 10), 1 + MOD(ROW(AL152)-2, 10)) -> 0.02174514345
AI153: 1995 | AJ153: 住宅 | AK153: SRC造 | AL153: =INDEX('係数表2-3'!$B:$K, 10 + QUOTIENT(ROW(AL153)-2, 10), 1 + MOD(ROW(AL153)-2, 10)) -> 0.001528845139
AI154: 1995 | AJ154: 住宅 | AK154: RC造 | AL154: =INDEX('係数表2-3'!$B:$K, 10 + QUOTIENT(ROW(AL154)-2, 10), 1 + MOD(ROW(AL154)-2, 10)) -> 0.002171849018
AI155: 1995 | AJ155: 住宅 | AK155: S造 | AL155: =INDEX('係数表2-3'!$B:$K, 10 + QUOTIENT(ROW(AL155)-2, 10), 1 + MOD(ROW(AL155)-2, 10)) -> 0.003010231109
AI156: 1995 | AJ156: 住宅 | AK156: その他 | AL156: =INDEX('係数表2-3'!$B:$K, 10 + QUOTIENT(ROW(AL156)-2, 10), 1 + MOD(ROW(AL156)-2, 10)) -> 0.005314587804
AI157: 1995 | AJ157: 非住宅 | AK157: 木造 | AL157: =INDEX('係数表2-3'!$B:$K, 10 + QUOTIENT(ROW(AL157)-2, 10), 1 + MOD(ROW(AL157)-2, 10)) -> 0.0228768503
AI158: 1995 | AJ158: 非住宅 | AK158: SRC造 | AL158: =INDEX('係数表2-3'!$B:$K, 10 + QUOTIENT(ROW(AL158)-2, 10), 1 + MOD(ROW(AL158)-2, 10)) -> 0.0007380281759
AI159: 1995 | AJ159: 非住宅 | AK159: RC造 | AL159: =INDEX('係数表2-3'!$B:$K, 10 + QUOTIENT(ROW(AL159)-2, 10), 1 + MOD(ROW(AL159)-2, 10)) -> 0.001059137091
AI160: 1995 | AJ160: 非住宅 | AK160: S造 | AL160: =INDEX('係数表2-3'!$B:$K, 10 + QUOTIENT(ROW(AL160)-2, 10), 1 + MOD(ROW(AL160)-2, 10)) -> 0.0007909504352
AI161: 1995 | AJ161: 非住宅 | AK161: その他 | AL161: =INDEX('係数表2-3'!$B:$K, 10 + QUOTIENT(ROW(AL161)-2, 10), 1 + MOD(ROW(AL161)-2, 10)) -> 0.001586261798
AI162: 1996 | AJ162: 住宅 | AK162: 木造 | AL162: =INDEX('係数表2-3'!$B:$K, 10 + QUOTIENT(ROW(AL162)-2, 10), 1 + MOD(ROW(AL162)-2, 10)) -> 0.02172741961
AI163: 1996 | AJ163: 住宅 | AK163: SRC造 | AL163: =INDEX('係数表2-3'!$B:$K, 10 + QUOTIENT(ROW(AL163)-2, 10), 1 + MOD(ROW(AL163)-2, 10)) -> 0.001550516693
AI164: 1996 | AJ164: 住宅 | AK164: RC造 | AL164: =INDEX('係数表2-3'!$B:$K, 10 + QUOTIENT(ROW(AL164)-2, 10), 1 + MOD(ROW(AL164)-2, 10)) -> 0.002206312983
AI165: 1996 | AJ165: 住宅 | AK165: S造 | AL165: =INDEX('係数表2-3'!$B:$K, 10 + QUOTIENT(ROW(AL165)-2, 10), 1 + MOD(ROW(AL165)-2, 10)) -> 0.003061548433
AI166: 1996 | AJ166: 住宅 | AK166: その他 | AL166: =INDEX('係数表2-3'!$B:$K, 10 + QUOTIENT(ROW(AL166)-2, 10), 1 + MOD(ROW(AL166)-2, 10)) -> 0.005411753663
AI167: 1996 | AJ167: 非住宅 | AK167: 木造 | AL167: =INDEX('係数表2-3'!$B:$K, 10 + QUOTIENT(ROW(AL167)-2, 10), 1 + MOD(ROW(AL167)-2, 10)) -> 0.02286558095
AI168: 1996 | AJ168: 非住宅 | AK168: SRC造 | AL168: =INDEX('係数表2-3'!$B:$K, 10 + QUOTIENT(ROW(AL168)-2, 10), 1 + MOD(ROW(AL168)-2, 10)) -> 0.0007442244677
AI169: 1996 | AJ169: 非住宅 | AK169: RC造 | AL169: =INDEX('係数表2-3'!$B:$K, 10 + QUOTIENT(ROW(AL169)-2, 10), 1 + MOD(ROW(AL169)-2, 10)) -> 0.001071888942
AI170: 1996 | AJ170: 非住宅 | AK170: S造 | AL170: =INDEX('係数表2-3'!$B:$K, 10 + QUOTIENT(ROW(AL170)-2, 10), 1 + MOD(ROW(AL170)-2, 10)) -> 0.0007980746154
AI171: 1996 | AJ171: 非住宅 | AK171: その他 | AL171: =INDEX('係数表2-3'!$B:$K, 10 + QUOTIENT(ROW(AL171)-2, 10), 1 + MOD(ROW(AL171)-2, 10)) -> 0.001609700823
AI172: 1997 | AJ172: 住宅 | AK172: 木造 | AL172: =INDEX('係数表2-3'!$B:$K, 10 + QUOTIENT(ROW(AL172)-2, 10), 1 + MOD(ROW(AL172)-2, 10)) -> 0.02117597432
AI173: 1997 | AJ173: 住宅 | AK173: SRC造 | AL173: =INDEX('係数表2-3'!$B:$K, 10 + QUOTIENT(ROW(AL173)-2, 10), 1 + MOD(ROW(AL173)-2, 10)) -> 0.001518299384
AI174: 1997 | AJ174: 住宅 | AK174: RC造 | AL174: =INDEX('係数表2-3'!$B:$K, 10 + QUOTIENT(ROW(AL174)-2, 10), 1 + MOD(ROW(AL174)-2, 10)) -> 0.002153268337
AI175: 1997 | AJ175: 住宅 | AK175: S造 | AL175: =INDEX('係数表2-3'!$B:$K, 10 + QUOTIENT(ROW(AL175)-2, 10), 1 + MOD(ROW(AL175)-2, 10)) -> 0.002980664523
AI176: 1997 | AJ176: 住宅 | AK176: その他 | AL176: =INDEX('係数表2-3'!$B:$K, 10 + QUOTIENT(ROW(AL176)-2, 10), 1 + MOD(ROW(AL176)-2, 10)) -> 0.00525356676
AI177: 1997 | AJ177: 非住宅 | AK177: 木造 | AL177: =INDEX('係数表2-3'!$B:$K, 10 + QUOTIENT(ROW(AL177)-2, 10), 1 + MOD(ROW(AL177)-2, 10)) -> 0.02227307637
AI178: 1997 | AJ178: 非住宅 | AK178: SRC造 | AL178: =INDEX('係数表2-3'!$B:$K, 10 + QUOTIENT(ROW(AL178)-2, 10), 1 + MOD(ROW(AL178)-2, 10)) -> 0.0007375926647
AI179: 1997 | AJ179: 非住宅 | AK179: RC造 | AL179: =INDEX('係数表2-3'!$B:$K, 10 + QUOTIENT(ROW(AL179)-2, 10), 1 + MOD(ROW(AL179)-2, 10)) -> 0.001054591045
AI180: 1997 | AJ180: 非住宅 | AK180: S造 | AL180: =INDEX('係数表2-3'!$B:$K, 10 + QUOTIENT(ROW(AL180)-2, 10), 1 + MOD(ROW(AL180)-2, 10)) -> 0.0007899024121
AI181: 1997 | AJ181: 非住宅 | AK181: その他 | AL181: =INDEX('係数表2-3'!$B:$K, 10 + QUOTIENT(ROW(AL181)-2, 10), 1 + MOD(ROW(AL181)-2, 10)) -> 0.001573807443
AI182: 1998 | AJ182: 住宅 | AK182: 木造 | AL182: =INDEX('係数表2-3'!$B:$K, 10 + QUOTIENT(ROW(AL182)-2, 10), 1 + MOD(ROW(AL182)-2, 10)) -> 0.02083693575
AI183: 1998 | AJ183: 住宅 | AK183: SRC造 | AL183: =INDEX('係数表2-3'!$B:$K, 10 + QUOTIENT(ROW(AL183)-2, 10), 1 + MOD(ROW(AL183)-2, 10)) -> 0.001508014434
AI184: 1998 | AJ184: 住宅 | AK184: RC造 | AL184: =INDEX('係数表2-3'!$B:$K, 10 + QUOTIENT(ROW(AL184)-2, 10), 1 + MOD(ROW(AL184)-2, 10)) -> 0.002131384139
AI185: 1998 | AJ185: 住宅 | AK185: S造 | AL185: =INDEX('係数表2-3'!$B:$K, 10 + QUOTIENT(ROW(AL185)-2, 10), 1 + MOD(ROW(AL185)-2, 10)) -> 0.002949008851
AI186: 1998 | AJ186: 住宅 | AK186: その他 | AL186: =INDEX('係数表2-3'!$B:$K, 10 + QUOTIENT(ROW(AL186)-2, 10), 1 + MOD(ROW(AL186)-2, 10)) -> 0.005172038557
AI187: 1998 | AJ187: 非住宅 | AK187: 木造 | AL187: =INDEX('係数表2-3'!$B:$K, 10 + QUOTIENT(ROW(AL187)-2, 10), 1 + MOD(ROW(AL187)-2, 10)) -> 0.02190952194
AI188: 1998 | AJ188: 非住宅 | AK188: SRC造 | AL188: =INDEX('係数表2-3'!$B:$K, 10 + QUOTIENT(ROW(AL188)-2, 10), 1 + MOD(ROW(AL188)-2, 10)) -> 0.0007269875146
AI189: 1998 | AJ189: 非住宅 | AK189: RC造 | AL189: =INDEX('係数表2-3'!$B:$K, 10 + QUOTIENT(ROW(AL189)-2, 10), 1 + MOD(ROW(AL189)-2, 10)) -> 0.001054090614
AI190: 1998 | AJ190: 非住宅 | AK190: S造 | AL190: =INDEX('係数表2-3'!$B:$K, 10 + QUOTIENT(ROW(AL190)-2, 10), 1 + MOD(ROW(AL190)-2, 10)) -> 0.0007837813107
AI191: 1998 | AJ191: 非住宅 | AK191: その他 | AL191: =INDEX('係数表2-3'!$B:$K, 10 + QUOTIENT(ROW(AL191)-2, 10), 1 + MOD(ROW(AL191)-2, 10)) -> 0.001548655451
AI192: 1999 | AJ192: 住宅 | AK192: 木造 | AL192: =INDEX('係数表2-3'!$B:$K, 10 + QUOTIENT(ROW(AL192)-2, 10), 1 + MOD(ROW(AL192)-2, 10)) -> 0.02032855341
AI193: 1999 | AJ193: 住宅 | AK193: SRC造 | AL193: =INDEX('係数表2-3'!$B:$K, 10 + QUOTIENT(ROW(AL193)-2, 10), 1 + MOD(ROW(AL193)-2, 10)) -> 0.001581666644
AI194: 1999 | AJ194: 住宅 | AK194: RC造 | AL194: =INDEX('係数表2-3'!$B:$K, 10 + QUOTIENT(ROW(AL194)-2, 10), 1 + MOD(ROW(AL194)-2, 10)) -> 0.002091191021
AI195: 1999 | AJ195: 住宅 | AK195: S造 | AL195: =INDEX('係数表2-3'!$B:$K, 10 + QUOTIENT(ROW(AL195)-2, 10), 1 + MOD(ROW(AL195)-2, 10)) -> 0.002912007711
AI196: 1999 | AJ196: 住宅 | AK196: その他 | AL196: =INDEX('係数表2-3'!$B:$K, 10 + QUOTIENT(ROW(AL196)-2, 10), 1 + MOD(ROW(AL196)-2, 10)) -> 0.00529400293
AI197: 1999 | AJ197: 非住宅 | AK197: 木造 | AL197: =INDEX('係数表2-3'!$B:$K, 10 + QUOTIENT(ROW(AL197)-2, 10), 1 + MOD(ROW(AL197)-2, 10)) -> 0.02115329924
AI198: 1999 | AJ198: 非住宅 | AK198: SRC造 | AL198: =INDEX('係数表2-3'!$B:$K, 10 + QUOTIENT(ROW(AL198)-2, 10), 1 + MOD(ROW(AL198)-2, 10)) -> 0.0007084808275
AI199: 1999 | AJ199: 非住宅 | AK199: RC造 | AL199: =INDEX('係数表2-3'!$B:$K, 10 + QUOTIENT(ROW(AL199)-2, 10), 1 + MOD(ROW(AL199)-2, 10)) -> 0.001129490773
AI200: 1999 | AJ200: 非住宅 | AK200: S造 | AL200: =INDEX('係数表2-3'!$B:$K, 10 + QUOTIENT(ROW(AL200)-2, 10), 1 + MOD(ROW(AL200)-2, 10)) -> 0.0008165735371
... 2050 more rows
